Body Name(T),Service Area Categorisation,Service Area Division,Purpose of Expenditure,Payment Date,Trans No,Amount ,Capital or Revenue,Beneficiary,Merchant Category
Peterborough City Council,People & Communities,Community Team,Agency Staff,08/02/2019,30220146,"1,221.00",Revenue,Medicare First Ltd,External Temporary Staff
Peterborough City Council,People & Communities,OP/PD/SI,"Tools, Equipment, Furniture & Materials",07/05/2019,30254040,"6,608.30",Revenue,NRS Healthcare,Occupational Therapy Equipment
Peterborough City Council,People & Communities,Independent Sector Placements,Services,18/06/2019,8000150819,945,Revenue,Longhurst Group Limited,Assistive Technology
Peterborough City Council,People & Communities,Independent Sector Placements,Services,19/06/2019,8000150821,584.46,Revenue,Longhurst Group Limited,Homecare
Peterborough City Council,People & Communities,Independent Sector Placements,Services,15/07/2019,8000150824,"1,162.80",Revenue,Longhurst Group Limited,Homecare
Peterborough City Council,People & Communities,Independent Sector Placements,Services,04/08/2019,8000150639,514.08,Revenue,Longhurst Group Limited,Homecare
Peterborough City Council,People & Communities,Independent Sector Placements,Services,04/08/2019,8000150648,526.32,Revenue,Longhurst Group Limited,Homecare
Peterborough City Council,People & Communities,Independent Sector Placements,Services,04/08/2019,8000150653,599.76,Revenue,Longhurst Group Limited,Homecare
Peterborough City Council,People & Communities,Independent Sector Placements,Services,04/08/2019,8000150645,612,Revenue,Longhurst Group Limited,Homecare
Peterborough City Council,People & Communities,Independent Sector Placements,Services,04/08/2019,8000150647,685.44,Revenue,Longhurst Group Limited,Homecare
Peterborough City Council,People & Communities,Independent Sector Placements,Services,04/08/2019,8000150657,685.44,Revenue,Longhurst Group Limited,Homecare
Peterborough City Council,People & Communities,Independent Sector Placements,Services,04/08/2019,8000150640,771.12,Revenue,Longhurst Group Limited,Homecare
Peterborough City Council,People & Communities,Independent Sector Placements,Services,04/08/2019,8000150641,771.12,Revenue,Longhurst Group Limited,Homecare
Peterborough City Council,People & Communities,Independent Sector Placements,Services,04/08/2019,8000150642,771.12,Revenue,Longhurst Group Limited,Homecare
Peterborough City Council,People & Communities,Independent Sector Placements,Services,04/08/2019,8000150650,783.36,Revenue,Longhurst Group Limited,Homecare
Peterborough City Council,People & Communities,Independent Sector Placements,Services,04/08/2019,8000150652,991.44,Revenue,Longhurst Group Limited,Homecare
Peterborough City Council,People & Communities,Independent Sector Placements,Services,04/08/2019,8000150651,"1,285.20",Revenue,Longhurst Group Limited,Homecare
Peterborough City Council,People & Communities,Independent Sector Placements,Services,16/08/2019,8000150828,630,Revenue,Longhurst Group Limited,Assistive Technology
Peterborough City Council,People & Communities,Independent Sector Placements,Services,16/08/2019,8000150829,697.5,Revenue,Longhurst Group Limited,Assistive Technology
Peterborough City Council,People & Communities,Independent Sector Placements,Services,16/08/2019,8000151372,933.75,Revenue,Longhurst Group Limited,Assistive Technology
Peterborough City Council,People & Communities,Independent Sector Placements,Services,16/08/2019,8000150662,945,Revenue,Longhurst Group Limited,Assistive Technology
Peterborough City Council,People & Communities,Independent Sector Placements,Services,16/08/2019,8000150668,514.08,Revenue,Longhurst Group Limited,Homecare
Peterborough City Council,People & Communities,Independent Sector Placements,Services,16/08/2019,8000150684,514.08,Revenue,Longhurst Group Limited,Homecare
Peterborough City Council,People & Communities,Independent Sector Placements,Services,16/08/2019,8000150685,514.08,Revenue,Longhurst Group Limited,Homecare
Peterborough City Council,People & Communities,Independent Sector Placements,Services,16/08/2019,8000150688,514.08,Revenue,Longhurst Group Limited,Homecare
Peterborough City Council,People & Communities,Independent Sector Placements,Services,16/08/2019,8000150702,514.08,Revenue,Longhurst Group Limited,Homecare
Peterborough City Council,People & Communities,Independent Sector Placements,Services,16/08/2019,8000150703,514.08,Revenue,Longhurst Group Limited,Homecare
Peterborough City Council,People & Communities,Independent Sector Placements,Services,16/08/2019,8000150839,523.26,Revenue,Longhurst Group Limited,Homecare
Peterborough City Council,People & Communities,Independent Sector Placements,Services,16/08/2019,8000150834,526.32,Revenue,Longhurst Group Limited,Homecare
Peterborough City Council,People & Communities,Independent Sector Placements,Services,16/08/2019,8000150670,538.56,Revenue,Longhurst Group Limited,Homecare
Peterborough City Council,People & Communities,Independent Sector Placements,Services,16/08/2019,8000150661,599.76,Revenue,Longhurst Group Limited,Homecare
Peterborough City Council,People & Communities,Independent Sector Placements,Services,16/08/2019,8000150674,599.76,Revenue,Longhurst Group Limited,Homecare
Peterborough City Council,People & Communities,Independent Sector Placements,Services,16/08/2019,8000150678,599.76,Revenue,Longhurst Group Limited,Homecare
Peterborough City Council,People & Communities,Independent Sector Placements,Services,16/08/2019,8000150697,599.76,Revenue,Longhurst Group Limited,Homecare
Peterborough City Council,People & Communities,Independent Sector Placements,Services,16/08/2019,8000150701,599.76,Revenue,Longhurst Group Limited,Homecare
Peterborough City Council,People & Communities,Independent Sector Placements,Services,16/08/2019,8000150707,599.76,Revenue,Longhurst Group Limited,Homecare
Peterborough City Council,People & Communities,Independent Sector Placements,Services,16/08/2019,8000150669,660.96,Revenue,Longhurst Group Limited,Homecare
Peterborough City Council,People & Communities,Independent Sector Placements,Services,16/08/2019,8000150671,685.44,Revenue,Longhurst Group Limited,Homecare
Peterborough City Council,People & Communities,Independent Sector Placements,Services,16/08/2019,8000150681,685.44,Revenue,Longhurst Group Limited,Homecare
Peterborough City Council,People & Communities,Independent Sector Placements,Services,16/08/2019,8000150682,685.44,Revenue,Longhurst Group Limited,Homecare
Peterborough City Council,People & Communities,Independent Sector Placements,Services,16/08/2019,8000150695,685.44,Revenue,Longhurst Group Limited,Homecare
Peterborough City Council,People & Communities,Independent Sector Placements,Services,16/08/2019,8000150689,771.12,Revenue,Longhurst Group Limited,Homecare
Peterborough City Council,People & Communities,Independent Sector Placements,Services,16/08/2019,8000150706,832.32,Revenue,Longhurst Group Limited,Homecare
Peterborough City Council,People & Communities,Independent Sector Placements,Services,16/08/2019,8000150687,856.8,Revenue,Longhurst Group Limited,Homecare
Peterborough City Council,People & Communities,Independent Sector Placements,Services,16/08/2019,8000150841,856.8,Revenue,Longhurst Group Limited,Homecare
Peterborough City Council,People & Communities,Independent Sector Placements,Services,16/08/2019,8000150677,918,Revenue,Longhurst Group Limited,Homecare
Peterborough City Council,People & Communities,Independent Sector Placements,Services,16/08/2019,8000150675,979.2,Revenue,Longhurst Group Limited,Homecare
Peterborough City Council,People & Communities,Independent Sector Placements,Services,16/08/2019,8000150686,"1,199.52",Revenue,Longhurst Group Limited,Homecare
Peterborough City Council,People & Communities,Independent Sector Placements,Services,16/08/2019,8000150840,"1,279.08",Revenue,Longhurst Group Limited,Homecare
Peterborough City Council,People & Communities,Independent Sector Placements,Services,16/08/2019,8000150667,"1,542.24",Revenue,Longhurst Group Limited,Homecare
Peterborough City Council,People & Communities,Independent Sector Placements,Services,16/08/2019,8000150838,"1,627.92",Revenue,Longhurst Group Limited,Homecare
Peterborough City Council,People & Communities,Independent Sector Placements,Services,16/08/2019,8000150693,"1,884.96",Revenue,Longhurst Group Limited,Homecare
Peterborough City Council,People & Communities,Independent Sector Placements,Services,16/08/2019,8000150672,"2,399.04",Revenue,Longhurst Group Limited,Homecare
Peterborough City Council,People & Communities,Independent Sector Placements,Services,08/09/2019,8000152275,501.4,Revenue,Longhurst Group Limited,Homecare
Peterborough City Council,People & Communities,Independent Sector Placements,Services,08/09/2019,8000152249,530.8,Revenue,Longhurst Group Limited,Homecare
Peterborough City Council,People & Communities,Independent Sector Placements,Services,08/09/2019,8000152254,589.6,Revenue,Longhurst Group Limited,Homecare
Peterborough City Council,People & Communities,Independent Sector Placements,Services,08/09/2019,8000152265,589.6,Revenue,Longhurst Group Limited,Homecare
Peterborough City Council,People & Communities,Independent Sector Placements,Services,08/09/2019,8000152271,677.8,Revenue,Longhurst Group Limited,Homecare
Peterborough City Council,People & Communities,Independent Sector Placements,Services,08/09/2019,8000152268,739.54,Revenue,Longhurst Group Limited,Homecare
Peterborough City Council,People & Communities,Independent Sector Placements,Services,11/09/2019,8000151454,514.08,Revenue,Longhurst Group Limited,Homecare
Peterborough City Council,People & Communities,Independent Sector Placements,Services,11/09/2019,8000151485,514.08,Revenue,Longhurst Group Limited,Homecare
Peterborough City Council,People & Communities,Independent Sector Placements,Services,11/09/2019,8000151503,514.08,Revenue,Longhurst Group Limited,Homecare
Peterborough City Council,People & Communities,Independent Sector Placements,Services,11/09/2019,8000151504,514.08,Revenue,Longhurst Group Limited,Homecare
Peterborough City Council,People & Communities,Independent Sector Placements,Services,11/09/2019,8000151510,514.08,Revenue,Longhurst Group Limited,Homecare
Peterborough City Council,People & Communities,Independent Sector Placements,Services,11/09/2019,8000151525,514.08,Revenue,Longhurst Group Limited,Homecare
Peterborough City Council,People & Communities,Independent Sector Placements,Services,11/09/2019,8000151526,514.08,Revenue,Longhurst Group Limited,Homecare
Peterborough City Council,People & Communities,Independent Sector Placements,Services,11/09/2019,8000151465,526.32,Revenue,Longhurst Group Limited,Homecare
Peterborough City Council,People & Communities,Independent Sector Placements,Services,11/09/2019,8000151487,526.32,Revenue,Longhurst Group Limited,Homecare
Peterborough City Council,People & Communities,Independent Sector Placements,Services,11/09/2019,8000151491,526.32,Revenue,Longhurst Group Limited,Homecare
Peterborough City Council,People & Communities,Independent Sector Placements,Services,11/09/2019,8000151470,599.76,Revenue,Longhurst Group Limited,Homecare
Peterborough City Council,People & Communities,Independent Sector Placements,Services,11/09/2019,8000151478,599.76,Revenue,Longhurst Group Limited,Homecare
Peterborough City Council,People & Communities,Independent Sector Placements,Services,11/09/2019,8000151495,599.76,Revenue,Longhurst Group Limited,Homecare
Peterborough City Council,People & Communities,Independent Sector Placements,Services,11/09/2019,8000151507,599.76,Revenue,Longhurst Group Limited,Homecare
Peterborough City Council,People & Communities,Independent Sector Placements,Services,11/09/2019,8000151517,599.76,Revenue,Longhurst Group Limited,Homecare
Peterborough City Council,People & Communities,Independent Sector Placements,Services,11/09/2019,8000151523,599.76,Revenue,Longhurst Group Limited,Homecare
Peterborough City Council,People & Communities,Independent Sector Placements,Services,11/09/2019,8000151531,599.76,Revenue,Longhurst Group Limited,Homecare
Peterborough City Council,People & Communities,Independent Sector Placements,Services,11/09/2019,8000151462,612,Revenue,Longhurst Group Limited,Homecare
Peterborough City Council,People & Communities,Independent Sector Placements,Services,11/09/2019,8000151486,660.96,Revenue,Longhurst Group Limited,Homecare
Peterborough City Council,People & Communities,Independent Sector Placements,Services,11/09/2019,8000151464,685.44,Revenue,Longhurst Group Limited,Homecare
Peterborough City Council,People & Communities,Independent Sector Placements,Services,11/09/2019,8000151474,685.44,Revenue,Longhurst Group Limited,Homecare
Peterborough City Council,People & Communities,Independent Sector Placements,Services,11/09/2019,8000151488,685.44,Revenue,Longhurst Group Limited,Homecare
Peterborough City Council,People & Communities,Independent Sector Placements,Services,11/09/2019,8000151499,685.44,Revenue,Longhurst Group Limited,Homecare
Peterborough City Council,People & Communities,Independent Sector Placements,Services,11/09/2019,8000151500,685.44,Revenue,Longhurst Group Limited,Homecare
Peterborough City Council,People & Communities,Independent Sector Placements,Services,11/09/2019,8000151518,685.44,Revenue,Longhurst Group Limited,Homecare
Peterborough City Council,People & Communities,Independent Sector Placements,Services,11/09/2019,8000151455,771.12,Revenue,Longhurst Group Limited,Homecare
Peterborough City Council,People & Communities,Independent Sector Placements,Services,11/09/2019,8000151456,771.12,Revenue,Longhurst Group Limited,Homecare
Peterborough City Council,People & Communities,Independent Sector Placements,Services,11/09/2019,8000151459,771.12,Revenue,Longhurst Group Limited,Homecare
Peterborough City Council,People & Communities,Independent Sector Placements,Services,11/09/2019,8000151511,771.12,Revenue,Longhurst Group Limited,Homecare
Peterborough City Council,People & Communities,Independent Sector Placements,Services,11/09/2019,8000151475,774.18,Revenue,Longhurst Group Limited,Homecare
Peterborough City Council,People & Communities,Independent Sector Placements,Services,11/09/2019,8000151530,777.24,Revenue,Longhurst Group Limited,Homecare
Peterborough City Council,People & Communities,Independent Sector Placements,Services,11/09/2019,8000151467,783.36,Revenue,Longhurst Group Limited,Homecare
Peterborough City Council,People & Communities,Independent Sector Placements,Services,11/09/2019,8000151509,856.8,Revenue,Longhurst Group Limited,Homecare
Peterborough City Council,People & Communities,Independent Sector Placements,Services,11/09/2019,8000151494,918,Revenue,Longhurst Group Limited,Homecare
Peterborough City Council,People & Communities,Independent Sector Placements,Services,11/09/2019,8000151559,930.24,Revenue,Longhurst Group Limited,Homecare
Peterborough City Council,People & Communities,Independent Sector Placements,Services,11/09/2019,8000151492,979.2,Revenue,Longhurst Group Limited,Homecare
Peterborough City Council,People & Communities,Independent Sector Placements,Services,11/09/2019,8000151469,991.44,Revenue,Longhurst Group Limited,Homecare
Peterborough City Council,People & Communities,Independent Sector Placements,Services,11/09/2019,8000151506,"1,199.52",Revenue,Longhurst Group Limited,Homecare
Peterborough City Council,People & Communities,Independent Sector Placements,Services,11/09/2019,8000151468,"1,285.20",Revenue,Longhurst Group Limited,Homecare
Peterborough City Council,People & Communities,Independent Sector Placements,Services,11/09/2019,8000151484,"1,542.24",Revenue,Longhurst Group Limited,Homecare
Peterborough City Council,People & Communities,Independent Sector Placements,Services,11/09/2019,8000151505,"1,627.92",Revenue,Longhurst Group Limited,Homecare
Peterborough City Council,People & Communities,Independent Sector Placements,Services,11/09/2019,8000151557,"1,627.92",Revenue,Longhurst Group Limited,Homecare
Peterborough City Council,People & Communities,Independent Sector Placements,Services,11/09/2019,8000151515,"1,884.96",Revenue,Longhurst Group Limited,Homecare
Peterborough City Council,People & Communities,Independent Sector Placements,Services,11/09/2019,8000151524,"1,884.96",Revenue,Longhurst Group Limited,Homecare
Peterborough City Council,People & Communities,Independent Sector Placements,Services,11/09/2019,8000151489,"2,399.04",Revenue,Longhurst Group Limited,Homecare
Peterborough City Council,People & Communities,Home Services Delivery Model,Customer and client receipts - Fees & Charges,30/09/2019,30249815,-717.75,Revenue,Dolphin Mobility East Midlands Ltd,Grant Payment
Peterborough City Council,Corporate,Corporate,Non Revenue,30/09/2019,30249815,"5,502.75",Capital,Dolphin Mobility East Midlands Ltd,Grant Payment
Peterborough City Council,Corporate,Corporate,Non Revenue,10/10/2019,30249788,"2,417.53",Capital,Prism UK Medical Ltd,Grant Payment
Peterborough City Council,Corporate,Corporate,Non Revenue,11/10/2019,30249790,"2,011.50",Capital,M J Greaves,Grant Payment
Peterborough City Council,People & Communities,Independent Sector Placements,Social Services,18/10/2019,8000153841,"2,530.67",Revenue,Exegesis Spatial Data Management Ltd,Direct Payments
Peterborough City Council,People & Communities,Independent Sector Placements,Social Services,23/10/2019,8000154111,"2,548.37",Revenue,Martland Limited,Direct Payments
Peterborough City Council,People & Communities,Access to Resources & Specialist Commissioning,Schools,01/11/2019,30250122,"8,400.00",Revenue,A & T Home Limited,Boarding Out Fees
Peterborough City Council,People & Communities,Access to Resources & Specialist Commissioning,Schools,01/11/2019,30249848,"16,311.43",Revenue,Blue Mountain Homes,Boarding Out Fees
Peterborough City Council,Corporate,Corporate,Non Revenue,01/11/2019,30250062,"72,607.47",Capital,Gelder Ltd,Building And Site Works
Peterborough City Council,Corporate,Corporate,Non Revenue,01/11/2019,30250075,"1,080.00",Capital,M J Greaves,Building And Site Works
Peterborough City Council,Corporate,Corporate,Non Revenue,01/11/2019,30250077,"1,620.00",Capital,M J Greaves,Building And Site Works
Peterborough City Council,Corporate,Corporate,Non Revenue,01/11/2019,30250078,"2,800.00",Capital,M J Greaves,Building And Site Works
Peterborough City Council,Corporate,Corporate,Non Revenue,01/11/2019,30250010,"4,999.00",Capital,Rawheat Heating & Plumbing Eng.,Building And Site Works
Peterborough City Council,Resources,PSSP Retained Services,Members Allowances,01/11/2019,30250137,"14,029.10",Revenue,Konica Minolta Bus.Sol. East Ltd,Computer Hardware
Peterborough City Council,People & Communities,Special Educational Needs / Inclusion,Services,01/11/2019,30250131,"2,044.00",Revenue,Gillan Legal Solutions Ltd,Conferences
Peterborough City Council,Resources,Office Accomodation,Services,01/11/2019,30249843,528.01,Revenue,PHS Group Plc,Contractors
Peterborough City Council,People & Communities,Home Services Delivery Model,Services,01/11/2019,30250014,510,Revenue,Rawheat Heating & Plumbing Eng.,Contractors
Peterborough City Council,People & Communities,Home Services Delivery Model,Services,01/11/2019,30250003,714,Revenue,Rawheat Heating & Plumbing Eng.,Contractors
Peterborough City Council,Place & Economy,Transport & Infrastructure Commissioning,Services,01/11/2019,30246108,"1,633.61",Revenue,Stagecoach in Peterborough,Contractors
Peterborough City Council,Place & Economy,Transport & Infrastructure Commissioning,Services,01/11/2019,30247989,"15,228.00",Revenue,First Eastern Counties Buses Ltd,Contractors
Peterborough City Council,Place & Economy,Transport & Infrastructure Commissioning,Services,01/11/2019,30246094,"18,212.74",Revenue,Stagecoach in Peterborough,Contractors
Peterborough City Council,Place & Economy,Growth HoS,Other Establishments,01/11/2019,30250118,"50,000.00",Revenue,Opportunity Peterborough T/A OP Ltd,Contributions
Peterborough City Council,People & Communities,Independent Sector Placements,Customer and client receipts - Fees & Charges,01/11/2019,8000154115,"-4,334.04",Revenue,Redacted Personal Information,Contributions
Peterborough City Council,People & Communities,Independent Sector Placements,Services,01/11/2019,30248188,504,Revenue,Thera East Anglia,Daycare
Peterborough City Council,People & Communities,Independent Sector Placements,Services,01/11/2019,30249720,688,Revenue,Thera East Anglia,Daycare
Peterborough City Council,People & Communities,Independent Sector Placements,Services,01/11/2019,30248161,756,Revenue,Thera East Anglia,Daycare
Peterborough City Council,People & Communities,Independent Sector Placements,Services,01/11/2019,30248166,756,Revenue,Thera East Anglia,Daycare
Peterborough City Council,People & Communities,Independent Sector Placements,Services,01/11/2019,30248189,756,Revenue,Thera East Anglia,Daycare
Peterborough City Council,People & Communities,Independent Sector Placements,Services,01/11/2019,30248171,860,Revenue,Thera East Anglia,Daycare
Peterborough City Council,People & Communities,Independent Sector Placements,Services,01/11/2019,30248187,860,Revenue,Thera East Anglia,Daycare
Peterborough City Council,People & Communities,Independent Sector Placements,Services,01/11/2019,30248164,"1,008.00",Revenue,Thera East Anglia,Daycare
Peterborough City Council,People & Communities,Independent Sector Placements,Services,01/11/2019,30248165,"1,008.00",Revenue,Thera East Anglia,Daycare
Peterborough City Council,People & Communities,Independent Sector Placements,Services,01/11/2019,30248167,"1,260.00",Revenue,Thera East Anglia,Daycare
Peterborough City Council,People & Communities,Independent Sector Placements,Services,01/11/2019,30248191,"1,260.00",Revenue,Thera East Anglia,Daycare
Peterborough City Council,People & Communities,Independent Sector Placements,Services,01/11/2019,30248185,"1,952.00",Revenue,Thera East Anglia,Daycare
Peterborough City Council,People & Communities,Independent Sector Placements,Services,01/11/2019,30248162,"2,440.00",Revenue,Thera East Anglia,Daycare
Peterborough City Council,People & Communities,Independent Sector Placements,Services,01/11/2019,30248169,"2,440.00",Revenue,Thera East Anglia,Daycare
Peterborough City Council,People & Communities,Independent Sector Placements,Services,01/11/2019,30248170,"2,440.00",Revenue,Thera East Anglia,Daycare
Peterborough City Council,People & Communities,Independent Sector Placements,Services,01/11/2019,30248180,"2,440.00",Revenue,Thera East Anglia,Daycare
Peterborough City Council,People & Communities,Independent Sector Placements,Services,01/11/2019,30248183,"2,440.00",Revenue,Thera East Anglia,Daycare
Peterborough City Council,People & Communities,Independent Sector Placements,Services,01/11/2019,30248193,"2,440.00",Revenue,Thera East Anglia,Daycare
Peterborough City Council,People & Communities,Independent Sector Placements,Services,01/11/2019,30248182,"3,515.00",Revenue,Thera East Anglia,Daycare
Peterborough City Council,People & Communities,Independent Sector Placements,Social Services,01/11/2019,8000154114,508.08,Revenue,Redacted Personal Information,Direct Payments
Peterborough City Council,People & Communities,Independent Sector Placements,Social Services,01/11/2019,8000154106,"1,066.00",Revenue,Redacted Personal Information,Direct Payments
Peterborough City Council,People & Communities,Independent Sector Placements,Social Services,01/11/2019,8000154116,"1,548.96",Revenue,Redacted Personal Information,Direct Payments
Peterborough City Council,People & Communities,Independent Sector Placements,Social Services,01/11/2019,8000154112,"2,021.19",Revenue,Redacted Personal Information,Direct Payments
Peterborough City Council,People & Communities,Independent Sector Placements,Social Services,01/11/2019,8000154113,"2,838.51",Revenue,Redacted Personal Information,Direct Payments
Peterborough City Council,People & Communities,Independent Sector Placements,Social Services,01/11/2019,8000154119,"3,424.50",Revenue,Redacted Personal Information,Direct Payments
Peterborough City Council,People & Communities,Independent Sector Placements,Social Services,01/11/2019,8000154120,"3,556.70",Revenue,Redacted Personal Information,Direct Payments
Peterborough City Council,People & Communities,Independent Sector Placements,Social Services,01/11/2019,8000154104,"4,994.88",Revenue,Redacted Personal Information,Direct Payments
Peterborough City Council,People & Communities,Independent Sector Placements,Social Services,01/11/2019,8000154121,"5,244.96",Revenue,Redacted Personal Information,Direct Payments
Peterborough City Council,People & Communities,Independent Sector Placements,Social Services,01/11/2019,8000154118,"6,046.35",Revenue,Redacted Personal Information,Direct Payments
Peterborough City Council,People & Communities,Independent Sector Placements,Social Services,01/11/2019,8000154115,"8,044.38",Revenue,Redacted Personal Information,Direct Payments
Peterborough City Council,People & Communities,Independent Sector Placements,Social Services,01/11/2019,8000154117,"9,150.23",Revenue,Redacted Personal Information,Direct Payments
Peterborough City Council,People & Communities,Independent Sector Placements,Social Services,01/11/2019,8000154107,"9,174.00",Revenue,Redacted Personal Information,Direct Payments
Peterborough City Council,People & Communities,Special Educational Needs / Inclusion,Services,01/11/2019,30250120,"3,325.00",Revenue,ELYSIUM HEALTHCARE LTD,Education Expenses
Peterborough City Council,People & Communities,Children?s Social Care,Agency Staff,01/11/2019,30249841,"5,125.40",Revenue,Liquid Personnel,External Temporary Staff
Peterborough City Council,Place & Economy,Highway & Drainage Control,Agency Staff,01/11/2019,30249918,"1,816.50",Revenue,Matchtech,External Temporary Staff
Peterborough City Council,Place & Economy,Planning Compliance,Agency Staff,01/11/2019,30249977,"1,202.75",Revenue,Park Avenue Recruitment Limited,External Temporary Staff
Peterborough City Council,Place & Economy,Planning Compliance,Agency Staff,01/11/2019,30249977,"1,903.45",Revenue,Park Avenue Recruitment Limited,External Temporary Staff
Peterborough City Council,Place & Economy,Highway & Drainage Control,Agency Staff,01/11/2019,30250154,580.5,Revenue,Reed Specialist Recruitment Limited,External Temporary Staff
Peterborough City Council,Resources,Finance,Agency Staff,01/11/2019,30249873,681.17,Revenue,Reed Specialist Recruitment Limited,External Temporary Staff
Peterborough City Council,Resources,Finance,Agency Staff,01/11/2019,30250146,681.17,Revenue,Reed Specialist Recruitment Limited,External Temporary Staff
Peterborough City Council,Governance,Legal Services,Agency Staff,01/11/2019,30250013,716.78,Revenue,Reed Specialist Recruitment Limited,External Temporary Staff
Peterborough City Council,People & Communities,Clare Lodge,Agency Staff,01/11/2019,30249749,896.79,Revenue,Reed Specialist Recruitment Limited,External Temporary Staff
Peterborough City Council,Place & Economy,Highway & Drainage Control,Agency Staff,01/11/2019,30249865,"1,002.00",Revenue,Reed Specialist Recruitment Limited,External Temporary Staff
Peterborough City Council,Governance,Legal Services,Agency Staff,01/11/2019,30250006,"1,132.12",Revenue,Reed Specialist Recruitment Limited,External Temporary Staff
Peterborough City Council,Place & Economy,Highway & Drainage Control,Agency Staff,01/11/2019,30249863,"1,235.80",Revenue,Reed Specialist Recruitment Limited,External Temporary Staff
Peterborough City Council,Place & Economy,Highway & Drainage Control,Agency Staff,01/11/2019,30250004,"1,235.80",Revenue,Reed Specialist Recruitment Limited,External Temporary Staff
Peterborough City Council,Place & Economy,Highway & Drainage Control,Agency Staff,01/11/2019,30250147,"1,294.26",Revenue,Reed Specialist Recruitment Limited,External Temporary Staff
Peterborough City Council,Place & Economy,Highway & Drainage Control,Agency Staff,01/11/2019,30249882,"1,402.80",Revenue,Reed Specialist Recruitment Limited,External Temporary Staff
Peterborough City Council,Governance,Legal Services,Agency Staff,01/11/2019,30249881,"1,505.77",Revenue,Reed Specialist Recruitment Limited,External Temporary Staff
Peterborough City Council,Governance,Legal Services,Agency Staff,01/11/2019,30249871,"1,643.40",Revenue,Reed Specialist Recruitment Limited,External Temporary Staff
Peterborough City Council,Governance,Legal Services,Agency Staff,01/11/2019,30250150,"1,772.75",Revenue,Reed Specialist Recruitment Limited,External Temporary Staff
Peterborough City Council,People & Communities,Commissioning Team,Agency Staff,01/11/2019,30249883,"2,243.60",Revenue,Reed Specialist Recruitment Limited,External Temporary Staff
Peterborough City Council,People & Communities,Commissioning Team,Agency Staff,01/11/2019,30250032,"2,243.60",Revenue,Reed Specialist Recruitment Limited,External Temporary Staff
Peterborough City Council,People & Communities,Finance,Agency Staff,01/11/2019,30249740,"8,260.00",Revenue,WESTCO TRADING LIMITED,External Temporary Staff
Peterborough City Council,People & Communities,Finance,Agency Staff,01/11/2019,30249742,"10,325.00",Revenue,WESTCO TRADING LIMITED,External Temporary Staff
Peterborough City Council,People & Communities,Finance,Agency Staff,01/11/2019,30249741,"11,210.00",Revenue,WESTCO TRADING LIMITED,External Temporary Staff
Peterborough City Council,People & Communities,Finance,Agency Staff,01/11/2019,30249743,"12,980.00",Revenue,WESTCO TRADING LIMITED,External Temporary Staff
Peterborough City Council,People & Communities,Community Capacity,Energy Costs,01/11/2019,30249989,-867.34,Revenue,Corona Energy Retail 4 Limited,Gas
Peterborough City Council,People & Communities,Cultural Services,Energy Costs,01/11/2019,30249989,-709.65,Revenue,Corona Energy Retail 4 Limited,Gas
Peterborough City Council,People & Communities,Cultural Services,Energy Costs,01/11/2019,30249989,"1,992.45",Revenue,Corona Energy Retail 4 Limited,Gas
Peterborough City Council,People & Communities,Home Services Delivery Model,Customer and client receipts - Fees & Charges,01/11/2019,30248786,-834.9,Revenue,P F S Builders & Contractors,Grant Payment
Peterborough City Council,People & Communities,Home Services Delivery Model,Customer and client receipts - Fees & Charges,01/11/2019,30248778,-540.3,Revenue,P F S Builders & Contractors,Grant Payment
Peterborough City Council,Corporate,Corporate,Non Revenue,01/11/2019,30248778,"4,142.30",Capital,P F S Builders & Contractors,Grant Payment
Peterborough City Council,Corporate,Corporate,Non Revenue,01/11/2019,30248786,"6,400.90",Capital,P F S Builders & Contractors,Grant Payment
Peterborough City Council,People & Communities,Cultural Services,Services,01/11/2019,30250073,510,Revenue,Peterborough Centre for Young Musicians,Hired Services
Peterborough City Council,People & Communities,Cultural Services,Services,01/11/2019,30250102,"1,400.00",Revenue,The UK Association for Music Education - Music Mark,Hired Services
Peterborough City Council,People & Communities,HTS & CSC Transport,Contract Hire and Operating Leases,01/11/2019,8000154266,845.87,Revenue,A2B Euro Cars,Hired Transport
Peterborough City Council,People & Communities,HTS & CSC Transport,Contract Hire and Operating Leases,01/11/2019,8000154265,961.82,Revenue,A2B Euro Cars,Hired Transport
Peterborough City Council,People & Communities,HTS & CSC Transport,Contract Hire and Operating Leases,01/11/2019,8000154265,"1,108.17",Revenue,A2B Euro Cars,Hired Transport
Peterborough City Council,People & Communities,HTS & CSC Transport,Contract Hire and Operating Leases,01/11/2019,8000154266,"1,268.82",Revenue,A2B Euro Cars,Hired Transport
Peterborough City Council,People & Communities,HTS & CSC Transport,Contract Hire and Operating Leases,01/11/2019,8000154267,"1,410.00",Revenue,Eames Minibuses Ltd,Hired Transport
Peterborough City Council,People & Communities,HTS & CSC Transport,Contract Hire and Operating Leases,01/11/2019,8000154268,"1,562.74",Revenue,Eames Minibuses Ltd,Hired Transport
Peterborough City Council,People & Communities,HTS & CSC Transport,Contract Hire and Operating Leases,01/11/2019,8000154269,"1,882.54",Revenue,Eames Minibuses Ltd,Hired Transport
Peterborough City Council,People & Communities,HTS & CSC Transport,Contract Hire and Operating Leases,01/11/2019,8000154270,"2,171.40",Revenue,Goldstar Cabs Ltd,Hired Transport
Peterborough City Council,People & Communities,HTS & CSC Transport,Contract Hire and Operating Leases,01/11/2019,8000154271,504,Revenue,King Carz Ltd,Hired Transport
Peterborough City Council,People & Communities,HTS & CSC Transport,Contract Hire and Operating Leases,01/11/2019,8000154275,"2,200.00",Revenue,National Travel Solutions Ltd,Hired Transport
Peterborough City Council,People & Communities,HTS & CSC Transport,Contract Hire and Operating Leases,01/11/2019,8000154274,"1,173.84",Revenue,The Taxi Firm Limited,Hired Transport
Peterborough City Council,People & Communities,Independent Sector Placements,Services,01/11/2019,30248009,516.53,Revenue,K2 CARE LTD,Homecare
Peterborough City Council,People & Communities,Independent Sector Placements,Services,01/11/2019,30249820,530.49,Revenue,K2 CARE LTD,Homecare
Peterborough City Council,People & Communities,Independent Sector Placements,Services,01/11/2019,30248045,589.62,Revenue,K2 CARE LTD,Homecare
Peterborough City Council,People & Communities,Independent Sector Placements,Services,01/11/2019,30248037,633.34,Revenue,K2 CARE LTD,Homecare
Peterborough City Council,People & Communities,Independent Sector Placements,Services,01/11/2019,30248039,881.54,Revenue,K2 CARE LTD,Homecare
Peterborough City Council,People & Communities,Independent Sector Placements,Services,01/11/2019,30248026,968.06,Revenue,K2 CARE LTD,Homecare
Peterborough City Council,People & Communities,Independent Sector Placements,Services,01/11/2019,30248002,984.67,Revenue,K2 CARE LTD,Homecare
Peterborough City Council,People & Communities,Independent Sector Placements,Services,01/11/2019,30249821,999.34,Revenue,K2 CARE LTD,Homecare
Peterborough City Council,People & Communities,Independent Sector Placements,Services,01/11/2019,30247998,"1,000.06",Revenue,K2 CARE LTD,Homecare
Peterborough City Council,People & Communities,Independent Sector Placements,Services,01/11/2019,30248000,"1,073.59",Revenue,K2 CARE LTD,Homecare
Peterborough City Council,People & Communities,Independent Sector Placements,Services,01/11/2019,30248043,"1,167.04",Revenue,K2 CARE LTD,Homecare
Peterborough City Council,People & Communities,Independent Sector Placements,Services,01/11/2019,30248044,"1,186.12",Revenue,K2 CARE LTD,Homecare
Peterborough City Council,People & Communities,Independent Sector Placements,Services,01/11/2019,30248025,"1,290.30",Revenue,K2 CARE LTD,Homecare
Peterborough City Council,People & Communities,Independent Sector Placements,Services,01/11/2019,30247999,"1,326.79",Revenue,K2 CARE LTD,Homecare
Peterborough City Council,People & Communities,Independent Sector Placements,Services,01/11/2019,30248024,"1,484.37",Revenue,K2 CARE LTD,Homecare
Peterborough City Council,People & Communities,Independent Sector Placements,Services,01/11/2019,30248029,"1,568.00",Revenue,K2 CARE LTD,Homecare
Peterborough City Council,People & Communities,Independent Sector Placements,Services,01/11/2019,30248007,"1,653.57",Revenue,K2 CARE LTD,Homecare
Peterborough City Council,People & Communities,Independent Sector Placements,Services,01/11/2019,30248038,"3,707.53",Revenue,K2 CARE LTD,Homecare
Peterborough City Council,People & Communities,Independent Sector Placements,Services,01/11/2019,30247996,"3,835.66",Revenue,K2 CARE LTD,Homecare
Peterborough City Council,People & Communities,Independent Sector Placements,Services,01/11/2019,8000153903,529.2,Revenue,Longhurst Group Limited,Homecare
Peterborough City Council,People & Communities,Independent Sector Placements,Services,01/11/2019,30249794,566.1,Revenue,Longhurst Group Limited,Homecare
Peterborough City Council,People & Communities,Independent Sector Placements,Services,01/11/2019,8000153908,588,Revenue,Longhurst Group Limited,Homecare
Peterborough City Council,People & Communities,Independent Sector Placements,Services,01/11/2019,8000153918,588,Revenue,Longhurst Group Limited,Homecare
Peterborough City Council,People & Communities,Independent Sector Placements,Services,01/11/2019,30249792,599.76,Revenue,Longhurst Group Limited,Homecare
Peterborough City Council,People & Communities,Independent Sector Placements,Services,01/11/2019,8000154142,676.2,Revenue,Longhurst Group Limited,Homecare
Peterborough City Council,People & Communities,Independent Sector Placements,Services,01/11/2019,8000153920,737.94,Revenue,Longhurst Group Limited,Homecare
Peterborough City Council,People & Communities,Independent Sector Placements,Services,01/11/2019,8000153930,"2,947.84",Revenue,Longhurst Group Limited,Homecare
Peterborough City Council,People & Communities,Independent Sector Placements,Services,01/11/2019,30248160,"2,692.60",Revenue,Thera East Anglia,Homecare
Peterborough City Council,People & Communities,Independent Sector Placements,Services,01/11/2019,30248163,"4,040.08",Revenue,Thera East Anglia,Homecare
Peterborough City Council,People & Communities,Independent Sector Placements,Services,01/11/2019,30248159,"4,423.48",Revenue,Thera East Anglia,Homecare
Peterborough City Council,Resources,Insurance,Premises Insurances,01/11/2019,30249801,500,Revenue,JLT speciality Ltd,Insurance Premiums
Peterborough City Council,People & Communities,Commissioning,Services,01/11/2019,30250054,"1,171.51",Revenue,CAPITA Translation and Interpreting,Interpretation Expenses
Peterborough City Council,People & Communities,Commissioning,Services,01/11/2019,30250057,"1,390.80",Revenue,CAPITA Translation and Interpreting,Interpretation Expenses
Peterborough City Council,Governance,Legal Services,Services,01/11/2019,30249849,850,Revenue,Redacted Personal Information,Legal Costs
Peterborough City Council,Place & Economy,Westcombe Engineering,Services,01/11/2019,30249776,576.24,Revenue,Barron Clark Castings Ltd,Materials
Peterborough City Council,Place & Economy,Westcombe Engineering,Services,01/11/2019,30249787,926.1,Revenue,Barron Clark Castings Ltd,Materials
Peterborough City Council,People & Communities,Therapy/Reablement/Community Equipment,"Tools, Equipment, Furniture & Materials",01/11/2019,30250046,"2,224.00",Revenue,P F S Builders & Contractors,Occupational Therapy Equipment
Peterborough City Council,People & Communities,Access to Resources & Specialist Commissioning,Services,01/11/2019,30249861,639.5,Revenue,Allia Future Business Centres Limited,Pest Control
Peterborough City Council,Place & Economy,Growth HoS,Other Establishments,01/11/2019,30250118,"20,000.00",Revenue,Opportunity Peterborough T/A OP Ltd,Professional Services
Peterborough City Council,People & Communities,Children?s Social Care,Relocation,01/11/2019,30250125,"8,000.00",Revenue,Tripod Partners Ltd,Relocation Expenses
Peterborough City Council,People & Communities,Independent Sector Placements,Services,01/11/2019,30249543,940.12,Revenue,RBL Field House Care LTD,Rent
Peterborough City Council,People & Communities,Independent Sector Placements,Services,01/11/2019,30248309,"2,540.00",Revenue,EXCELCARE GLENNFIELD HOUSE,Residential Care
Peterborough City Council,People & Communities,Independent Sector Placements,Services,01/11/2019,30248310,"3,400.00",Revenue,EXCELCARE GLENNFIELD HOUSE,Residential Care
Peterborough City Council,People & Communities,Independent Sector Placements,Services,01/11/2019,30249228,"-6,480.51",Revenue,Anchor Homes,Residential Care
Peterborough City Council,People & Communities,Independent Sector Placements,Services,01/11/2019,30248372,"10,831.51",Revenue,Anchor Homes,Residential Care
Peterborough City Council,People & Communities,Independent Sector Placements,Services,01/11/2019,30249169,910.28,Revenue,Avery House (Peterborough) t/a Brighterkind,Residential Care
Peterborough City Council,People & Communities,Independent Sector Placements,Services,01/11/2019,30249159,"1,044.16",Revenue,Avery House (Peterborough) t/a Brighterkind,Residential Care
Peterborough City Council,People & Communities,Independent Sector Placements,Services,01/11/2019,30249161,"1,055.92",Revenue,Avery House (Peterborough) t/a Brighterkind,Residential Care
Peterborough City Council,People & Communities,Independent Sector Placements,Services,01/11/2019,30249163,"1,363.56",Revenue,Avery House (Peterborough) t/a Brighterkind,Residential Care
Peterborough City Council,People & Communities,Independent Sector Placements,Services,01/11/2019,30249167,"1,397.68",Revenue,Avery House (Peterborough) t/a Brighterkind,Residential Care
Peterborough City Council,People & Communities,Independent Sector Placements,Services,01/11/2019,30249154,"1,426.56",Revenue,Avery House (Peterborough) t/a Brighterkind,Residential Care
Peterborough City Council,People & Communities,Independent Sector Placements,Services,01/11/2019,30249168,"1,449.00",Revenue,Avery House (Peterborough) t/a Brighterkind,Residential Care
Peterborough City Council,People & Communities,Independent Sector Placements,Services,01/11/2019,30249157,"1,466.40",Revenue,Avery House (Peterborough) t/a Brighterkind,Residential Care
Peterborough City Council,People & Communities,Independent Sector Placements,Services,01/11/2019,30249056,"1,606.84",Revenue,Avery House (Peterborough) t/a Brighterkind,Residential Care
Peterborough City Council,People & Communities,Independent Sector Placements,Services,01/11/2019,30249067,"1,628.76",Revenue,Avery House (Peterborough) t/a Brighterkind,Residential Care
Peterborough City Council,People & Communities,Independent Sector Placements,Services,01/11/2019,30249153,"1,770.20",Revenue,Avery House (Peterborough) t/a Brighterkind,Residential Care
Peterborough City Council,People & Communities,Independent Sector Placements,Services,01/11/2019,30249162,"1,776.00",Revenue,Avery House (Peterborough) t/a Brighterkind,Residential Care
Peterborough City Council,People & Communities,Independent Sector Placements,Services,01/11/2019,30249156,"1,852.48",Revenue,Avery House (Peterborough) t/a Brighterkind,Residential Care
Peterborough City Council,People & Communities,Independent Sector Placements,Services,01/11/2019,30249158,"1,915.64",Revenue,Avery House (Peterborough) t/a Brighterkind,Residential Care
Peterborough City Council,People & Communities,Independent Sector Placements,Services,01/11/2019,30249160,"1,915.64",Revenue,Avery House (Peterborough) t/a Brighterkind,Residential Care
Peterborough City Council,People & Communities,Independent Sector Placements,Services,01/11/2019,30249152,"1,937.14",Revenue,Avery House (Peterborough) t/a Brighterkind,Residential Care
Peterborough City Council,People & Communities,Independent Sector Placements,Services,01/11/2019,30249150,"2,000.00",Revenue,Avery House (Peterborough) t/a Brighterkind,Residential Care
Peterborough City Council,People & Communities,Independent Sector Placements,Services,01/11/2019,30249165,"2,179.24",Revenue,Avery House (Peterborough) t/a Brighterkind,Residential Care
Peterborough City Council,People & Communities,Independent Sector Placements,Services,01/11/2019,30249164,"2,210.60",Revenue,Avery House (Peterborough) t/a Brighterkind,Residential Care
Peterborough City Council,People & Communities,Independent Sector Placements,Services,01/11/2019,30249051,"2,260.00",Revenue,Avery House (Peterborough) t/a Brighterkind,Residential Care
Peterborough City Council,People & Communities,Independent Sector Placements,Services,01/11/2019,30249155,"2,260.00",Revenue,Avery House (Peterborough) t/a Brighterkind,Residential Care
Peterborough City Council,People & Communities,Independent Sector Placements,Services,01/11/2019,30248311,"2,001.60",Revenue,EXCELCARE GLENNFIELD HOUSE,Residential Care
Peterborough City Council,People & Communities,Independent Sector Placements,Services,01/11/2019,30248312,"3,200.00",Revenue,EXCELCARE GLENNFIELD HOUSE,Residential Care
Peterborough City Council,People & Communities,Independent Sector Placements,Services,01/11/2019,30248323,"3,600.00",Revenue,EXCELCARE GLENNFIELD HOUSE,Residential Care
Peterborough City Council,People & Communities,Independent Sector Placements,Services,01/11/2019,30248317,"3,720.00",Revenue,EXCELCARE GLENNFIELD HOUSE,Residential Care
Peterborough City Council,People & Communities,Independent Sector Placements,Services,01/11/2019,30248194,643.4,Revenue,Goldcare Homes t/a The Tudors Care Home,Residential Care
Peterborough City Council,People & Communities,Independent Sector Placements,Services,01/11/2019,30247839,917.24,Revenue,Goldcare Homes t/a The Tudors Care Home,Residential Care
Peterborough City Council,People & Communities,Independent Sector Placements,Services,01/11/2019,30247845,959.28,Revenue,Goldcare Homes t/a The Tudors Care Home,Residential Care
Peterborough City Council,People & Communities,Independent Sector Placements,Services,01/11/2019,30248174,"1,045.84",Revenue,Goldcare Homes t/a The Tudors Care Home,Residential Care
Peterborough City Council,People & Communities,Independent Sector Placements,Services,01/11/2019,30247847,"1,178.44",Revenue,Goldcare Homes t/a The Tudors Care Home,Residential Care
Peterborough City Council,People & Communities,Independent Sector Placements,Services,01/11/2019,30248173,"1,252.48",Revenue,Goldcare Homes t/a The Tudors Care Home,Residential Care
Peterborough City Council,People & Communities,Independent Sector Placements,Services,01/11/2019,30247861,"1,288.48",Revenue,Goldcare Homes t/a The Tudors Care Home,Residential Care
Peterborough City Council,People & Communities,Independent Sector Placements,Services,01/11/2019,30247852,"1,352.48",Revenue,Goldcare Homes t/a The Tudors Care Home,Residential Care
Peterborough City Council,People & Communities,Independent Sector Placements,Services,01/11/2019,30247849,"1,398.12",Revenue,Goldcare Homes t/a The Tudors Care Home,Residential Care
Peterborough City Council,People & Communities,Independent Sector Placements,Services,01/11/2019,30247858,"1,482.00",Revenue,Goldcare Homes t/a The Tudors Care Home,Residential Care
Peterborough City Council,People & Communities,Independent Sector Placements,Services,01/11/2019,30247860,"1,489.28",Revenue,Goldcare Homes t/a The Tudors Care Home,Residential Care
Peterborough City Council,People & Communities,Independent Sector Placements,Services,01/11/2019,30247853,"1,551.88",Revenue,Goldcare Homes t/a The Tudors Care Home,Residential Care
Peterborough City Council,People & Communities,Independent Sector Placements,Services,01/11/2019,30247850,"1,573.96",Revenue,Goldcare Homes t/a The Tudors Care Home,Residential Care
Peterborough City Council,People & Communities,Independent Sector Placements,Services,01/11/2019,30248175,"1,630.60",Revenue,Goldcare Homes t/a The Tudors Care Home,Residential Care
Peterborough City Council,People & Communities,Independent Sector Placements,Services,01/11/2019,30248179,"1,656.68",Revenue,Goldcare Homes t/a The Tudors Care Home,Residential Care
Peterborough City Council,People & Communities,Independent Sector Placements,Services,01/11/2019,30247856,"1,684.32",Revenue,Goldcare Homes t/a The Tudors Care Home,Residential Care
Peterborough City Council,People & Communities,Independent Sector Placements,Services,01/11/2019,30247862,"1,730.60",Revenue,Goldcare Homes t/a The Tudors Care Home,Residential Care
Peterborough City Council,People & Communities,Independent Sector Placements,Services,01/11/2019,30248176,"1,730.60",Revenue,Goldcare Homes t/a The Tudors Care Home,Residential Care
Peterborough City Council,People & Communities,Independent Sector Placements,Services,01/11/2019,30248172,"1,776.24",Revenue,Goldcare Homes t/a The Tudors Care Home,Residential Care
Peterborough City Council,People & Communities,Independent Sector Placements,Services,01/11/2019,30248178,"1,902.84",Revenue,Goldcare Homes t/a The Tudors Care Home,Residential Care
Peterborough City Council,People & Communities,Independent Sector Placements,Services,01/11/2019,30248177,"2,300.00",Revenue,Goldcare Homes t/a The Tudors Care Home,Residential Care
Peterborough City Council,People & Communities,Independent Sector Placements,Services,01/11/2019,30248308,"7,855.48",Revenue,Home From Home Care Limited,Residential Care
Peterborough City Council,People & Communities,Independent Sector Placements,Services,01/11/2019,30248306,"8,762.36",Revenue,Home From Home Care Limited,Residential Care
Peterborough City Council,People & Communities,Independent Sector Placements,Services,01/11/2019,30248305,"8,789.88",Revenue,Home From Home Care Limited,Residential Care
Peterborough City Council,People & Communities,Independent Sector Placements,Services,01/11/2019,30248307,"10,856.48",Revenue,Home From Home Care Limited,Residential Care
Peterborough City Council,People & Communities,Independent Sector Placements,Services,01/11/2019,30248003,"2,347.80",Revenue,Linkage Community Trust Limited,Residential Care
Peterborough City Council,People & Communities,Independent Sector Placements,Services,01/11/2019,30249540,536,Revenue,RBL Field House Care LTD,Residential Care
Peterborough City Council,People & Communities,Independent Sector Placements,Services,01/11/2019,30249558,977.08,Revenue,RBL Field House Care LTD,Residential Care
Peterborough City Council,People & Communities,Independent Sector Placements,Services,01/11/2019,30249541,"1,075.36",Revenue,RBL Field House Care LTD,Residential Care
Peterborough City Council,People & Communities,Independent Sector Placements,Services,01/11/2019,30249544,"1,156.72",Revenue,RBL Field House Care LTD,Residential Care
Peterborough City Council,People & Communities,Independent Sector Placements,Services,01/11/2019,30249551,"1,252.48",Revenue,RBL Field House Care LTD,Residential Care
Peterborough City Council,People & Communities,Independent Sector Placements,Services,01/11/2019,30249553,"1,286.84",Revenue,RBL Field House Care LTD,Residential Care
Peterborough City Council,People & Communities,Independent Sector Placements,Services,01/11/2019,30249549,"1,336.72",Revenue,RBL Field House Care LTD,Residential Care
Peterborough City Council,People & Communities,Independent Sector Placements,Services,01/11/2019,30249550,"1,574.60",Revenue,RBL Field House Care LTD,Residential Care
Peterborough City Council,People & Communities,Independent Sector Placements,Services,01/11/2019,30249548,"1,579.60",Revenue,RBL Field House Care LTD,Residential Care
Peterborough City Council,People & Communities,Independent Sector Placements,Services,01/11/2019,30249538,"1,644.16",Revenue,RBL Field House Care LTD,Residential Care
Peterborough City Council,People & Communities,Independent Sector Placements,Services,01/11/2019,30249556,"1,660.20",Revenue,RBL Field House Care LTD,Residential Care
Peterborough City Council,People & Communities,Independent Sector Placements,Services,01/11/2019,30249554,"1,688.20",Revenue,RBL Field House Care LTD,Residential Care
Peterborough City Council,People & Communities,Independent Sector Placements,Services,01/11/2019,30249547,"1,702.96",Revenue,RBL Field House Care LTD,Residential Care
Peterborough City Council,People & Communities,Independent Sector Placements,Services,01/11/2019,30249539,"1,730.60",Revenue,RBL Field House Care LTD,Residential Care
Peterborough City Council,People & Communities,Independent Sector Placements,Services,01/11/2019,30249552,"1,734.96",Revenue,RBL Field House Care LTD,Residential Care
Peterborough City Council,People & Communities,Independent Sector Placements,Services,01/11/2019,30249542,"1,830.60",Revenue,RBL Field House Care LTD,Residential Care
Peterborough City Council,People & Communities,Independent Sector Placements,Services,01/11/2019,30249546,"2,400.00",Revenue,RBL Field House Care LTD,Residential Care
Peterborough City Council,People & Communities,Independent Sector Placements,Services,01/11/2019,30249900,811,Revenue,Richmond Fellowship (The),Residential Care
Peterborough City Council,People & Communities,Independent Sector Placements,Services,01/11/2019,30249896,823,Revenue,Richmond Fellowship (The),Residential Care
Peterborough City Council,People & Communities,Independent Sector Placements,Services,01/11/2019,30249901,823,Revenue,Richmond Fellowship (The),Residential Care
Peterborough City Council,People & Communities,Independent Sector Placements,Services,01/11/2019,30248041,698.17,Revenue,K2 CARE LTD,Respite Care 
Peterborough City Council,People & Communities,Independent Sector Placements,Services,01/11/2019,30249062,571.43,Revenue,Avery House (Peterborough) t/a Brighterkind,Respite Care 
Peterborough City Council,People & Communities,Independent Sector Placements,Services,01/11/2019,30245424,621.78,Revenue,Avery House (Peterborough) t/a Brighterkind,Respite Care 
Peterborough City Council,People & Communities,Independent Sector Placements,Services,01/11/2019,30249057,"1,010.42",Revenue,Avery House (Peterborough) t/a Brighterkind,Respite Care 
Peterborough City Council,People & Communities,Independent Sector Placements,Services,01/11/2019,30249052,"1,314.29",Revenue,Avery House (Peterborough) t/a Brighterkind,Respite Care 
Peterborough City Council,People & Communities,Independent Sector Placements,Services,01/11/2019,30249054,"1,399.01",Revenue,Avery House (Peterborough) t/a Brighterkind,Respite Care 
Peterborough City Council,People & Communities,Independent Sector Placements,Services,01/11/2019,30249060,"1,643.42",Revenue,Avery House (Peterborough) t/a Brighterkind,Respite Care 
Peterborough City Council,People & Communities,Independent Sector Placements,Services,01/11/2019,30249050,"2,176.24",Revenue,Avery House (Peterborough) t/a Brighterkind,Respite Care 
Peterborough City Council,People & Communities,Independent Sector Placements,Services,01/11/2019,30247863,"2,385.71",Revenue,Goldcare Homes t/a The Tudors Care Home,Respite Care 
Peterborough City Council,People & Communities,Independent Sector Placements,Services,01/11/2019,30249555,857.14,Revenue,RBL Field House Care LTD,Respite Care 
Peterborough City Council,People & Communities,Independent Sector Placements,Services,01/11/2019,30249557,942.81,Revenue,RBL Field House Care LTD,Respite Care 
Peterborough City Council,People & Communities,Independent Sector Placements,Services,01/11/2019,30249545,"1,200.00",Revenue,RBL Field House Care LTD,Respite Care 
Peterborough City Council,Governance,Legal Services,Services,01/11/2019,30249854,"10,899.00",Revenue,Iken Business Ltd,Subscriptions
Peterborough City Council,Place & Economy,Network and Traffic Management,Members Allowances,01/11/2019,30246688,600.79,Revenue,British Telecom PLC,Telephones
Peterborough City Council,People & Communities,Housing,Services,01/11/2019,30247789,"2,461.00",Revenue,Cross Keys Homes,Temporary Accommodation Costs
Peterborough City Council,People & Communities,Housing,Services,01/11/2019,30248926,"8,245.17",Revenue,Eastfield Guesthouse,Temporary Accommodation Costs
Peterborough City Council,People & Communities,Housing,Services,01/11/2019,30249645,"13,570.08",Revenue,Eastfield Guesthouse,Temporary Accommodation Costs
Peterborough City Council,Place & Economy,Growth HoS,Other Establishments,01/11/2019,30250119,"68,125.00",Revenue,Opportunity Peterborough T/A OP Ltd,Third Party Payments - Contract
Peterborough City Council,Chief Executives,HR WFD & Training,Interview & Training Expenses,01/11/2019,30249935,800,Revenue,In-Trac Training & Consultancy Services,Training
Peterborough City Council,Resources,Commercial Propety,Services,01/11/2019,30249845,"1,000.00",Revenue,Wilks Head & Eve,Valuations
Peterborough City Council,People & Communities,Access to Resources & Specialist Commissioning,Schools,04/11/2019,30249832,"2,750.00",Revenue,Florinee Homes Ltd,Boarding Out Fees
Peterborough City Council,People & Communities,Access to Resources & Specialist Commissioning,Schools,04/11/2019,30250177,"2,750.00",Revenue,Florinee Homes Ltd,Boarding Out Fees
Peterborough City Council,People & Communities,External Education Placements,Schools,04/11/2019,30250239,"46,233.33",Revenue,The Chartwell Group,Boarding Out Fees
Peterborough City Council,Corporate,Corporate,Non Revenue,04/11/2019,30250076,"3,600.00",Capital,M J Greaves,Building And Site Works
Peterborough City Council,Corporate,Corporate,Non Revenue,04/11/2019,30246268,"2,750.00",Capital,NPS Peterborough Ltd,Building And Site Works
Peterborough City Council,Resources,Corporate Services,Services,04/11/2019,30249731,"6,125.01",Revenue,CapacityGrid,Consultants Fees
Peterborough City Council,Resources,Corporate Services,Services,04/11/2019,30249733,"8,020.86",Revenue,CapacityGrid,Consultants Fees
Peterborough City Council,Resources,Corporate Services,Services,04/11/2019,30249732,"10,441.69",Revenue,CapacityGrid,Consultants Fees
Peterborough City Council,Corporate,Corporate,Non Revenue,04/11/2019,30248743,"1,082.45",Capital,NPS Peterborough Ltd,Consultants Fees
Peterborough City Council,Corporate,Corporate,Non Revenue,04/11/2019,30246282,"3,000.00",Capital,NPS Peterborough Ltd,Consultants Fees
Peterborough City Council,Corporate,Corporate,Non Revenue,04/11/2019,30246266,"6,225.00",Capital,NPS Peterborough Ltd,Consultants Fees
Peterborough City Council,Corporate,Corporate,Non Revenue,04/11/2019,30248737,"7,570.52",Capital,NPS Peterborough Ltd,Consultants Fees
Peterborough City Council,Corporate,Corporate,Non Revenue,04/11/2019,30248060,"12,000.00",Capital,NPS Peterborough Ltd,Consultants Fees
Peterborough City Council,Corporate,Corporate,Non Revenue,04/11/2019,30245226,"7,701.00",Capital,Peterborough Limited,Consultants Fees
Peterborough City Council,Place & Economy,"Markets, Tourism & Events",Services,04/11/2019,30249875,"2,828.60",Revenue,Reed Specialist Recruitment Limited,Consultants Fees
Peterborough City Council,Place & Economy,Transport & Infrastructure Commissioning,Services,04/11/2019,30248745,"5,721.63",Revenue,Stagecoach in Peterborough,Contractors
Peterborough City Council,People & Communities,Independent Sector Placements,Services,04/11/2019,30249719,"1,260.00",Revenue,Thera East Anglia,Daycare
Peterborough City Council,People & Communities,Independent Sector Placements,Services,04/11/2019,30249721,"1,464.00",Revenue,Thera East Anglia,Daycare
Peterborough City Council,People & Communities,Independent Sector Placements,Services,04/11/2019,30249717,"2,440.00",Revenue,Thera East Anglia,Daycare
Peterborough City Council,Place & Economy,Transport & Infrastructure Commissioning,Agency Staff,04/11/2019,30249952,"4,074.00",Revenue,Outspoken Training LLP,External Temporary Staff
Peterborough City Council,People & Communities,Early Help ASC/CSC,Agency Staff,04/11/2019,30250184,569.83,Revenue,Reed Specialist Recruitment Limited,External Temporary Staff
Peterborough City Council,People & Communities,Clare Lodge,Agency Staff,04/11/2019,30249769,624.36,Revenue,Reed Specialist Recruitment Limited,External Temporary Staff
Peterborough City Council,People & Communities,Finance,Agency Staff,04/11/2019,30249766,697.36,Revenue,Reed Specialist Recruitment Limited,External Temporary Staff
Peterborough City Council,People & Communities,Clare Lodge,Agency Staff,04/11/2019,30249746,956.78,Revenue,Reed Specialist Recruitment Limited,External Temporary Staff
Peterborough City Council,Place & Economy,Highway & Drainage Control,Agency Staff,04/11/2019,30250180,"1,018.71",Revenue,Reed Specialist Recruitment Limited,External Temporary Staff
Peterborough City Council,Place & Economy,Highway & Drainage Control,Agency Staff,04/11/2019,30250158,"1,336.00",Revenue,Reed Specialist Recruitment Limited,External Temporary Staff
Peterborough City Council,Place & Economy,Development Management,Agency Staff,04/11/2019,30249867,"1,365.01",Revenue,Reed Specialist Recruitment Limited,External Temporary Staff
Peterborough City Council,Governance,Legal Services,Agency Staff,04/11/2019,30250181,"2,025.38",Revenue,Reed Specialist Recruitment Limited,External Temporary Staff
Peterborough City Council,Customer & Digital Services,ICT,Agency Staff,04/11/2019,30249870,"2,268.60",Revenue,Reed Specialist Recruitment Limited,External Temporary Staff
Peterborough City Council,People & Communities,Finance,Agency Staff,04/11/2019,30249791,"11,800.00",Revenue,WESTCO TRADING LIMITED,External Temporary Staff
Peterborough City Council,People & Communities,Child Health,Services,04/11/2019,30242866,"4,619.06",Revenue,Circles Network,Financial Assistance
Peterborough City Council,People & Communities,Child Health,Services,04/11/2019,30247157,"6,743.75",Revenue,Circles Network,Financial Assistance
Peterborough City Council,People & Communities,Housing,Services,04/11/2019,30245352,533,Revenue,Cross Keys Homes,Financial Assistance
Peterborough City Council,People & Communities,Housing,Services,04/11/2019,30247787,"1,529.10",Revenue,Cross Keys Homes,Financial Assistance
Peterborough City Council,People & Communities,Housing,Services,04/11/2019,30247792,"1,813.42",Revenue,Cross Keys Homes,Financial Assistance
Peterborough City Council,People & Communities,Housing,Services,04/11/2019,30247790,"1,829.10",Revenue,Cross Keys Homes,Financial Assistance
Peterborough City Council,People & Communities,Housing,Services,04/11/2019,30246295,"5,000.00",Revenue,Cross Keys Homes,Financial Assistance
Peterborough City Council,People & Communities,Housing,Services,04/11/2019,30247797,"5,708.00",Revenue,Cross Keys Homes,Financial Assistance
Peterborough City Council,People & Communities,Housing,Services,04/11/2019,30247795,"16,016.00",Revenue,Cross Keys Homes,Financial Assistance
Peterborough City Council,People & Communities,Housing,Services,04/11/2019,30247793,"33,110.00",Revenue,Cross Keys Homes,Financial Assistance
Peterborough City Council,People & Communities,Housing,Services,04/11/2019,30247794,"91,627.90",Revenue,Cross Keys Homes,Financial Assistance
Peterborough City Council,Corporate,Corporate,Non Revenue,04/11/2019,30249736,"3,420.00",Capital,Percy Martin Ltd,Furniture And Equip Purchase
Peterborough City Council,People & Communities,Home Services Delivery Model,Customer and client receipts - Fees & Charges,04/11/2019,30249853,-630.45,Revenue,Gaswise Services Ltd,Grant Payment
Peterborough City Council,Corporate,Corporate,Non Revenue,04/11/2019,30249853,"-8,000.00",Capital,Gaswise Services Ltd,Grant Payment
Peterborough City Council,Corporate,Corporate,Non Revenue,04/11/2019,30249853,"-5,000.00",Capital,Gaswise Services Ltd,Grant Payment
Peterborough City Council,Corporate,Corporate,Non Revenue,04/11/2019,30249853,"-4,000.00",Capital,Gaswise Services Ltd,Grant Payment
Peterborough City Council,Corporate,Corporate,Non Revenue,04/11/2019,30249853,"-1,458.00",Capital,Gaswise Services Ltd,Grant Payment
Peterborough City Council,Corporate,Corporate,Non Revenue,04/11/2019,30249853,"-1,200.00",Capital,Gaswise Services Ltd,Grant Payment
Peterborough City Council,Corporate,Corporate,Non Revenue,04/11/2019,30249853,-836.25,Capital,Gaswise Services Ltd,Grant Payment
Peterborough City Council,Corporate,Corporate,Non Revenue,04/11/2019,30249853,-600,Capital,Gaswise Services Ltd,Grant Payment
Peterborough City Council,Corporate,Corporate,Non Revenue,04/11/2019,30249853,-575,Capital,Gaswise Services Ltd,Grant Payment
Peterborough City Council,Corporate,Corporate,Non Revenue,04/11/2019,30249853,"26,721.40",Capital,Gaswise Services Ltd,Grant Payment
Peterborough City Council,Corporate,Corporate,Non Revenue,04/11/2019,30249789,"5,574.05",Capital,Lindum Group Ltd,Grant Payment
Peterborough City Council,People & Communities,Early Years & Quality Improvement,Services,04/11/2019,30249729,"21,620.94",Revenue,St Josephs Day Nursery,Grant Payment
Peterborough City Council,People & Communities,Home Services Delivery Model,Customer and client receipts - Fees & Charges,04/11/2019,30249789,-727.05,Revenue,Lindum Group Ltd,Home Care
Peterborough City Council,People & Communities,Independent Sector Placements,Services,04/11/2019,30250166,509.87,Revenue,Bee?s Care Ltd,Homecare
Peterborough City Council,People & Communities,Independent Sector Placements,Services,04/11/2019,30250164,708.54,Revenue,Bee?s Care Ltd,Homecare
Peterborough City Council,People & Communities,Independent Sector Placements,Services,04/11/2019,30250163,881.79,Revenue,Bee?s Care Ltd,Homecare
Peterborough City Council,People & Communities,Independent Sector Placements,Services,04/11/2019,30250165,964.25,Revenue,Bee?s Care Ltd,Homecare
Peterborough City Council,People & Communities,Independent Sector Placements,Services,04/11/2019,30249947,"1,235.05",Revenue,Bee?s Care Ltd,Homecare
Peterborough City Council,People & Communities,Independent Sector Placements,Services,04/11/2019,30249940,"1,993.74",Revenue,Bee?s Care Ltd,Homecare
Peterborough City Council,People & Communities,Independent Sector Placements,Services,04/11/2019,30249738,"2,063.07",Revenue,Bee?s Care Ltd,Homecare
Peterborough City Council,People & Communities,Independent Sector Placements,Services,04/11/2019,30249799,"2,195.94",Revenue,Bee?s Care Ltd,Homecare
Peterborough City Council,People & Communities,Independent Sector Placements,Services,04/11/2019,30249944,"2,449.68",Revenue,Bee?s Care Ltd,Homecare
Peterborough City Council,People & Communities,Independent Sector Placements,Services,04/11/2019,30250053,"3,097.79",Revenue,Bee?s Care Ltd,Homecare
Peterborough City Council,People & Communities,Independent Sector Placements,Services,04/11/2019,30249739,"3,127.86",Revenue,Bee?s Care Ltd,Homecare
Peterborough City Council,People & Communities,Independent Sector Placements,Services,04/11/2019,30249737,"3,266.66",Revenue,Bee?s Care Ltd,Homecare
Peterborough City Council,People & Communities,Independent Sector Placements,Services,04/11/2019,30249943,"4,880.15",Revenue,Bee?s Care Ltd,Homecare
Peterborough City Council,People & Communities,Independent Sector Placements,Services,04/11/2019,30249822,"1,673.47",Revenue,K2 CARE LTD,Homecare
Peterborough City Council,People & Communities,Independent Sector Placements,Services,04/11/2019,30249823,"2,440.21",Revenue,K2 CARE LTD,Homecare
Peterborough City Council,People & Communities,Independent Sector Placements,Services,04/11/2019,30248644,568,Revenue,Mencap,Homecare
Peterborough City Council,People & Communities,Independent Sector Placements,Services,04/11/2019,30248681,570,Revenue,Mencap,Homecare
Peterborough City Council,People & Communities,Independent Sector Placements,Services,04/11/2019,30248671,600,Revenue,Mencap,Homecare
Peterborough City Council,People & Communities,Independent Sector Placements,Services,04/11/2019,30248682,600,Revenue,Mencap,Homecare
Peterborough City Council,People & Communities,Independent Sector Placements,Services,04/11/2019,30248670,720,Revenue,Mencap,Homecare
Peterborough City Council,People & Communities,Independent Sector Placements,Services,04/11/2019,30248643,900,Revenue,Mencap,Homecare
Peterborough City Council,People & Communities,Independent Sector Placements,Services,04/11/2019,30248669,900,Revenue,Mencap,Homecare
Peterborough City Council,People & Communities,Independent Sector Placements,Services,04/11/2019,30248684,900,Revenue,Mencap,Homecare
Peterborough City Council,People & Communities,Independent Sector Placements,Services,04/11/2019,30248673,"1,170.00",Revenue,Mencap,Homecare
Peterborough City Council,People & Communities,Independent Sector Placements,Services,04/11/2019,30248679,"1,560.00",Revenue,Mencap,Homecare
Peterborough City Council,People & Communities,Independent Sector Placements,Services,04/11/2019,30248678,"1,740.00",Revenue,Mencap,Homecare
Peterborough City Council,People & Communities,Independent Sector Placements,Services,04/11/2019,30248668,"2,050.00",Revenue,Mencap,Homecare
Peterborough City Council,People & Communities,Independent Sector Placements,Services,04/11/2019,30248646,"2,320.00",Revenue,Mencap,Homecare
Peterborough City Council,People & Communities,Independent Sector Placements,Services,04/11/2019,30248674,"2,340.00",Revenue,Mencap,Homecare
Peterborough City Council,People & Communities,Independent Sector Placements,Services,04/11/2019,30248651,"2,434.88",Revenue,Mencap,Homecare
Peterborough City Council,People & Communities,Independent Sector Placements,Services,04/11/2019,30248665,"8,020.28",Revenue,Mencap,Homecare
Peterborough City Council,People & Communities,Independent Sector Placements,Services,04/11/2019,30248686,"8,050.80",Revenue,Mencap,Homecare
Peterborough City Council,People & Communities,Independent Sector Placements,Services,04/11/2019,30248685,"8,469.72",Revenue,Mencap,Homecare
Peterborough City Council,People & Communities,Independent Sector Placements,Services,04/11/2019,30248666,"8,889.72",Revenue,Mencap,Homecare
Peterborough City Council,Resources,Insurance,Premises Insurances,04/11/2019,30248698,"13,388.84",Revenue,Zurich Insurance Company,Insurance Premiums
Peterborough City Council,Resources,Insurance,Premises Insurances,04/11/2019,30248699,"13,978.53",Revenue,Zurich Insurance Company,Insurance Premiums
Peterborough City Council,Resources,Insurance,Premises Insurances,04/11/2019,30248700,"19,062.25",Revenue,Zurich Insurance Company,Insurance Premiums
Peterborough City Council,Resources,Insurance,Premises Insurances,04/11/2019,30248701,"43,736.12",Revenue,Zurich Insurance Company,Insurance Premiums
Peterborough City Council,Resources,Commercial Propety,Services,04/11/2019,30250071,"3,280.00",Revenue,HM Revenues & Customs,Legal Costs
Peterborough City Council,Resources,Commercial Propety,Repair & Maintenance of Buildings,04/11/2019,30248739,"1,590.00",Revenue,NPS Peterborough Ltd,Maintenance
Peterborough City Council,Place & Economy,Westcombe Engineering,Services,04/11/2019,30250179,"1,848.60",Revenue,AALCO,Materials
Peterborough City Council,Place & Economy,Westcombe Engineering,Services,04/11/2019,30249777,565.95,Revenue,Barron Clark Castings Ltd,Materials
Peterborough City Council,People & Communities,External Education Placements,Services,04/11/2019,30250072,"9,094.76",Revenue,New Bridge School,Out Of Area Education Costs
Peterborough City Council,People & Communities,External Education Placements,Services,04/11/2019,30250044,"1,974.92",Revenue,The Arnewood School,Out Of Area Education Costs
Peterborough City Council,Customer & Digital Services,Marketing & Communications,Services,04/11/2019,30249783,"1,065.00",Revenue,Print 4 Business Ltd,Printing
Peterborough City Council,Resources,Commercial Propety,Rents,04/11/2019,30250024,714.47,Revenue,Redacted Personal Information,Rent
Peterborough City Council,People & Communities,Independent Sector Placements,Services,04/11/2019,30249722,"-40,184.69",Revenue,Barchester Healthcare (Werrington Lodge),Residential Care
Peterborough City Council,People & Communities,Independent Sector Placements,Services,04/11/2019,30248261,"1,120.24",Revenue,Barchester Healthcare (Werrington Lodge),Residential Care
Peterborough City Council,People & Communities,Independent Sector Placements,Services,04/11/2019,30248280,"1,211.96",Revenue,Barchester Healthcare (Werrington Lodge),Residential Care
Peterborough City Council,People & Communities,Independent Sector Placements,Services,04/11/2019,30248272,"1,471.16",Revenue,Barchester Healthcare (Werrington Lodge),Residential Care
Peterborough City Council,People & Communities,Independent Sector Placements,Services,04/11/2019,30248273,"1,496.00",Revenue,Barchester Healthcare (Werrington Lodge),Residential Care
Peterborough City Council,People & Communities,Independent Sector Placements,Services,04/11/2019,30248240,"1,637.68",Revenue,Barchester Healthcare (Werrington Lodge),Residential Care
Peterborough City Council,People & Communities,Independent Sector Placements,Services,04/11/2019,30248263,"1,652.88",Revenue,Barchester Healthcare (Werrington Lodge),Residential Care
Peterborough City Council,People & Communities,Independent Sector Placements,Services,04/11/2019,30248289,"1,685.00",Revenue,Barchester Healthcare (Werrington Lodge),Residential Care
Peterborough City Council,People & Communities,Independent Sector Placements,Services,04/11/2019,30248264,"1,685.72",Revenue,Barchester Healthcare (Werrington Lodge),Residential Care
Peterborough City Council,People & Communities,Independent Sector Placements,Services,04/11/2019,30248297,"1,705.80",Revenue,Barchester Healthcare (Werrington Lodge),Residential Care
Peterborough City Council,People & Communities,Independent Sector Placements,Services,04/11/2019,30248266,"1,735.00",Revenue,Barchester Healthcare (Werrington Lodge),Residential Care
Peterborough City Council,People & Communities,Independent Sector Placements,Services,04/11/2019,30248246,"1,769.56",Revenue,Barchester Healthcare (Werrington Lodge),Residential Care
Peterborough City Council,People & Communities,Independent Sector Placements,Services,04/11/2019,30248217,"1,775.44",Revenue,Barchester Healthcare (Werrington Lodge),Residential Care
Peterborough City Council,People & Communities,Independent Sector Placements,Services,04/11/2019,30248255,"1,788.12",Revenue,Barchester Healthcare (Werrington Lodge),Residential Care
Peterborough City Council,People & Communities,Independent Sector Placements,Services,04/11/2019,30248283,"1,799.80",Revenue,Barchester Healthcare (Werrington Lodge),Residential Care
Peterborough City Council,People & Communities,Independent Sector Placements,Services,04/11/2019,30248288,"1,832.96",Revenue,Barchester Healthcare (Werrington Lodge),Residential Care
Peterborough City Council,People & Communities,Independent Sector Placements,Services,04/11/2019,30248281,"1,850.40",Revenue,Barchester Healthcare (Werrington Lodge),Residential Care
Peterborough City Council,People & Communities,Independent Sector Placements,Services,04/11/2019,30248282,"1,850.92",Revenue,Barchester Healthcare (Werrington Lodge),Residential Care
Peterborough City Council,People & Communities,Independent Sector Placements,Services,04/11/2019,30248267,"1,903.20",Revenue,Barchester Healthcare (Werrington Lodge),Residential Care
Peterborough City Council,People & Communities,Independent Sector Placements,Services,04/11/2019,30248293,"1,906.84",Revenue,Barchester Healthcare (Werrington Lodge),Residential Care
Peterborough City Council,People & Communities,Independent Sector Placements,Services,04/11/2019,30248268,"1,987.32",Revenue,Barchester Healthcare (Werrington Lodge),Residential Care
Peterborough City Council,People & Communities,Independent Sector Placements,Services,04/11/2019,30248256,"2,070.40",Revenue,Barchester Healthcare (Werrington Lodge),Residential Care
Peterborough City Council,People & Communities,Independent Sector Placements,Services,04/11/2019,30248286,"2,447.36",Revenue,Barchester Healthcare (Werrington Lodge),Residential Care
Peterborough City Council,People & Communities,Independent Sector Placements,Services,04/11/2019,30248238,"2,487.36",Revenue,Barchester Healthcare (Werrington Lodge),Residential Care
Peterborough City Council,People & Communities,Independent Sector Placements,Services,04/11/2019,30248265,"2,487.36",Revenue,Barchester Healthcare (Werrington Lodge),Residential Care
Peterborough City Council,People & Communities,Independent Sector Placements,Services,04/11/2019,30248277,"2,487.36",Revenue,Barchester Healthcare (Werrington Lodge),Residential Care
Peterborough City Council,People & Communities,Independent Sector Placements,Services,04/11/2019,30250235,575.04,Revenue,Alysia Caring Ltd T/a Cherry Blossom care Home,Residential Care
Peterborough City Council,People & Communities,Independent Sector Placements,Services,04/11/2019,30248271,"3,180.00",Revenue,Barchester Healthcare (Werrington Lodge),Residential Care
Peterborough City Council,People & Communities,Independent Sector Placements,Services,04/11/2019,30249859,"5,674.64",Revenue,Enham Trust,Residential Care
Peterborough City Council,People & Communities,Independent Sector Placements,Services,04/11/2019,30250271,660,Revenue,Redacted Personal Information,Residential Care
Peterborough City Council,People & Communities,Independent Sector Placements,Services,04/11/2019,30250250,685.28,Revenue,Redacted Personal Information,Residential Care
Peterborough City Council,People & Communities,Independent Sector Placements,Services,04/11/2019,30250261,756,Revenue,Redacted Personal Information,Residential Care
Peterborough City Council,People & Communities,Independent Sector Placements,Services,04/11/2019,30249891,"2,277.92",Revenue,Richmond Fellowship (The),Residential Care
Peterborough City Council,People & Communities,Independent Sector Placements,Services,04/11/2019,30249862,"5,708.72",Revenue,Sense,Residential Care
Peterborough City Council,Resources,Commercial Propety,Services,04/11/2019,30250159,"10,000.00",Revenue,Bee Lettings Ltd,Residential Care
Peterborough City Council,People & Communities,Independent Sector Placements,Services,04/11/2019,30248287,"1,660.00",Revenue,Barchester Healthcare (Werrington Lodge),Respite Care 
Peterborough City Council,People & Communities,Independent Sector Placements,Services,04/11/2019,30248252,"1,800.00",Revenue,Barchester Healthcare (Werrington Lodge),Respite Care 
Peterborough City Council,People & Communities,Housing,Services,04/11/2019,30247791,"2,002.00",Revenue,Cross Keys Homes,Temporary Accommodation Costs
Peterborough City Council,People & Communities,Housing,Services,04/11/2019,30247786,"2,301.62",Revenue,Cross Keys Homes,Temporary Accommodation Costs
Peterborough City Council,People & Communities,Housing,Services,04/11/2019,30250160,"8,213.00",Revenue,Stef & Philips Ltd,Temporary Accommodation Costs
Peterborough City Council,People & Communities,Housing,Services,04/11/2019,30250160,"33,651.00",Revenue,Stef & Philips Ltd,Temporary Accommodation Costs
Peterborough City Council,People & Communities,Cohesion,Other Establishments,04/11/2019,30250285,"3,685.00",Revenue,P?Boro Council For Voluntary Srvs (PCVS),Third Party Payments - Contract
Peterborough City Council,People & Communities,Independent Sector Placements,Services,06/11/2019,30250621,630,Revenue,Longhurst Group Limited,Assistive Technology
Peterborough City Council,People & Communities,Independent Sector Placements,Services,06/11/2019,30250623,697.5,Revenue,Longhurst Group Limited,Assistive Technology
Peterborough City Council,People & Communities,Independent Sector Placements,Services,06/11/2019,30250675,933.75,Revenue,Longhurst Group Limited,Assistive Technology
Peterborough City Council,People & Communities,Independent Sector Placements,Services,06/11/2019,30250494,945,Revenue,Longhurst Group Limited,Assistive Technology
Peterborough City Council,People & Communities,Independent Sector Placements,Services,06/11/2019,30250583,945,Revenue,Longhurst Group Limited,Assistive Technology
Peterborough City Council,People & Communities,Access to Resources & Specialist Commissioning,Schools,06/11/2019,30250097,996.34,Revenue,Acorn Care & Education Ltd,Boarding Out Fees
Peterborough City Council,People & Communities,Access to Resources & Specialist Commissioning,Schools,06/11/2019,30250787,"16,257.00",Revenue,Aurora Care & Education Opco Ltd,Boarding Out Fees
Peterborough City Council,People & Communities,Access to Resources & Specialist Commissioning,Schools,06/11/2019,30249332,"21,406.80",Revenue,Dove Adolescent Services Ltd,Boarding Out Fees
Peterborough City Council,People & Communities,Access to Resources & Specialist Commissioning,Schools,06/11/2019,30247399,"12,546.14",Revenue,Ethelbert Childrens Services,Boarding Out Fees
Peterborough City Council,People & Communities,Access to Resources & Specialist Commissioning,Schools,06/11/2019,30249373,"18,074.19",Revenue,Exeter Royal Academy for Deaf Education,Boarding Out Fees
Peterborough City Council,People & Communities,Access to Resources & Specialist Commissioning,Schools,06/11/2019,30247498,624.02,Revenue,Glenholme Healthcare Limited,Boarding Out Fees
Peterborough City Council,People & Communities,Access to Resources & Specialist Commissioning,Schools,06/11/2019,30249475,"20,150.00",Revenue,Hillcrest Children Serv(2)Ltd t/a Options BESD (1) Ltd,Boarding Out Fees
Peterborough City Council,People & Communities,Access to Resources & Specialist Commissioning,Schools,06/11/2019,30249589,"16,810.42",Revenue,Kedleston (Wings Education) Limited,Boarding Out Fees
Peterborough City Council,People & Communities,External Education Placements,Schools,06/11/2019,30248556,"1,725.00",Revenue,Kirkstone House School,Boarding Out Fees
Peterborough City Council,People & Communities,External Education Placements,Schools,06/11/2019,30248565,"3,505.00",Revenue,Kirkstone House School,Boarding Out Fees
Peterborough City Council,People & Communities,External Education Placements,Schools,06/11/2019,30248541,"4,207.00",Revenue,Kirkstone House School,Boarding Out Fees
Peterborough City Council,People & Communities,External Education Placements,Schools,06/11/2019,30248543,"4,207.00",Revenue,Kirkstone House School,Boarding Out Fees
Peterborough City Council,People & Communities,External Education Placements,Schools,06/11/2019,30248549,"4,207.00",Revenue,Kirkstone House School,Boarding Out Fees
Peterborough City Council,People & Communities,External Education Placements,Schools,06/11/2019,30248555,"4,207.00",Revenue,Kirkstone House School,Boarding Out Fees
Peterborough City Council,People & Communities,External Education Placements,Schools,06/11/2019,30248562,"4,207.00",Revenue,Kirkstone House School,Boarding Out Fees
Peterborough City Council,People & Communities,External Education Placements,Schools,06/11/2019,30248568,"4,207.00",Revenue,Kirkstone House School,Boarding Out Fees
Peterborough City Council,People & Communities,External Education Placements,Schools,06/11/2019,30248576,"4,207.00",Revenue,Kirkstone House School,Boarding Out Fees
Peterborough City Council,People & Communities,External Education Placements,Schools,06/11/2019,30248577,"4,207.00",Revenue,Kirkstone House School,Boarding Out Fees
Peterborough City Council,People & Communities,External Education Placements,Schools,06/11/2019,30248612,"4,207.00",Revenue,Kirkstone House School,Boarding Out Fees
Peterborough City Council,People & Communities,External Education Placements,Schools,06/11/2019,30248550,"4,287.00",Revenue,Kirkstone House School,Boarding Out Fees
Peterborough City Council,People & Communities,External Education Placements,Schools,06/11/2019,30248564,"4,287.00",Revenue,Kirkstone House School,Boarding Out Fees
Peterborough City Council,People & Communities,External Education Placements,Schools,06/11/2019,30248548,"4,800.00",Revenue,Kirkstone House School,Boarding Out Fees
Peterborough City Council,People & Communities,Access to Resources & Specialist Commissioning,Schools,06/11/2019,30249527,"12,324.00",Revenue,Positive Steps (Care Services) Ltd,Boarding Out Fees
Peterborough City Council,People & Communities,Access to Resources & Specialist Commissioning,Schools,06/11/2019,30249329,"20,806.50",Revenue,Swaay Child & adolescent Services Ltd,Boarding Out Fees
Peterborough City Council,Corporate,Corporate,Non Revenue,06/11/2019,30250084,"1,929.00",Capital,Allworks Home Improvements Ltd,Building And Site Works
Peterborough City Council,Corporate,Corporate,Non Revenue,06/11/2019,30250079,"2,000.00",Capital,Allworks Home Improvements Ltd,Building And Site Works
Peterborough City Council,Corporate,Corporate,Non Revenue,06/11/2019,30250083,"2,112.00",Capital,Allworks Home Improvements Ltd,Building And Site Works
Peterborough City Council,Corporate,Corporate,Non Revenue,06/11/2019,30250082,"2,250.00",Capital,Allworks Home Improvements Ltd,Building And Site Works
Peterborough City Council,Corporate,Corporate,Non Revenue,06/11/2019,30250080,"2,431.00",Capital,Allworks Home Improvements Ltd,Building And Site Works
Peterborough City Council,Corporate,Corporate,Non Revenue,06/11/2019,30250081,"2,500.00",Capital,Allworks Home Improvements Ltd,Building And Site Works
Peterborough City Council,Corporate,Corporate,Non Revenue,06/11/2019,30250066,"4,821.00",Capital,Allworks Home Improvements Ltd,Building And Site Works
Peterborough City Council,People & Communities,Early Help ASC/CSC,Services,06/11/2019,30250629,"2,442.00",Revenue,BDP Social Care Ltd,Childcare
Peterborough City Council,Customer & Digital Services,ICT,Members Allowances,06/11/2019,30250670,"3,700.00",Revenue,Clear Skies Software Ltd,Computer Software
Peterborough City Council,People & Communities,Schools Finance,Members Allowances,06/11/2019,30250618,"33,285.00",Revenue,RM Education Ltd,Computer Software
Peterborough City Council,Governance,Gov HOS,Members Allowances,06/11/2019,30248746,967,Revenue,Serco Ltd,Computer Software
Peterborough City Council,People & Communities,Special Educational Needs / Inclusion,Services,06/11/2019,30250357,"2,590.00",Revenue,ESP PROFESSIONAL SERVICES LTD,Conferences
Peterborough City Council,Corporate,Corporate,Non Revenue,06/11/2019,30248744,"17,023.14",Capital,Serco Ltd,Consultants Fees
Peterborough City Council,People & Communities,Home Services Delivery Model,Services,06/11/2019,30250636,578,Revenue,Rawheat Heating & Plumbing Eng.,Contractors
Peterborough City Council,Place & Economy,Transport & Infrastructure Commissioning,Services,06/11/2019,30248754,527.73,Revenue,Stagecoach in Peterborough,Contractors
Peterborough City Council,Place & Economy,Transport & Infrastructure Commissioning,Services,06/11/2019,30248751,"1,633.61",Revenue,Stagecoach in Peterborough,Contractors
Peterborough City Council,Place & Economy,Transport & Infrastructure Commissioning,Services,06/11/2019,30248748,"1,937.89",Revenue,Stagecoach in Peterborough,Contractors
Peterborough City Council,Place & Economy,Transport & Infrastructure Commissioning,Services,06/11/2019,30248750,"1,937.89",Revenue,Stagecoach in Peterborough,Contractors
Peterborough City Council,Place & Economy,Transport & Infrastructure Commissioning,Services,06/11/2019,30248753,"1,937.89",Revenue,Stagecoach in Peterborough,Contractors
Peterborough City Council,Place & Economy,Transport & Infrastructure Commissioning,Services,06/11/2019,30248764,"1,937.89",Revenue,Stagecoach in Peterborough,Contractors
Peterborough City Council,Place & Economy,Transport & Infrastructure Commissioning,Services,06/11/2019,30249956,"18,001.50",Revenue,Telensa Limited,Contractors
Peterborough City Council,Corporate,Corporate,Non Revenue,06/11/2019,30249755,"1,288.00",Balance Sheet,Browne Jacobson,Contributions
Peterborough City Council,Corporate,Corporate,Non Revenue,06/11/2019,30249652,"4,000.00",Balance Sheet,Irwin Mitchell LLP,Contributions
Peterborough City Council,People & Communities,Independent Sector Placements,Services,06/11/2019,30250379,522.2,Revenue,HEADWAY CAMBRIDGESHIRE,Daycare
Peterborough City Council,Resources,Peterborough Serco Strategic Partnership,Services,06/11/2019,30248315,608.02,Revenue,Newlyn PLC,Debt Collection
Peterborough City Council,People & Communities,Independent Sector Placements,Social Services,06/11/2019,30249991,"10,472.16",Revenue,Redacted Personal Information,Direct Payments
Peterborough City Council,Resources,Office Accomodation,"Tools, Equipment, Furniture & Materials",06/11/2019,30250017,"1,696.44",Revenue,Hughes TV & Audio Limited,Equipment
Peterborough City Council,Resources,Finance,Agency Staff,06/11/2019,30249450,"2,976.15",Revenue,Allen Lane,External Temporary Staff
Peterborough City Council,People & Communities,Community Team,Agency Staff,06/11/2019,30250305,732.6,Revenue,HCL Social Care Ltd,External Temporary Staff
Peterborough City Council,People & Communities,Community Team,Agency Staff,06/11/2019,30250586,"1,221.00",Revenue,HCL Social Care Ltd,External Temporary Staff
Peterborough City Council,Resources,Strategic Projects,Agency Staff,06/11/2019,30250099,"15,600.00",Revenue,Penna Plc,External Temporary Staff
Peterborough City Council,People & Communities,Early Help ASC/CSC,Agency Staff,06/11/2019,30250021,569.83,Revenue,Reed Specialist Recruitment Limited,External Temporary Staff
Peterborough City Council,Place & Economy,Highway & Drainage Control,Agency Staff,06/11/2019,30250406,580.5,Revenue,Reed Specialist Recruitment Limited,External Temporary Staff
Peterborough City Council,People & Communities,Strategic Commissioning - Management,Agency Staff,06/11/2019,30250008,669.2,Revenue,Reed Specialist Recruitment Limited,External Temporary Staff
Peterborough City Council,People & Communities,Finance,Agency Staff,06/11/2019,30250401,697.36,Revenue,Reed Specialist Recruitment Limited,External Temporary Staff
Peterborough City Council,Customer & Digital Services,ICT,Agency Staff,06/11/2019,30250030,776.56,Revenue,Reed Specialist Recruitment Limited,External Temporary Staff
Peterborough City Council,Customer & Digital Services,ICT,Agency Staff,06/11/2019,30250422,835.06,Revenue,Reed Specialist Recruitment Limited,External Temporary Staff
Peterborough City Council,People & Communities,Clare Lodge,Agency Staff,06/11/2019,30249744,841.31,Revenue,Reed Specialist Recruitment Limited,External Temporary Staff
Peterborough City Council,Place & Economy,Building Control,Agency Staff,06/11/2019,30250148,"1,075.05",Revenue,Reed Specialist Recruitment Limited,External Temporary Staff
Peterborough City Council,Place & Economy,Development Management,Agency Staff,06/11/2019,30250155,"1,494.80",Revenue,Reed Specialist Recruitment Limited,External Temporary Staff
Peterborough City Council,Business Improvement,Programme Management Office,Agency Staff,06/11/2019,30249864,"1,788.86",Revenue,Reed Specialist Recruitment Limited,External Temporary Staff
Peterborough City Council,Business Improvement,Programme Management Office,Agency Staff,06/11/2019,30250151,"1,788.86",Revenue,Reed Specialist Recruitment Limited,External Temporary Staff
Peterborough City Council,Customer & Digital Services,ICT,Agency Staff,06/11/2019,30250145,"4,289.56",Revenue,Reed Specialist Recruitment Limited,External Temporary Staff
Peterborough City Council,Customer & Digital Services,ICT,Agency Staff,06/11/2019,30250138,"4,768.72",Revenue,Reed Specialist Recruitment Limited,External Temporary Staff
Peterborough City Council,People & Communities,Therapy/Reablement/Community Equipment,Agency Staff,06/11/2019,30249264,"1,484.60",Revenue,Tripod Partners Ltd,External Temporary Staff
Peterborough City Council,Governance,Legal Services,Agency Staff,06/11/2019,30249916,"1,887.51",Revenue,Venn Group Ltd,External Temporary Staff
Peterborough City Council,Governance,Legal Services,Agency Staff,06/11/2019,30249915,"2,035.00",Revenue,Venn Group Ltd,External Temporary Staff
Peterborough City Council,Governance,Legal Services,Agency Staff,06/11/2019,30249990,"2,062.50",Revenue,Venn Group Ltd,External Temporary Staff
Peterborough City Council,People & Communities,Commissioning - CSC,Services,06/11/2019,30246476,"1,060.54",Revenue,K2 CARE LTD,Financial Assistance
Peterborough City Council,People & Communities,Children?s Social Care,Services,06/11/2019,30250043,865.62,Revenue,Redacted Personal Information,Financial Assistance
Peterborough City Council,Resources,Office Accomodation,Energy Costs,06/11/2019,30250372,797.8,Revenue,EDF Energy Networks Ltd,Gas
Peterborough City Council,People & Communities,Cultural Services,Energy Costs,06/11/2019,30250372,"2,767.74",Revenue,EDF Energy Networks Ltd,Gas
Peterborough City Council,People & Communities,Clare Lodge,Energy Costs,06/11/2019,30250372,"6,528.72",Revenue,EDF Energy Networks Ltd,Gas
Peterborough City Council,People & Communities,Home Services Delivery Model,Customer and client receipts - Fees & Charges,06/11/2019,30250302,-717.75,Revenue,Dolphin Mobility East Midlands Ltd,Grant Payment
Peterborough City Council,People & Communities,Financing - Resources,Services,06/11/2019,30250300,"2,006.40",Revenue,Acorn Academy Day Nursery Ltd,Grant Payment
Peterborough City Council,Corporate,Corporate,Non Revenue,06/11/2019,30250591,600,Capital,Allworks Home Improvements Ltd,Grant Payment
Peterborough City Council,Corporate,Corporate,Non Revenue,06/11/2019,30250302,"5,502.75",Capital,Dolphin Mobility East Midlands Ltd,Grant Payment
Peterborough City Council,People & Communities,Early Years & Quality Improvement,Services,06/11/2019,30248083,"2,095.80",Revenue,Redacted Personal Information,Grant Payment
Peterborough City Council,People & Communities,Financing - Resources,Services,06/11/2019,30250298,"1,621.42",Revenue,Shiny Stars Pre-School,Grant Payment
Peterborough City Council,People & Communities,Early Years & Quality Improvement,Services,06/11/2019,30248118,"4,637.46",Revenue,The Owls? Nest Pre-School,Grant Payment
Peterborough City Council,People & Communities,Home Services Delivery Model,Other Establishments,06/11/2019,30249221,"58,066.56",Revenue,Futures Homescape Limited,Grant - Third Party
Peterborough City Council,People & Communities,Home Services Delivery Model,Other Establishments,06/11/2019,30249735,"5,017.14",Revenue,Peterborough Womens Aid,Grant - Third Party
Peterborough City Council,People & Communities,Clare Lodge,Services,06/11/2019,30242305,"3,852.00",Revenue,B & H Services Group Ltd,Hired Services
Peterborough City Council,People & Communities,Commissioning,Services,06/11/2019,30250630,880,Revenue,BDP Social Care Ltd,Hired Services
Peterborough City Council,People & Communities,Commissioning - CSC,Services,06/11/2019,30249474,"148,000.00",Revenue,CHUMS Social Enterprise CIC,Hired Services
Peterborough City Council,People & Communities,School Standards & Effectiveness,Services,06/11/2019,30250626,690,Revenue,Hallam Learning Consultancy Ltd,Hired Services
Peterborough City Council,People & Communities,HTS & CSC Transport,Contract Hire and Operating Leases,06/11/2019,30249885,"1,459.20",Revenue,A2B Euro Cars,Hired Transport
Peterborough City Council,People & Communities,HTS & CSC Transport,Contract Hire and Operating Leases,06/11/2019,30249889,980,Revenue,Goldstar Cabs Ltd,Hired Transport
Peterborough City Council,People & Communities,HTS & CSC Transport,Contract Hire and Operating Leases,06/11/2019,30249889,980,Revenue,Goldstar Cabs Ltd,Hired Transport
Peterborough City Council,People & Communities,HTS & CSC Transport,Contract Hire and Operating Leases,06/11/2019,30249886,"1,336.00",Revenue,King Carz Ltd,Hired Transport
Peterborough City Council,Governance,Gov HOS,Contract Hire and Operating Leases,06/11/2019,30250784,"10,278.93",Revenue,Northumbria Healthcare NHS Foundation Trust,Hired Transport
Peterborough City Council,People & Communities,Children?s Social Care,Contract Hire and Operating Leases,06/11/2019,30250307,"4,624.30",Revenue,R S P LTD,Hired Transport
Peterborough City Council,People & Communities,HTS & CSC Transport,Contract Hire and Operating Leases,06/11/2019,30249892,"1,338.00",Revenue,R T Enterprises Ltd T/A Royal Taxis,Hired Transport
Peterborough City Council,People & Communities,Independent Sector Placements,Services,06/11/2019,8000154331,900,Revenue,Augusta Care Ltd,Homecare
Peterborough City Council,People & Communities,Independent Sector Placements,Services,06/11/2019,8000154333,"1,245.00",Revenue,Augusta Care Ltd,Homecare
Peterborough City Council,People & Communities,Independent Sector Placements,Services,06/11/2019,8000154337,"1,685.60",Revenue,Augusta Care Ltd,Homecare
Peterborough City Council,People & Communities,Independent Sector Placements,Services,06/11/2019,8000154334,"1,695.00",Revenue,Augusta Care Ltd,Homecare
Peterborough City Council,People & Communities,Independent Sector Placements,Services,06/11/2019,8000154339,"1,862.00",Revenue,Augusta Care Ltd,Homecare
Peterborough City Council,People & Communities,Independent Sector Placements,Services,06/11/2019,8000154338,"2,214.80",Revenue,Augusta Care Ltd,Homecare
Peterborough City Council,People & Communities,Independent Sector Placements,Services,06/11/2019,8000154336,"8,468.88",Revenue,Augusta Care Ltd,Homecare
Peterborough City Council,People & Communities,Independent Sector Placements,Services,06/11/2019,8000154335,"17,486.28",Revenue,Augusta Care Ltd,Homecare
Peterborough City Council,People & Communities,Independent Sector Placements,Services,06/11/2019,30250069,"2,420.00",Revenue,GARDEN LODGE,Homecare
Peterborough City Council,People & Communities,Independent Sector Placements,Services,06/11/2019,30250436,514.08,Revenue,Longhurst Group Limited,Homecare
Peterborough City Council,People & Communities,Independent Sector Placements,Services,06/11/2019,30250500,514.08,Revenue,Longhurst Group Limited,Homecare
Peterborough City Council,People & Communities,Independent Sector Placements,Services,06/11/2019,30250542,514.08,Revenue,Longhurst Group Limited,Homecare
Peterborough City Council,People & Communities,Independent Sector Placements,Services,06/11/2019,30250543,514.08,Revenue,Longhurst Group Limited,Homecare
Peterborough City Council,People & Communities,Independent Sector Placements,Services,06/11/2019,30250547,514.08,Revenue,Longhurst Group Limited,Homecare
Peterborough City Council,People & Communities,Independent Sector Placements,Services,06/11/2019,30250572,514.08,Revenue,Longhurst Group Limited,Homecare
Peterborough City Council,People & Communities,Independent Sector Placements,Services,06/11/2019,30250573,514.08,Revenue,Longhurst Group Limited,Homecare
Peterborough City Council,People & Communities,Independent Sector Placements,Services,06/11/2019,30250677,514.08,Revenue,Longhurst Group Limited,Homecare
Peterborough City Council,People & Communities,Independent Sector Placements,Services,06/11/2019,30250745,514.08,Revenue,Longhurst Group Limited,Homecare
Peterborough City Council,People & Communities,Independent Sector Placements,Services,06/11/2019,30250765,514.08,Revenue,Longhurst Group Limited,Homecare
Peterborough City Council,People & Communities,Independent Sector Placements,Services,06/11/2019,30250766,514.08,Revenue,Longhurst Group Limited,Homecare
Peterborough City Council,People & Communities,Independent Sector Placements,Services,06/11/2019,30250779,514.08,Revenue,Longhurst Group Limited,Homecare
Peterborough City Council,People & Communities,Independent Sector Placements,Services,06/11/2019,30250834,514.08,Revenue,Longhurst Group Limited,Homecare
Peterborough City Council,People & Communities,Independent Sector Placements,Services,06/11/2019,30250835,514.08,Revenue,Longhurst Group Limited,Homecare
Peterborough City Council,People & Communities,Independent Sector Placements,Services,06/11/2019,8000153169,514.08,Revenue,Longhurst Group Limited,Homecare
Peterborough City Council,People & Communities,Independent Sector Placements,Services,06/11/2019,8000153205,514.08,Revenue,Longhurst Group Limited,Homecare
Peterborough City Council,People & Communities,Independent Sector Placements,Services,06/11/2019,30250650,523.26,Revenue,Longhurst Group Limited,Homecare
Peterborough City Council,People & Communities,Independent Sector Placements,Services,06/11/2019,30250642,526.32,Revenue,Longhurst Group Limited,Homecare
Peterborough City Council,People & Communities,Independent Sector Placements,Services,06/11/2019,30250708,526.32,Revenue,Longhurst Group Limited,Homecare
Peterborough City Council,People & Communities,Independent Sector Placements,Services,06/11/2019,30250747,526.32,Revenue,Longhurst Group Limited,Homecare
Peterborough City Council,People & Communities,Independent Sector Placements,Services,06/11/2019,30250751,526.32,Revenue,Longhurst Group Limited,Homecare
Peterborough City Council,People & Communities,Independent Sector Placements,Services,06/11/2019,8000153163,526.32,Revenue,Longhurst Group Limited,Homecare
Peterborough City Council,People & Communities,Independent Sector Placements,Services,06/11/2019,30250502,538.56,Revenue,Longhurst Group Limited,Homecare
Peterborough City Council,People & Communities,Independent Sector Placements,Services,06/11/2019,8000153216,556.92,Revenue,Longhurst Group Limited,Homecare
Peterborough City Council,People & Communities,Independent Sector Placements,Services,06/11/2019,30250609,584.46,Revenue,Longhurst Group Limited,Homecare
Peterborough City Council,People & Communities,Independent Sector Placements,Services,06/11/2019,8000153159,593.64,Revenue,Longhurst Group Limited,Homecare
Peterborough City Council,People & Communities,Independent Sector Placements,Services,06/11/2019,30250474,599.76,Revenue,Longhurst Group Limited,Homecare
Peterborough City Council,People & Communities,Independent Sector Placements,Services,06/11/2019,30250493,599.76,Revenue,Longhurst Group Limited,Homecare
Peterborough City Council,People & Communities,Independent Sector Placements,Services,06/11/2019,30250518,599.76,Revenue,Longhurst Group Limited,Homecare
Peterborough City Council,People & Communities,Independent Sector Placements,Services,06/11/2019,30250523,599.76,Revenue,Longhurst Group Limited,Homecare
Peterborough City Council,People & Communities,Independent Sector Placements,Services,06/11/2019,30250564,599.76,Revenue,Longhurst Group Limited,Homecare
Peterborough City Council,People & Communities,Independent Sector Placements,Services,06/11/2019,30250569,599.76,Revenue,Longhurst Group Limited,Homecare
Peterborough City Council,People & Communities,Independent Sector Placements,Services,06/11/2019,30250577,599.76,Revenue,Longhurst Group Limited,Homecare
Peterborough City Council,People & Communities,Independent Sector Placements,Services,06/11/2019,30250718,599.76,Revenue,Longhurst Group Limited,Homecare
Peterborough City Council,People & Communities,Independent Sector Placements,Services,06/11/2019,30250735,599.76,Revenue,Longhurst Group Limited,Homecare
Peterborough City Council,People & Communities,Independent Sector Placements,Services,06/11/2019,30250755,599.76,Revenue,Longhurst Group Limited,Homecare
Peterborough City Council,People & Communities,Independent Sector Placements,Services,06/11/2019,30250773,599.76,Revenue,Longhurst Group Limited,Homecare
Peterborough City Council,People & Communities,Independent Sector Placements,Services,06/11/2019,30250812,599.76,Revenue,Longhurst Group Limited,Homecare
Peterborough City Council,People & Communities,Independent Sector Placements,Services,06/11/2019,30250827,599.76,Revenue,Longhurst Group Limited,Homecare
Peterborough City Council,People & Communities,Independent Sector Placements,Services,06/11/2019,8000153164,599.76,Revenue,Longhurst Group Limited,Homecare
Peterborough City Council,People & Communities,Independent Sector Placements,Services,06/11/2019,8000153168,599.76,Revenue,Longhurst Group Limited,Homecare
Peterborough City Council,People & Communities,Independent Sector Placements,Services,06/11/2019,8000153220,599.76,Revenue,Longhurst Group Limited,Homecare
Peterborough City Council,People & Communities,Independent Sector Placements,Services,06/11/2019,8000153227,599.76,Revenue,Longhurst Group Limited,Homecare
Peterborough City Council,People & Communities,Independent Sector Placements,Services,06/11/2019,30250699,612,Revenue,Longhurst Group Limited,Homecare
Peterborough City Council,People & Communities,Independent Sector Placements,Services,06/11/2019,8000153213,654.84,Revenue,Longhurst Group Limited,Homecare
Peterborough City Council,People & Communities,Independent Sector Placements,Services,06/11/2019,30250501,660.96,Revenue,Longhurst Group Limited,Homecare
Peterborough City Council,People & Communities,Independent Sector Placements,Services,06/11/2019,30250746,660.96,Revenue,Longhurst Group Limited,Homecare
Peterborough City Council,People & Communities,Independent Sector Placements,Services,06/11/2019,8000153157,660.96,Revenue,Longhurst Group Limited,Homecare
Peterborough City Council,People & Communities,Independent Sector Placements,Services,06/11/2019,30250478,685.44,Revenue,Longhurst Group Limited,Homecare
Peterborough City Council,People & Communities,Independent Sector Placements,Services,06/11/2019,30250506,685.44,Revenue,Longhurst Group Limited,Homecare
Peterborough City Council,People & Communities,Independent Sector Placements,Services,06/11/2019,30250528,685.44,Revenue,Longhurst Group Limited,Homecare
Peterborough City Council,People & Communities,Independent Sector Placements,Services,06/11/2019,30250531,685.44,Revenue,Longhurst Group Limited,Homecare
Peterborough City Council,People & Communities,Independent Sector Placements,Services,06/11/2019,30250560,685.44,Revenue,Longhurst Group Limited,Homecare
Peterborough City Council,People & Communities,Independent Sector Placements,Services,06/11/2019,30250707,685.44,Revenue,Longhurst Group Limited,Homecare
Peterborough City Council,People & Communities,Independent Sector Placements,Services,06/11/2019,30250728,685.44,Revenue,Longhurst Group Limited,Homecare
Peterborough City Council,People & Communities,Independent Sector Placements,Services,06/11/2019,30250748,685.44,Revenue,Longhurst Group Limited,Homecare
Peterborough City Council,People & Communities,Independent Sector Placements,Services,06/11/2019,30250759,685.44,Revenue,Longhurst Group Limited,Homecare
Peterborough City Council,People & Communities,Independent Sector Placements,Services,06/11/2019,30250762,685.44,Revenue,Longhurst Group Limited,Homecare
Peterborough City Council,People & Communities,Independent Sector Placements,Services,06/11/2019,30250813,685.44,Revenue,Longhurst Group Limited,Homecare
Peterborough City Council,People & Communities,Independent Sector Placements,Services,06/11/2019,8000153160,685.44,Revenue,Longhurst Group Limited,Homecare
Peterborough City Council,People & Communities,Independent Sector Placements,Services,06/11/2019,8000153171,685.44,Revenue,Longhurst Group Limited,Homecare
Peterborough City Council,People & Communities,Independent Sector Placements,Services,06/11/2019,8000153172,685.44,Revenue,Longhurst Group Limited,Homecare
Peterborough City Council,People & Communities,Independent Sector Placements,Services,06/11/2019,8000153215,685.44,Revenue,Longhurst Group Limited,Homecare
Peterborough City Council,People & Communities,Independent Sector Placements,Services,06/11/2019,8000153224,685.44,Revenue,Longhurst Group Limited,Homecare
Peterborough City Council,People & Communities,Independent Sector Placements,Services,06/11/2019,30250437,771.12,Revenue,Longhurst Group Limited,Homecare
Peterborough City Council,People & Communities,Independent Sector Placements,Services,06/11/2019,30250441,771.12,Revenue,Longhurst Group Limited,Homecare
Peterborough City Council,People & Communities,Independent Sector Placements,Services,06/11/2019,30250442,771.12,Revenue,Longhurst Group Limited,Homecare
Peterborough City Council,People & Communities,Independent Sector Placements,Services,06/11/2019,30250549,771.12,Revenue,Longhurst Group Limited,Homecare
Peterborough City Council,People & Communities,Independent Sector Placements,Services,06/11/2019,30250680,771.12,Revenue,Longhurst Group Limited,Homecare
Peterborough City Council,People & Communities,Independent Sector Placements,Services,06/11/2019,30250683,771.12,Revenue,Longhurst Group Limited,Homecare
Peterborough City Council,People & Communities,Independent Sector Placements,Services,06/11/2019,30250687,771.12,Revenue,Longhurst Group Limited,Homecare
Peterborough City Council,People & Communities,Independent Sector Placements,Services,06/11/2019,30250780,771.12,Revenue,Longhurst Group Limited,Homecare
Peterborough City Council,People & Communities,Independent Sector Placements,Services,06/11/2019,8000153206,771.12,Revenue,Longhurst Group Limited,Homecare
Peterborough City Council,People & Communities,Independent Sector Placements,Services,06/11/2019,8000153207,771.12,Revenue,Longhurst Group Limited,Homecare
Peterborough City Council,People & Communities,Independent Sector Placements,Services,06/11/2019,8000153210,771.12,Revenue,Longhurst Group Limited,Homecare
Peterborough City Council,People & Communities,Independent Sector Placements,Services,06/11/2019,30250730,774.18,Revenue,Longhurst Group Limited,Homecare
Peterborough City Council,People & Communities,Independent Sector Placements,Services,06/11/2019,30250468,783.36,Revenue,Longhurst Group Limited,Homecare
Peterborough City Council,People & Communities,Independent Sector Placements,Services,06/11/2019,30250712,783.36,Revenue,Longhurst Group Limited,Homecare
Peterborough City Council,People & Communities,Independent Sector Placements,Services,06/11/2019,8000153217,783.36,Revenue,Longhurst Group Limited,Homecare
Peterborough City Council,People & Communities,Independent Sector Placements,Services,06/11/2019,8000153893,798.66,Revenue,Longhurst Group Limited,Homecare
Peterborough City Council,People & Communities,Independent Sector Placements,Services,06/11/2019,30250576,832.32,Revenue,Longhurst Group Limited,Homecare
Peterborough City Council,People & Communities,Independent Sector Placements,Services,06/11/2019,30250545,856.8,Revenue,Longhurst Group Limited,Homecare
Peterborough City Council,People & Communities,Independent Sector Placements,Services,06/11/2019,30250652,856.8,Revenue,Longhurst Group Limited,Homecare
Peterborough City Council,People & Communities,Independent Sector Placements,Services,06/11/2019,30250778,856.8,Revenue,Longhurst Group Limited,Homecare
Peterborough City Council,People & Communities,Independent Sector Placements,Services,06/11/2019,30250521,918,Revenue,Longhurst Group Limited,Homecare
Peterborough City Council,People & Communities,Independent Sector Placements,Services,06/11/2019,30250754,918,Revenue,Longhurst Group Limited,Homecare
Peterborough City Council,People & Communities,Independent Sector Placements,Services,06/11/2019,8000153167,918,Revenue,Longhurst Group Limited,Homecare
Peterborough City Council,People & Communities,Independent Sector Placements,Services,06/11/2019,30250519,979.2,Revenue,Longhurst Group Limited,Homecare
Peterborough City Council,People & Communities,Independent Sector Placements,Services,06/11/2019,30250752,979.2,Revenue,Longhurst Group Limited,Homecare
Peterborough City Council,People & Communities,Independent Sector Placements,Services,06/11/2019,8000153165,979.2,Revenue,Longhurst Group Limited,Homecare
Peterborough City Council,People & Communities,Independent Sector Placements,Services,06/11/2019,30250472,991.44,Revenue,Longhurst Group Limited,Homecare
Peterborough City Council,People & Communities,Independent Sector Placements,Services,06/11/2019,30250716,991.44,Revenue,Longhurst Group Limited,Homecare
Peterborough City Council,People & Communities,Independent Sector Placements,Services,06/11/2019,8000153219,991.44,Revenue,Longhurst Group Limited,Homecare
Peterborough City Council,People & Communities,Independent Sector Placements,Services,06/11/2019,8000153218,"1,499.40",Revenue,Longhurst Group Limited,Homecare
Peterborough City Council,People & Communities,Independent Sector Placements,Services,06/11/2019,8000153156,"1,542.24",Revenue,Longhurst Group Limited,Homecare
Peterborough City Council,People & Communities,Independent Sector Placements,Services,06/11/2019,8000153158,"1,627.92",Revenue,Longhurst Group Limited,Homecare
Peterborough City Council,People & Communities,Independent Sector Placements,Services,06/11/2019,8000153175,"1,627.92",Revenue,Longhurst Group Limited,Homecare
Peterborough City Council,People & Communities,Independent Sector Placements,Services,06/11/2019,8000153161,"2,399.04",Revenue,Longhurst Group Limited,Homecare
Peterborough City Council,People & Communities,Independent Sector Placements,Services,06/11/2019,8000154458,"12,450.50",Revenue,PRESTIGE NURSING LIMITED,Homecare
Peterborough City Council,People & Communities,Independent Sector Placements,Services,06/11/2019,30250819,532,Revenue,Sahara Community Care Services Limited,Homecare
Peterborough City Council,People & Communities,Independent Sector Placements,Services,06/11/2019,30250795,676.78,Revenue,Sahara Community Care Services Limited,Homecare
Peterborough City Council,People & Communities,Independent Sector Placements,Services,06/11/2019,30250796,818.58,Revenue,Sahara Community Care Services Limited,Homecare
Peterborough City Council,People & Communities,Independent Sector Placements,Services,06/11/2019,30250805,872.09,Revenue,Sahara Community Care Services Limited,Homecare
Peterborough City Council,People & Communities,Independent Sector Placements,Services,06/11/2019,30250808,873.63,Revenue,Sahara Community Care Services Limited,Homecare
Peterborough City Council,People & Communities,Independent Sector Placements,Services,06/11/2019,30250822,896,Revenue,Sahara Community Care Services Limited,Homecare
Peterborough City Council,Corporate,Corporate,Non Revenue,06/11/2019,30247227,"4,562.87",Capital,Vix Technology UK Ltd,Infrastructure
Peterborough City Council,Governance,Legal Services,Services,06/11/2019,30247545,500,Revenue,Redacted Personal Information,Legal Costs
Peterborough City Council,Governance,Legal Services,Services,06/11/2019,30247918,600,Revenue,Redacted Personal Information,Legal Costs
Peterborough City Council,Governance,Legal Services,Services,06/11/2019,30248244,650,Revenue,"Elliott, Ms Margot",Legal Costs
Peterborough City Council,Governance,Legal Services,Services,06/11/2019,30247178,700,Revenue,"Pilkington, Ms Abigail",Legal Costs
Peterborough City Council,Governance,Legal Services,Services,06/11/2019,30247939,"1,100.00",Revenue,"Pilkington, Ms Abigail",Legal Costs
Peterborough City Council,Governance,Legal Services,Services,06/11/2019,30248409,"1,100.00",Revenue,Redacted Personal Information,Legal Costs
Peterborough City Council,People & Communities,Regulatory Services,Services,06/11/2019,30250095,"2,220.80",Revenue,Redacted Personal Information,Legal Costs
Peterborough City Council,Governance,Legal Services,Services,06/11/2019,30247938,"4,250.00",Revenue,"Pilkington, Ms Abigail",Legal Costs
Peterborough City Council,Resources,Commercial Propety,Repair & Maintenance of Buildings,06/11/2019,30246281,"1,325.00",Revenue,NPS Peterborough Ltd,Maintenance
Peterborough City Council,Place & Economy,Westcombe Engineering,Services,06/11/2019,30250111,"1,678.00",Revenue,PG Reeves & Sons,Materials
Peterborough City Council,People & Communities,Community Team,Services,06/11/2019,30250360,732.25,Revenue,Oxford Expert Psychiatry Ltd,Professional Services
Peterborough City Council,People & Communities,Special Educational Needs / Inclusion,Services,06/11/2019,30250354,"1,210.00",Revenue,Sanctuary Personnel Ltd,Occupational Health
Peterborough City Council,People & Communities,OP/PD/SI,"Tools, Equipment, Furniture & Materials",06/11/2019,30250109,"4,010.95",Revenue,NRS Healthcare,Occupational Therapy Equipment
Peterborough City Council,Corporate,Corporate,Non Revenue,06/11/2019,30250174,"19,641.11",Balance Sheet,Teachers Pensions,Pensions
Peterborough City Council,People & Communities,External Education Placements,Services,06/11/2019,30248542,"1,390.00",Revenue,Kirkstone House School,Out Of Area Education Costs
Peterborough City Council,People & Communities,External Education Placements,Services,06/11/2019,30248566,"1,390.00",Revenue,Kirkstone House School,Out Of Area Education Costs
Peterborough City Council,People & Communities,External Education Placements,Services,06/11/2019,30248573,"2,760.00",Revenue,Kirkstone House School,Out Of Area Education Costs
Peterborough City Council,People & Communities,External Education Placements,Services,06/11/2019,30248558,"2,761.50",Revenue,Kirkstone House School,Out Of Area Education Costs
Peterborough City Council,People & Communities,External Education Placements,Services,06/11/2019,30248615,"3,118.00",Revenue,Kirkstone House School,Out Of Area Education Costs
Peterborough City Council,People & Communities,External Education Placements,Services,06/11/2019,30248561,"4,132.33",Revenue,Kirkstone House School,Out Of Area Education Costs
Peterborough City Council,People & Communities,External Education Placements,Services,06/11/2019,30248614,"4,132.33",Revenue,Kirkstone House School,Out Of Area Education Costs
Peterborough City Council,People & Communities,External Education Placements,Services,06/11/2019,30248546,"4,516.41",Revenue,Kirkstone House School,Out Of Area Education Costs
Peterborough City Council,People & Communities,External Education Placements,Services,06/11/2019,30248553,"4,516.41",Revenue,Kirkstone House School,Out Of Area Education Costs
Peterborough City Council,People & Communities,External Education Placements,Services,06/11/2019,30248613,"4,516.41",Revenue,Kirkstone House School,Out Of Area Education Costs
Peterborough City Council,People & Communities,External Education Placements,Services,06/11/2019,30248570,"4,657.50",Revenue,Kirkstone House School,Out Of Area Education Costs
Peterborough City Council,Corporate,Corporate,Non Revenue,06/11/2019,30250174,"23,766.36",Balance Sheet,Teachers Pensions,Pensions
Peterborough City Council,Corporate,Corporate,Non Revenue,06/11/2019,30250174,"10,327.24",Balance Sheet,Teachers Pensions,Pensions
Peterborough City Council,Corporate,Corporate,Non Revenue,06/11/2019,30250174,"10,264.96",Balance Sheet,Teachers Pensions,Pensions
Peterborough City Council,Corporate,Corporate,Non Revenue,06/11/2019,30250174,"18,583.83",Balance Sheet,Teachers Pensions,Pensions
Peterborough City Council,Corporate,Corporate,Non Revenue,06/11/2019,30250174,"6,614.48",Balance Sheet,Teachers Pensions,Pensions
Peterborough City Council,Corporate,Corporate,Non Revenue,06/11/2019,30250174,"68,777.23",Balance Sheet,Teachers Pensions,Pensions
Peterborough City Council,Corporate,Corporate,Non Revenue,06/11/2019,30250174,"25,677.78",Balance Sheet,Teachers Pensions,Pensions
Peterborough City Council,Corporate,Corporate,Non Revenue,06/11/2019,30250174,"147,713.18",Balance Sheet,Teachers Pensions,Pensions
Peterborough City Council,Corporate,Corporate,Non Revenue,06/11/2019,30250174,"32,007.07",Balance Sheet,Teachers Pensions,Pensions
Peterborough City Council,Corporate,Corporate,Non Revenue,06/11/2019,30250174,"47,489.33",Balance Sheet,Teachers Pensions,Pensions
Peterborough City Council,Corporate,Corporate,Non Revenue,06/11/2019,30250174,"12,083.40",Balance Sheet,Teachers Pensions,Pensions
Peterborough City Council,Corporate,Corporate,Non Revenue,06/11/2019,30250174,"21,445.83",Balance Sheet,Teachers Pensions,Pensions
Peterborough City Council,Corporate,Corporate,Non Revenue,06/11/2019,30250174,"9,549.08",Balance Sheet,Teachers Pensions,Pensions
Peterborough City Council,Corporate,Corporate,Non Revenue,06/11/2019,30250174,"8,848.04",Balance Sheet,Teachers Pensions,Pensions
Peterborough City Council,Corporate,Corporate,Non Revenue,06/11/2019,30250174,"30,506.12",Balance Sheet,Teachers Pensions,Pensions
Peterborough City Council,Corporate,Corporate,Non Revenue,06/11/2019,30250174,"9,126.65",Balance Sheet,Teachers Pensions,Pensions
Peterborough City Council,Corporate,Corporate,Non Revenue,06/11/2019,30250174,"9,816.73",Balance Sheet,Teachers Pensions,Pensions
Peterborough City Council,Corporate,Corporate,Non Revenue,06/11/2019,30250174,"11,096.68",Balance Sheet,Teachers Pensions,Pensions
Peterborough City Council,Corporate,Corporate,Non Revenue,06/11/2019,30250174,"27,743.87",Balance Sheet,Teachers Pensions,Pensions
Peterborough City Council,Corporate,Corporate,Non Revenue,06/11/2019,30250174,"18,634.61",Balance Sheet,Teachers Pensions,Pensions
Peterborough City Council,Corporate,Corporate,Non Revenue,06/11/2019,30250174,"37,549.62",Balance Sheet,Teachers Pensions,Pensions
Peterborough City Council,Corporate,Corporate,Non Revenue,06/11/2019,30250174,"5,775.96",Balance Sheet,Teachers Pensions,Pensions
Peterborough City Council,Corporate,Corporate,Non Revenue,06/11/2019,30250174,"10,165.04",Balance Sheet,Teachers Pensions,Pensions
Peterborough City Council,Corporate,Corporate,Non Revenue,06/11/2019,30250174,"25,415.57",Balance Sheet,Teachers Pensions,Pensions
Peterborough City Council,Resources,PSSP Retained Services,Services,06/11/2019,30250674,682.37,Revenue,Whistl UK Ltd,Postage
Peterborough City Council,Resources,PSSP Retained Services,Services,06/11/2019,30250638,"1,305.52",Revenue,Whistl UK Ltd,Postage
Peterborough City Council,Resources,PSSP Retained Services,Services,06/11/2019,30250673,"1,563.92",Revenue,Whistl UK Ltd,Postage
Peterborough City Council,Customer & Digital Services,Marketing & Communications,Services,06/11/2019,30249925,517.5,Revenue,Print 4 Business Ltd,Printing
Peterborough City Council,Place & Economy,Waste Management,Services,06/11/2019,30250058,744.8,Revenue,Mick George Ltd,Recycling
Peterborough City Council,People & Communities,Service Director Education,Severance Payments,06/11/2019,30250272,"27,162.69",Revenue,Teachers Pensions,Redundancy Costs
Peterborough City Council,People & Communities,Cohesion,Repair & Maintenance of Buildings,06/11/2019,30250211,"1,180.00",Revenue,Bee Lettings Ltd,Repairs
Peterborough City Council,People & Communities,Cohesion,Repair & Maintenance of Buildings,06/11/2019,30250208,"3,993.50",Revenue,Bee Lettings Ltd,Repairs
Peterborough City Council,Resources,Commercial Propety,Repair & Maintenance of Buildings,06/11/2019,30250048,"1,100.00",Revenue,Orona Ltd,Repairs
Peterborough City Council,People & Communities,Independent Sector Placements,Services,06/11/2019,30249061,"1,116.32",Revenue,Alysia Caring Ltd T/a Cherry Blossom care Home,Residential Care
Peterborough City Council,People & Communities,Independent Sector Placements,Services,06/11/2019,30248772,"1,317.08",Revenue,Alysia Caring Ltd T/a Cherry Blossom care Home,Residential Care
Peterborough City Council,People & Communities,Independent Sector Placements,Services,06/11/2019,30249053,"1,714.80",Revenue,Alysia Caring Ltd T/a Cherry Blossom care Home,Residential Care
Peterborough City Council,People & Communities,Independent Sector Placements,Services,06/11/2019,30249066,"1,810.40",Revenue,Alysia Caring Ltd T/a Cherry Blossom care Home,Residential Care
Peterborough City Council,People & Communities,Independent Sector Placements,Services,06/11/2019,30249068,"1,847.20",Revenue,Alysia Caring Ltd T/a Cherry Blossom care Home,Residential Care
Peterborough City Council,People & Communities,Independent Sector Placements,Services,06/11/2019,30250234,"1,847.20",Revenue,Alysia Caring Ltd T/a Cherry Blossom care Home,Residential Care
Peterborough City Council,People & Communities,Independent Sector Placements,Services,06/11/2019,30249071,"2,087.40",Revenue,Alysia Caring Ltd T/a Cherry Blossom care Home,Residential Care
Peterborough City Council,People & Communities,Independent Sector Placements,Services,06/11/2019,30249055,"2,175.40",Revenue,Alysia Caring Ltd T/a Cherry Blossom care Home,Residential Care
Peterborough City Council,People & Communities,Independent Sector Placements,Services,06/11/2019,30249070,"2,175.40",Revenue,Alysia Caring Ltd T/a Cherry Blossom care Home,Residential Care
Peterborough City Council,People & Communities,Independent Sector Placements,Services,06/11/2019,30249075,"2,326.44",Revenue,Alysia Caring Ltd T/a Cherry Blossom care Home,Residential Care
Peterborough City Council,People & Communities,Independent Sector Placements,Services,06/11/2019,30248775,"2,366.36",Revenue,Alysia Caring Ltd T/a Cherry Blossom care Home,Residential Care
Peterborough City Council,People & Communities,Independent Sector Placements,Services,06/11/2019,30250231,"2,366.36",Revenue,Alysia Caring Ltd T/a Cherry Blossom care Home,Residential Care
Peterborough City Council,People & Communities,Independent Sector Placements,Services,06/11/2019,30248774,"3,119.13",Revenue,Alysia Caring Ltd T/a Cherry Blossom care Home,Residential Care
Peterborough City Council,People & Communities,Independent Sector Placements,Services,06/11/2019,30249064,"3,137.76",Revenue,Alysia Caring Ltd T/a Cherry Blossom care Home,Residential Care
Peterborough City Council,People & Communities,Independent Sector Placements,Services,06/11/2019,30250249,"-1,906.54",Revenue,Athena (Ashlynn Grange),Residential Care
Peterborough City Council,People & Communities,Independent Sector Placements,Services,06/11/2019,30250760,986,Revenue,Athena (Ashlynn Grange),Residential Care
Peterborough City Council,People & Communities,Independent Sector Placements,Services,06/11/2019,30250761,986,Revenue,Athena (Ashlynn Grange),Residential Care
Peterborough City Council,People & Communities,Independent Sector Placements,Services,06/11/2019,30250769,986,Revenue,Athena (Ashlynn Grange),Residential Care
Peterborough City Council,People & Communities,Independent Sector Placements,Services,06/11/2019,30250688,915.68,Revenue,Park Vista Care Home,Residential Care
Peterborough City Council,People & Communities,Independent Sector Placements,Services,06/11/2019,30250690,970.68,Revenue,Park Vista Care Home,Residential Care
Peterborough City Council,People & Communities,Independent Sector Placements,Services,06/11/2019,30249065,575.04,Revenue,Alysia Caring Ltd T/a Cherry Blossom care Home,Residential Care
Peterborough City Council,People & Communities,Independent Sector Placements,Services,06/11/2019,30248773,802.4,Revenue,Alysia Caring Ltd T/a Cherry Blossom care Home,Residential Care
Peterborough City Council,People & Communities,Independent Sector Placements,Services,06/11/2019,30249059,802.4,Revenue,Alysia Caring Ltd T/a Cherry Blossom care Home,Residential Care
Peterborough City Council,People & Communities,Independent Sector Placements,Services,06/11/2019,30249058,"1,198.12",Revenue,Alysia Caring Ltd T/a Cherry Blossom care Home,Residential Care
Peterborough City Council,People & Communities,Independent Sector Placements,Services,06/11/2019,30249074,"1,830.60",Revenue,Alysia Caring Ltd T/a Cherry Blossom care Home,Residential Care
Peterborough City Council,People & Communities,Independent Sector Placements,Services,06/11/2019,30249073,"1,865.92",Revenue,Alysia Caring Ltd T/a Cherry Blossom care Home,Residential Care
Peterborough City Council,People & Communities,Independent Sector Placements,Services,06/11/2019,30250236,"1,865.92",Revenue,Alysia Caring Ltd T/a Cherry Blossom care Home,Residential Care
Peterborough City Council,People & Communities,Independent Sector Placements,Services,06/11/2019,30249072,"2,128.00",Revenue,Alysia Caring Ltd T/a Cherry Blossom care Home,Residential Care
Peterborough City Council,People & Communities,Independent Sector Placements,Services,06/11/2019,30249063,"2,384.24",Revenue,Alysia Caring Ltd T/a Cherry Blossom care Home,Residential Care
Peterborough City Council,People & Communities,Independent Sector Placements,Services,06/11/2019,30249069,"2,909.84",Revenue,Alysia Caring Ltd T/a Cherry Blossom care Home,Residential Care
Peterborough City Council,People & Communities,Independent Sector Placements,Services,06/11/2019,30250232,"2,909.84",Revenue,Alysia Caring Ltd T/a Cherry Blossom care Home,Residential Care
Peterborough City Council,People & Communities,Independent Sector Placements,Services,06/11/2019,30250068,"6,966.72",Revenue,Autism Care (UK) Ltd,Residential Care
Peterborough City Council,People & Communities,Independent Sector Placements,Services,06/11/2019,30250130,"13,197.14",Revenue,Glenholme Healthcare Limited,Residential Care
Peterborough City Council,People & Communities,Independent Sector Placements,Services,06/11/2019,30250128,"2,690.04",Revenue,LEONARD CHESHIRE DISABILITY,Residential Care
Peterborough City Council,People & Communities,Independent Sector Placements,Services,06/11/2019,30248206,888.08,Revenue,Maxey House Res Home,Residential Care
Peterborough City Council,People & Communities,Independent Sector Placements,Services,06/11/2019,30248249,975.2,Revenue,Maxey House Res Home,Residential Care
Peterborough City Council,People & Communities,Independent Sector Placements,Services,06/11/2019,30248214,"1,030.12",Revenue,Maxey House Res Home,Residential Care
Peterborough City Council,People & Communities,Independent Sector Placements,Services,06/11/2019,30248210,"1,186.12",Revenue,Maxey House Res Home,Residential Care
Peterborough City Council,People & Communities,Independent Sector Placements,Services,06/11/2019,30248247,"1,284.48",Revenue,Maxey House Res Home,Residential Care
Peterborough City Council,People & Communities,Independent Sector Placements,Services,06/11/2019,30248213,"1,410.24",Revenue,Maxey House Res Home,Residential Care
Peterborough City Council,People & Communities,Independent Sector Placements,Services,06/11/2019,30248208,"1,530.60",Revenue,Maxey House Res Home,Residential Care
Peterborough City Council,People & Communities,Independent Sector Placements,Services,06/11/2019,30248211,"1,576.24",Revenue,Maxey House Res Home,Residential Care
Peterborough City Council,People & Communities,Independent Sector Placements,Services,06/11/2019,30248251,"1,679.96",Revenue,Maxey House Res Home,Residential Care
Peterborough City Council,People & Communities,Independent Sector Placements,Services,06/11/2019,30248209,"1,821.88",Revenue,Maxey House Res Home,Residential Care
Peterborough City Council,People & Communities,Independent Sector Placements,Services,06/11/2019,30248248,"1,821.88",Revenue,Maxey House Res Home,Residential Care
Peterborough City Council,People & Communities,Independent Sector Placements,Services,06/11/2019,30248212,"2,000.00",Revenue,Maxey House Res Home,Residential Care
Peterborough City Council,People & Communities,Independent Sector Placements,Services,06/11/2019,30248205,"2,100.00",Revenue,Maxey House Res Home,Residential Care
Peterborough City Council,People & Communities,Independent Sector Placements,Services,06/11/2019,30249651,"34,067.89",Revenue,Park Vista Care Home,Residential Care
Peterborough City Council,People & Communities,Independent Sector Placements,Services,06/11/2019,30250259,"1,954.32",Revenue,Redacted Personal Information,Residential Care
Peterborough City Council,People & Communities,Independent Sector Placements,Services,06/11/2019,30250264,"1,954.32",Revenue,Redacted Personal Information,Residential Care
Peterborough City Council,People & Communities,Independent Sector Placements,Services,06/11/2019,30250256,"2,162.24",Revenue,Redacted Personal Information,Residential Care
Peterborough City Council,People & Communities,Independent Sector Placements,Services,06/11/2019,30250257,"2,162.24",Revenue,Redacted Personal Information,Residential Care
Peterborough City Council,People & Communities,Independent Sector Placements,Services,06/11/2019,30250270,"2,162.28",Revenue,Redacted Personal Information,Residential Care
Peterborough City Council,People & Communities,Independent Sector Placements,Services,06/11/2019,30250265,"2,337.52",Revenue,Redacted Personal Information,Residential Care
Peterborough City Council,People & Communities,Independent Sector Placements,Services,06/11/2019,30250260,"2,345.20",Revenue,Redacted Personal Information,Residential Care
Peterborough City Council,People & Communities,Independent Sector Placements,Services,06/11/2019,30250252,"2,794.32",Revenue,Redacted Personal Information,Residential Care
Peterborough City Council,People & Communities,Independent Sector Placements,Services,06/11/2019,30250268,"3,065.60",Revenue,Redacted Personal Information,Residential Care
Peterborough City Council,People & Communities,Independent Sector Placements,Services,06/11/2019,30250254,"3,103.92",Revenue,Redacted Personal Information,Residential Care
Peterborough City Council,People & Communities,Independent Sector Placements,Services,06/11/2019,30250267,"3,200.00",Revenue,Redacted Personal Information,Residential Care
Peterborough City Council,People & Communities,Independent Sector Placements,Services,06/11/2019,30250266,"3,625.08",Revenue,Redacted Personal Information,Residential Care
Peterborough City Council,People & Communities,Independent Sector Placements,Services,06/11/2019,30250248,"3,812.84",Revenue,Redacted Personal Information,Residential Care
Peterborough City Council,People & Communities,Independent Sector Placements,Services,06/11/2019,30250253,"4,288.00",Revenue,Redacted Personal Information,Residential Care
Peterborough City Council,People & Communities,Independent Sector Placements,Services,06/11/2019,30250262,"4,391.48",Revenue,Redacted Personal Information,Residential Care
Peterborough City Council,People & Communities,Independent Sector Placements,Services,06/11/2019,30250269,"4,904.00",Revenue,Redacted Personal Information,Residential Care
Peterborough City Council,People & Communities,Independent Sector Placements,Services,06/11/2019,30250263,"5,234.63",Revenue,Redacted Personal Information,Residential Care
Peterborough City Council,People & Communities,Independent Sector Placements,Services,06/11/2019,30250129,"1,926.60",Revenue,South West Care Homes LTD (The Firs),Residential Care
Peterborough City Council,People & Communities,Independent Sector Placements,Services,06/11/2019,8000154457,540,Revenue,PRESTIGE NURSING LIMITED,Respite Care 
Peterborough City Council,People & Communities,Independent Sector Placements,Services,06/11/2019,30248207,-825,Revenue,Maxey House Res Home,Respite Care 
Peterborough City Council,People & Communities,Housing,Services,06/11/2019,30248930,"6,820.32",Revenue,DA Rosalia Hotel,Temporary Accommodation Costs
Peterborough City Council,People & Communities,Cultural Services,Services,06/11/2019,30249770,"9,000.00",Revenue,Vivacity Culture and Leisure,Third Party Payments 
Peterborough City Council,People & Communities,Home Services Delivery Model,Other Establishments,06/11/2019,30249780,"56,533.92",Revenue,Cambridgeshire County Council,Third Party Payments - Contract
Peterborough City Council,People & Communities,Block Contracts,Other Establishments,06/11/2019,30250429,"2,056.32",Revenue,Longhurst Group Limited,Third Party Payments - Contract
Peterborough City Council,People & Communities,Block Contracts,Other Establishments,06/11/2019,30250430,"5,826.24",Revenue,Longhurst Group Limited,Third Party Payments - Contract
Peterborough City Council,Public Health,PH Commissioning,Other Establishments,06/11/2019,30247965,"6,641.00",Revenue,Octagon Medical Centre,Third Party Payments - Contract
Peterborough City Council,Public Health,PH Commissioning,Other Establishments,06/11/2019,30247969,"16,723.70",Revenue,Octagon Medical Centre,Third Party Payments - Contract
Peterborough City Council,Chief Executives,HR WFD & Training,Interview & Training Expenses,06/11/2019,30250627,"2,933.00",Revenue,Dynamis Insight,Training
Peterborough City Council,People & Communities,Early Help ASC/CSC,Interview & Training Expenses,06/11/2019,30250377,558,Revenue,MA Education Ltd,Training
Peterborough City Council,People & Communities,Access to Resources & Specialist Commissioning,Schools,08/11/2019,30249836,"1,980.00",Revenue,Florinee Homes Ltd,Boarding Out Fees
Peterborough City Council,People & Communities,Access to Resources & Specialist Commissioning,Schools,08/11/2019,30249838,"2,750.00",Revenue,Florinee Homes Ltd,Boarding Out Fees
Peterborough City Council,People & Communities,Access to Resources & Specialist Commissioning,Schools,08/11/2019,30250178,"2,750.00",Revenue,Florinee Homes Ltd,Boarding Out Fees
Peterborough City Council,People & Communities,Access to Resources & Specialist Commissioning,Schools,08/11/2019,30251015,"2,982.90",Revenue,Key2 Futures Limited,Boarding Out Fees
Peterborough City Council,People & Communities,Access to Resources & Specialist Commissioning,Schools,08/11/2019,30251011,"3,082.33",Revenue,Key2 Futures Limited,Boarding Out Fees
Peterborough City Council,People & Communities,Access to Resources & Specialist Commissioning,Schools,08/11/2019,30250984,"1,410.81",Revenue,Luton Community Housing Ltd,Boarding Out Fees
Peterborough City Council,Corporate,Corporate,Non Revenue,08/11/2019,30250052,"1,542.84",Capital,Elliott Group Limited,Building And Site Works
Peterborough City Council,Corporate,Corporate,Non Revenue,08/11/2019,30250063,"8,500.00",Capital,Rider Levett Bucknall UK Ltd,Building And Site Works
Peterborough City Council,Corporate,Corporate,Non Revenue,08/11/2019,30250301,937.5,Capital,Sibcas Ltd,Building And Site Works
Peterborough City Council,People & Communities,Clare Lodge,Services,08/11/2019,30251104,"1,714.70",Revenue,B & H Services Group Ltd,Cctv
Peterborough City Council,Governance,Democratic Services,Services,08/11/2019,30250991,"3,000.00",Revenue,Cambridgeshire County Council,Civic Events
Peterborough City Council,Resources,Peterborough Serco Strategic Partnership,Members Allowances,08/11/2019,30251057,"10,600.00",Revenue,Capita Business Services Ltd,Computer Software
Peterborough City Council,Place & Economy,Network and Traffic Management,Members Allowances,08/11/2019,30245214,"5,783.00",Revenue,PITNEY BOWES SOFTWARE EUROPE LTD,Computer Software
Peterborough City Council,Place & Economy,Network and Traffic Management,Members Allowances,08/11/2019,30250049,"3,320.00",Revenue,Siemens Mobility Limited,Computer Software
Peterborough City Council,Place & Economy,"Markets, Tourism & Events",Services,08/11/2019,30251062,"3,028.75",Revenue,TLC Signs & Banners,Conferences
Peterborough City Council,Place & Economy,Natural & Historic Environment,Services,08/11/2019,30251321,"2,177.25",Revenue,The Wildlife Trust BCN,Conservation
Peterborough City Council,Chief Executives,HR,Services,08/11/2019,30251105,968.75,Revenue,AXA PPP Healthcare OHS Ltd,Consultants Fees
Peterborough City Council,Resources,Finance,Services,08/11/2019,30251039,"58,341.00",Revenue,Grant Thornton UK LLP,Consultants Fees
Peterborough City Council,Resources,Finance,Services,08/11/2019,30250585,"455,000.00",Revenue,Grant Thornton UK LLP,Consultants Fees
Peterborough City Council,Resources,Finance,Services,08/11/2019,30250588,"455,000.00",Revenue,Grant Thornton UK LLP,Consultants Fees
Peterborough City Council,Corporate,Corporate,Non Revenue,08/11/2019,30250647,"1,925.00",Capital,Permanent Futures Ltd,Consultants Fees
Peterborough City Council,Corporate,Corporate,Non Revenue,08/11/2019,30250996,"10,850.00",Capital,Servelec Social Care Ltd,Consultants Fees
Peterborough City Council,Place & Economy,Network and Traffic Management,Services,08/11/2019,30247995,"1,118.04",Revenue,Dynniq UK Ltd,Contractors
Peterborough City Council,Place & Economy,Network and Traffic Management,Services,08/11/2019,30249996,"3,385.94",Revenue,Dynniq UK Ltd,Contractors
Peterborough City Council,Place & Economy,Network and Traffic Management,Services,08/11/2019,30249999,"3,953.24",Revenue,Dynniq UK Ltd,Contractors
Peterborough City Council,Place & Economy,Network and Traffic Management,Services,08/11/2019,30249998,"4,214.06",Revenue,Dynniq UK Ltd,Contractors
Peterborough City Council,Place & Economy,Network and Traffic Management,Services,08/11/2019,30249995,"4,760.72",Revenue,Dynniq UK Ltd,Contractors
Peterborough City Council,People & Communities,Home Services Delivery Model,Services,08/11/2019,30251045,973.25,Revenue,Handyman Steve,Contractors
Peterborough City Council,Place & Economy,Transport & Infrastructure Commissioning,Services,08/11/2019,30250937,623,Revenue,UK Power Networks (operations) Ltd,Contractors
Peterborough City Council,Place & Economy,Transport & Infrastructure Commissioning,Services,08/11/2019,30250938,623,Revenue,UK Power Networks (operations) Ltd,Contractors
Peterborough City Council,People & Communities,Independent Sector Placements,Services,08/11/2019,30250943,"1,579.60",Revenue,Cambridgeshire County Council,Daycare
Peterborough City Council,People & Communities,Clare Lodge,Agency Staff,08/11/2019,30251010,791.5,Revenue,Engage Education,External Temporary Staff
Peterborough City Council,Place & Economy,Planning Compliance,Agency Staff,08/11/2019,30251000,"1,466.25",Revenue,Park Avenue Recruitment Limited,External Temporary Staff
Peterborough City Council,People & Communities,Clare Lodge,Agency Staff,08/11/2019,30250005,510.12,Revenue,Reed Specialist Recruitment Limited,External Temporary Staff
Peterborough City Council,People & Communities,Clare Lodge,Agency Staff,08/11/2019,30249868,517.33,Revenue,Reed Specialist Recruitment Limited,External Temporary Staff
Peterborough City Council,People & Communities,Clare Lodge,Agency Staff,08/11/2019,30250140,539.22,Revenue,Reed Specialist Recruitment Limited,External Temporary Staff
Peterborough City Council,People & Communities,Strategic Commissioning - Management,Agency Staff,08/11/2019,30250404,579.15,Revenue,Reed Specialist Recruitment Limited,External Temporary Staff
Peterborough City Council,People & Communities,Clare Lodge,Agency Staff,08/11/2019,30250141,614.9,Revenue,Reed Specialist Recruitment Limited,External Temporary Staff
Peterborough City Council,People & Communities,Clare Lodge,Agency Staff,08/11/2019,30250142,624.36,Revenue,Reed Specialist Recruitment Limited,External Temporary Staff
Peterborough City Council,People & Communities,Clare Lodge,Agency Staff,08/11/2019,30250015,739.6,Revenue,Reed Specialist Recruitment Limited,External Temporary Staff
Peterborough City Council,People & Communities,Clare Lodge,Agency Staff,08/11/2019,30250016,972.29,Revenue,Reed Specialist Recruitment Limited,External Temporary Staff
Peterborough City Council,Place & Economy,Building Control,Agency Staff,08/11/2019,30250420,"1,075.05",Revenue,Reed Specialist Recruitment Limited,External Temporary Staff
Peterborough City Council,Place & Economy,Building Control,Agency Staff,08/11/2019,30251096,"1,075.05",Revenue,Reed Specialist Recruitment Limited,External Temporary Staff
Peterborough City Council,Place & Economy,Building Control,Agency Staff,08/11/2019,30251308,"1,075.05",Revenue,Reed Specialist Recruitment Limited,External Temporary Staff
Peterborough City Council,Place & Economy,Building Control,Agency Staff,08/11/2019,30251309,"1,075.05",Revenue,Reed Specialist Recruitment Limited,External Temporary Staff
Peterborough City Council,Place & Economy,Development Management,Agency Staff,08/11/2019,30250395,"1,494.80",Revenue,Reed Specialist Recruitment Limited,External Temporary Staff
Peterborough City Council,Governance,Legal Services,Agency Staff,08/11/2019,30250398,"1,772.75",Revenue,Reed Specialist Recruitment Limited,External Temporary Staff
Peterborough City Council,People & Communities,Clare Lodge,"Tools, Equipment, Furniture & Materials",08/11/2019,30250956,"1,738.60",Revenue,Pineapple Contracts,Furniture And Equip Purchase
Peterborough City Council,People & Communities,Cultural Services,Energy Costs,08/11/2019,30249877,513.85,Revenue,Corona Energy Retail 4 Limited,Gas
Peterborough City Council,Place & Economy,Waste & Operational Svs Mgmt,Energy Costs,08/11/2019,30249910,618.16,Revenue,Corona Energy Retail 4 Limited,Gas
Peterborough City Council,People & Communities,PFI,Energy Costs,08/11/2019,30249910,781.51,Revenue,Corona Energy Retail 4 Limited,Gas
Peterborough City Council,People & Communities,PFI,Energy Costs,08/11/2019,30249910,895.3,Revenue,Corona Energy Retail 4 Limited,Gas
Peterborough City Council,People & Communities,PFI,Energy Costs,08/11/2019,30249910,"1,389.65",Revenue,Corona Energy Retail 4 Limited,Gas
Peterborough City Council,People & Communities,Cultural Services,Energy Costs,08/11/2019,30249910,"1,552.64",Revenue,Corona Energy Retail 4 Limited,Gas
Peterborough City Council,People & Communities,Cultural Services,Energy Costs,08/11/2019,30249872,"2,184.47",Revenue,Corona Energy Retail 4 Limited,Gas
Peterborough City Council,Resources,Bereavement Service,Energy Costs,08/11/2019,30249910,"3,588.11",Revenue,Corona Energy Retail 4 Limited,Gas
Peterborough City Council,People & Communities,Cultural Services,Energy Costs,08/11/2019,30249872,"5,134.68",Revenue,Corona Energy Retail 4 Limited,Gas
Peterborough City Council,People & Communities,Home Services Delivery Model,Customer and client receipts - Fees & Charges,08/11/2019,30250593,-588.78,Revenue,Movement 2 - Prism Medical UK,Grant Payment
Peterborough City Council,People & Communities,Early Years & Quality Improvement,Services,08/11/2019,30248093,650.85,Revenue,Kirsty?s Little Sunflowers,Grant Payment
Peterborough City Council,Corporate,Corporate,Non Revenue,08/11/2019,30251021,"2,011.50",Capital,M J Greaves,Grant Payment
Peterborough City Council,Corporate,Corporate,Non Revenue,08/11/2019,30251017,"2,417.53",Capital,Movement 2 - Prism Medical UK,Grant Payment
Peterborough City Council,Corporate,Corporate,Non Revenue,08/11/2019,30250593,"4,513.98",Capital,Movement 2 - Prism Medical UK,Grant Payment
Peterborough City Council,People & Communities,School Standards & Effectiveness,Services,08/11/2019,30251047,920,Revenue,Top Class Tutors,Grant Payment
Peterborough City Council,Corporate,Corporate,Non Revenue,08/11/2019,30250590,"1,676.70",Capital,Warics Ltd,Grant Payment
Peterborough City Council,People & Communities,Early Help ASC/CSC,Services,08/11/2019,30250994,"45,784.00",Revenue,Barnardo Services Limited,Hired Services
Peterborough City Council,People & Communities,Commissioning,Services,08/11/2019,30251272,"190,290.75",Revenue,Barnardo Services Limited,Hired Services
Peterborough City Council,People & Communities,Commissioning,Services,08/11/2019,30251275,"190,290.75",Revenue,Barnardo Services Limited,Hired Services
Peterborough City Council,People & Communities,Commissioning,Services,08/11/2019,30250624,"1,290.00",Revenue,Milton Keynes Council,Hired Services
Peterborough City Council,People & Communities,Early Help ASC/CSC,Services,08/11/2019,30250992,"4,701.00",Revenue,The Ministry of Parenting CIC,Hired Services
Peterborough City Council,People & Communities,HTS & CSC Transport,Contract Hire and Operating Leases,08/11/2019,8000154554,910,Revenue,A2B Euro Cars,Hired Transport
Peterborough City Council,People & Communities,HTS & CSC Transport,Contract Hire and Operating Leases,08/11/2019,8000154553,"2,875.00",Revenue,A2B Euro Cars,Hired Transport
Peterborough City Council,People & Communities,HTS & CSC Transport,Contract Hire and Operating Leases,08/11/2019,8000154473,682,Revenue,Goldstar Cabs Ltd,Hired Transport
Peterborough City Council,People & Communities,HTS & CSC Transport,Contract Hire and Operating Leases,08/11/2019,8000154472,723.25,Revenue,Goldstar Cabs Ltd,Hired Transport
Peterborough City Council,People & Communities,HTS & CSC Transport,Contract Hire and Operating Leases,08/11/2019,8000154474,742.02,Revenue,Goldstar Cabs Ltd,Hired Transport
Peterborough City Council,People & Communities,HTS & CSC Transport,Contract Hire and Operating Leases,08/11/2019,8000154477,876,Revenue,Goldstar Cabs Ltd,Hired Transport
Peterborough City Council,People & Communities,HTS & CSC Transport,Contract Hire and Operating Leases,08/11/2019,8000154475,"1,408.51",Revenue,Goldstar Cabs Ltd,Hired Transport
Peterborough City Council,People & Communities,HTS & CSC Transport,Contract Hire and Operating Leases,08/11/2019,8000154497,"2,120.00",Revenue,King Carz Ltd,Hired Transport
Peterborough City Council,People & Communities,HTS & CSC Transport,Contract Hire and Operating Leases,08/11/2019,8000154463,531.72,Revenue,Peterborough Cars,Hired Transport
Peterborough City Council,People & Communities,HTS & CSC Transport,Contract Hire and Operating Leases,08/11/2019,8000154465,611,Revenue,Peterborough Cars,Hired Transport
Peterborough City Council,People & Communities,HTS & CSC Transport,Contract Hire and Operating Leases,08/11/2019,8000154468,678.44,Revenue,Peterborough Cars,Hired Transport
Peterborough City Council,People & Communities,Independent Sector Placements,Contract Hire and Operating Leases,08/11/2019,30251026,735,Revenue,Peterborough Cars,Hired Transport
Peterborough City Council,People & Communities,HTS & CSC Transport,Contract Hire and Operating Leases,08/11/2019,8000154495,637.2,Revenue,R T Enterprises Ltd T/A Royal Taxis,Hired Transport
Peterborough City Council,People & Communities,HTS & CSC Transport,Contract Hire and Operating Leases,08/11/2019,8000154494,684,Revenue,R T Enterprises Ltd T/A Royal Taxis,Hired Transport
Peterborough City Council,People & Communities,HTS & CSC Transport,Contract Hire and Operating Leases,08/11/2019,8000154530,591,Revenue,Redacted Personal Information,Hired Transport
Peterborough City Council,People & Communities,HTS & CSC Transport,Contract Hire and Operating Leases,08/11/2019,8000154527,990.37,Revenue,Redacted Personal Information,Hired Transport
Peterborough City Council,People & Communities,HTS & CSC Transport,Contract Hire and Operating Leases,08/11/2019,8000154532,"1,030.50",Revenue,Redacted Personal Information,Hired Transport
Peterborough City Council,People & Communities,HTS & CSC Transport,Contract Hire and Operating Leases,08/11/2019,8000154528,"1,047.00",Revenue,Redacted Personal Information,Hired Transport
Peterborough City Council,People & Communities,HTS & CSC Transport,Contract Hire and Operating Leases,08/11/2019,8000154531,"1,132.15",Revenue,Redacted Personal Information,Hired Transport
Peterborough City Council,People & Communities,HTS & CSC Transport,Contract Hire and Operating Leases,08/11/2019,8000154536,"1,387.90",Revenue,Redacted Personal Information,Hired Transport
Peterborough City Council,People & Communities,HTS & CSC Transport,Contract Hire and Operating Leases,08/11/2019,8000154533,"1,988.31",Revenue,Redacted Personal Information,Hired Transport
Peterborough City Council,People & Communities,Independent Sector Placements,Services,08/11/2019,30250482,"2,077.60",Revenue,Augusta Care Ltd,Homecare
Peterborough City Council,People & Communities,Independent Sector Placements,Services,08/11/2019,30250481,"2,087.24",Revenue,Augusta Care Ltd,Homecare
Peterborough City Council,People & Communities,Independent Sector Placements,Services,08/11/2019,30250509,"2,283.40",Revenue,Augusta Care Ltd,Homecare
Peterborough City Council,People & Communities,Independent Sector Placements,Services,08/11/2019,30250517,"2,285.40",Revenue,Augusta Care Ltd,Homecare
Peterborough City Council,People & Communities,Independent Sector Placements,Services,08/11/2019,30250512,"2,312.80",Revenue,Augusta Care Ltd,Homecare
Peterborough City Council,People & Communities,Independent Sector Placements,Services,08/11/2019,30250514,"2,312.80",Revenue,Augusta Care Ltd,Homecare
Peterborough City Council,People & Communities,Independent Sector Placements,Services,08/11/2019,30250484,"2,606.80",Revenue,Augusta Care Ltd,Homecare
Peterborough City Council,People & Communities,Independent Sector Placements,Services,08/11/2019,30250510,"2,611.52",Revenue,Augusta Care Ltd,Homecare
Peterborough City Council,People & Communities,Independent Sector Placements,Services,08/11/2019,30250487,"2,665.60",Revenue,Augusta Care Ltd,Homecare
Peterborough City Council,People & Communities,Independent Sector Placements,Services,08/11/2019,30250486,"3,224.20",Revenue,Augusta Care Ltd,Homecare
Peterborough City Council,People & Communities,Independent Sector Placements,Services,08/11/2019,30250515,"6,098.24",Revenue,Augusta Care Ltd,Homecare
Peterborough City Council,People & Communities,Independent Sector Placements,Services,08/11/2019,30250483,"11,117.40",Revenue,Augusta Care Ltd,Homecare
Peterborough City Council,People & Communities,Independent Sector Placements,Services,08/11/2019,30250723,"3,640.00",Revenue,Caretech Community Services Limited,Homecare
Peterborough City Council,People & Communities,Independent Sector Placements,Services,08/11/2019,30250977,"2,616.20",Revenue,Excellence Care Ltd,Homecare
Peterborough City Council,People & Communities,Independent Sector Placements,Services,08/11/2019,30250978,"3,313.72",Revenue,Excellence Care Ltd,Homecare
Peterborough City Council,People & Communities,Independent Sector Placements,Services,08/11/2019,30250907,501.4,Revenue,Longhurst Group Limited,Homecare
Peterborough City Council,People & Communities,Independent Sector Placements,Services,08/11/2019,30250463,526.32,Revenue,Longhurst Group Limited,Homecare
Peterborough City Council,People & Communities,Independent Sector Placements,Services,08/11/2019,30250863,530.8,Revenue,Longhurst Group Limited,Homecare
Peterborough City Council,People & Communities,Independent Sector Placements,Services,08/11/2019,30250877,589.6,Revenue,Longhurst Group Limited,Homecare
Peterborough City Council,People & Communities,Independent Sector Placements,Services,08/11/2019,30250892,589.6,Revenue,Longhurst Group Limited,Homecare
Peterborough City Council,People & Communities,Independent Sector Placements,Services,08/11/2019,30250844,599.76,Revenue,Longhurst Group Limited,Homecare
Peterborough City Council,People & Communities,Independent Sector Placements,Services,08/11/2019,30250447,612,Revenue,Longhurst Group Limited,Homecare
Peterborough City Council,People & Communities,Independent Sector Placements,Services,08/11/2019,30250901,677.8,Revenue,Longhurst Group Limited,Homecare
Peterborough City Council,People & Communities,Independent Sector Placements,Services,08/11/2019,30250451,685.44,Revenue,Longhurst Group Limited,Homecare
Peterborough City Council,People & Communities,Independent Sector Placements,Services,08/11/2019,30250896,739.54,Revenue,Longhurst Group Limited,Homecare
Peterborough City Council,People & Communities,Independent Sector Placements,Services,08/11/2019,30250842,777.24,Revenue,Longhurst Group Limited,Homecare
Peterborough City Council,People & Communities,Independent Sector Placements,Services,08/11/2019,30250855,930.24,Revenue,Longhurst Group Limited,Homecare
Peterborough City Council,People & Communities,Independent Sector Placements,Services,08/11/2019,30250968,"1,162.80",Revenue,Longhurst Group Limited,Homecare
Peterborough City Council,People & Communities,Independent Sector Placements,Services,08/11/2019,30250770,"1,199.52",Revenue,Longhurst Group Limited,Homecare
Peterborough City Council,People & Communities,Independent Sector Placements,Services,08/11/2019,30250964,"1,199.52",Revenue,Longhurst Group Limited,Homecare
Peterborough City Council,People & Communities,Independent Sector Placements,Services,08/11/2019,30250651,"1,279.08",Revenue,Longhurst Group Limited,Homecare
Peterborough City Council,People & Communities,Independent Sector Placements,Services,08/11/2019,30250714,"1,285.20",Revenue,Longhurst Group Limited,Homecare
Peterborough City Council,People & Communities,Independent Sector Placements,Services,08/11/2019,30250960,"1,285.20",Revenue,Longhurst Group Limited,Homecare
Peterborough City Council,People & Communities,Independent Sector Placements,Services,08/11/2019,30250744,"1,542.24",Revenue,Longhurst Group Limited,Homecare
Peterborough City Council,People & Communities,Independent Sector Placements,Services,08/11/2019,30250961,"1,542.24",Revenue,Longhurst Group Limited,Homecare
Peterborough City Council,People & Communities,Independent Sector Placements,Services,08/11/2019,30250648,"1,627.92",Revenue,Longhurst Group Limited,Homecare
Peterborough City Council,People & Communities,Independent Sector Placements,Services,08/11/2019,30250768,"1,627.92",Revenue,Longhurst Group Limited,Homecare
Peterborough City Council,People & Communities,Independent Sector Placements,Services,08/11/2019,30250853,"1,627.92",Revenue,Longhurst Group Limited,Homecare
Peterborough City Council,People & Communities,Independent Sector Placements,Services,08/11/2019,30250810,"1,884.96",Revenue,Longhurst Group Limited,Homecare
Peterborough City Council,People & Communities,Independent Sector Placements,Services,08/11/2019,30250830,"1,884.96",Revenue,Longhurst Group Limited,Homecare
Peterborough City Council,People & Communities,Independent Sector Placements,Services,08/11/2019,30250966,"1,884.96",Revenue,Longhurst Group Limited,Homecare
Peterborough City Council,People & Communities,Independent Sector Placements,Services,08/11/2019,30250749,"2,399.04",Revenue,Longhurst Group Limited,Homecare
Peterborough City Council,People & Communities,Independent Sector Placements,Services,08/11/2019,30250963,"2,399.04",Revenue,Longhurst Group Limited,Homecare
Peterborough City Council,People & Communities,Independent Sector Placements,Services,08/11/2019,30250989,"1,065.60",Revenue,Mencap,Homecare
Peterborough City Council,People & Communities,Independent Sector Placements,Services,08/11/2019,30250979,"7,082.60",Revenue,Mencap,Homecare
Peterborough City Council,People & Communities,Independent Sector Placements,Services,08/11/2019,30250351,"-3,963.04",Revenue,PossAbilities CIC,Homecare
Peterborough City Council,People & Communities,Independent Sector Placements,Services,08/11/2019,30250353,"-3,963.04",Revenue,PossAbilities CIC,Homecare
Peterborough City Council,People & Communities,Independent Sector Placements,Services,08/11/2019,30250693,939.6,Revenue,PossAbilities CIC,Homecare
Peterborough City Council,People & Communities,Independent Sector Placements,Services,08/11/2019,30250704,939.6,Revenue,PossAbilities CIC,Homecare
Peterborough City Council,People & Communities,Independent Sector Placements,Services,08/11/2019,30250348,"3,963.04",Revenue,PossAbilities CIC,Homecare
Peterborough City Council,People & Communities,Independent Sector Placements,Services,08/11/2019,30250349,"3,963.04",Revenue,PossAbilities CIC,Homecare
Peterborough City Council,People & Communities,Independent Sector Placements,Services,08/11/2019,30250695,"4,145.36",Revenue,PossAbilities CIC,Homecare
Peterborough City Council,People & Communities,Independent Sector Placements,Services,08/11/2019,30250696,"4,145.36",Revenue,PossAbilities CIC,Homecare
Peterborough City Council,People & Communities,Independent Sector Placements,Services,08/11/2019,30250843,994.52,Revenue,Sahara Community Care Services Limited,Homecare
Peterborough City Council,People & Communities,Independent Sector Placements,Services,08/11/2019,30250797,"1,032.76",Revenue,Sahara Community Care Services Limited,Homecare
Peterborough City Council,People & Communities,Independent Sector Placements,Services,08/11/2019,30250847,"1,177.07",Revenue,Sahara Community Care Services Limited,Homecare
Peterborough City Council,People & Communities,Independent Sector Placements,Services,08/11/2019,30250799,"1,203.34",Revenue,Sahara Community Care Services Limited,Homecare
Peterborough City Council,People & Communities,Independent Sector Placements,Services,08/11/2019,30250793,"1,605.73",Revenue,Sahara Community Care Services Limited,Homecare
Peterborough City Council,People & Communities,Independent Sector Placements,Services,08/11/2019,30250804,"1,637.10",Revenue,Sahara Community Care Services Limited,Homecare
Peterborough City Council,People & Communities,Independent Sector Placements,Services,08/11/2019,30250817,"1,713.60",Revenue,Sahara Community Care Services Limited,Homecare
Peterborough City Council,People & Communities,Independent Sector Placements,Services,08/11/2019,30250832,"2,352.00",Revenue,Sahara Community Care Services Limited,Homecare
Peterborough City Council,People & Communities,Independent Sector Placements,Services,08/11/2019,30250833,"2,744.00",Revenue,Sahara Community Care Services Limited,Homecare
Peterborough City Council,People & Communities,Commissioning,Services,08/11/2019,30251094,588.51,Revenue,CAPITA Translation and Interpreting,Interpretation Expenses
Peterborough City Council,People & Communities,Commissioning,Services,08/11/2019,30250933,631.25,Revenue,CAPITA Translation and Interpreting,Interpretation Expenses
Peterborough City Council,Place & Economy,Waste Management,Services,08/11/2019,30250274,"5,450.00",Revenue,Browne Jacobson,Legal Costs
Peterborough City Council,Governance,Legal Services,Services,08/11/2019,30251306,650,Revenue,"Elliott, Ms Margot",Legal Costs
Peterborough City Council,Governance,Legal Services,Services,08/11/2019,30249402,700,Revenue,Redacted Personal Information,Legal Costs
Peterborough City Council,Governance,Legal Services,Services,08/11/2019,30251070,780,Revenue,Redacted Personal Information,Legal Costs
Peterborough City Council,Resources,Finance,Services,08/11/2019,30251110,"1,895.00",Revenue,Redacted Personal Information,Legal Costs
Peterborough City Council,Governance,Legal Services,Services,08/11/2019,30247937,"5,500.00",Revenue,"Pilkington, Ms Abigail",Legal Costs
Peterborough City Council,Chief Executives,Chief Executive,Services,08/11/2019,30251189,"7,817.70",Revenue,The Copyright Licencing Agency Ltd,Licences
Peterborough City Council,Resources,Commercial Propety,Repair & Maintenance of Buildings,08/11/2019,30250987,"17,554.50",Revenue,Bee Lettings Ltd,Maintenance
Peterborough City Council,People & Communities,Child Health,Repair & Maintenance of Buildings,08/11/2019,30251007,"1,550.60",Revenue,Britannia Fire & Security Ltd,Maintenance
Peterborough City Council,Place & Economy,Westcombe Engineering,Services,08/11/2019,30250993,"1,952.00",Revenue,AALCO,Materials
Peterborough City Council,Resources,Bereavement Service,Services,08/11/2019,30250955,"1,275.00",Revenue,Ashdown Supplies,Materials
Peterborough City Council,Place & Economy,Westcombe Engineering,Services,08/11/2019,30251153,605,Revenue,Barron Clark Castings Ltd,Materials
Peterborough City Council,Place & Economy,Westcombe Engineering,Services,08/11/2019,30251214,"1,097.50",Revenue,Paul Clarke CNC Machine Tool Services,Materials
Peterborough City Council,Place & Economy,Westcombe Engineering,Services,08/11/2019,30251038,750,Revenue,Peterborough Blasting Ltd,Materials
Peterborough City Council,Corporate,Corporate,Non Revenue,08/11/2019,30251129,"5,442.35",Balance Sheet,The Prudential Assurance Company Ltd,Pensions
Peterborough City Council,Corporate,Corporate,Non Revenue,08/11/2019,30250367,"1,671.80",Capital,Bryan Cave Leighton Paisner LLP,Planning Application Fees
Peterborough City Council,Resources,PSSP Retained Services,Services,08/11/2019,30251205,"4,141.25",Revenue,Whistl UK Ltd,Postage
Peterborough City Council,Resources,Commercial Propety,Services,08/11/2019,30251031,"2,906.00",Revenue,Browne Jacobson,Professional Services
Peterborough City Council,Place & Economy,Network and Traffic Management,Services,08/11/2019,30249528,"7,300.80",Revenue,Vix Technology UK Ltd,Real Time Passenger Info
Peterborough City Council,Place & Economy,Network and Traffic Management,Services,08/11/2019,30249570,"7,300.80",Revenue,Vix Technology UK Ltd,Real Time Passenger Info
Peterborough City Council,Corporate,Corporate,Non Revenue,08/11/2019,30250203,"4,662.50",Balance Sheet,Pep & Anty Ltd,Rent
Peterborough City Council,Corporate,Corporate,Non Revenue,08/11/2019,30250204,"2,125.00",Balance Sheet,Redacted Personal Information,Rent
Peterborough City Council,Corporate,Corporate,Non Revenue,08/11/2019,30250198,"3,750.00",Balance Sheet,Redacted Personal Information,Rent
Peterborough City Council,People & Communities,Clare Lodge,Repair & Maintenance of Buildings,08/11/2019,30250930,720,Revenue,Southview Building Solutions Ltd,Repairs
Peterborough City Council,People & Communities,Clare Lodge,Repair & Maintenance of Buildings,08/11/2019,30250931,"4,264.67",Revenue,Southview Building Solutions Ltd,Repairs
Peterborough City Council,People & Communities,Independent Sector Placements,Services,08/11/2019,30251027,"2,015.63",Revenue,Alysia Caring Ltd T/a Cherry Blossom care Home,Residential Care
Peterborough City Council,People & Communities,Independent Sector Placements,Services,08/11/2019,30251142,"-1,053.20",Revenue,Athena (Ashlynn Grange),Residential Care
Peterborough City Council,People & Communities,Independent Sector Placements,Services,08/11/2019,30251145,-794.04,Revenue,Athena (Ashlynn Grange),Residential Care
Peterborough City Council,People & Communities,Independent Sector Placements,Services,08/11/2019,30251144,-600.4,Revenue,Athena (Ashlynn Grange),Residential Care
Peterborough City Council,People & Communities,Independent Sector Placements,Services,08/11/2019,30250767,"1,685.72",Revenue,Athena (Ashlynn Grange),Residential Care
Peterborough City Council,People & Communities,Independent Sector Placements,Services,08/11/2019,30250952,"-1,220.22",Revenue,Barchester Healthcare (Werrington Lodge),Residential Care
Peterborough City Council,People & Communities,Independent Sector Placements,Services,08/11/2019,30250848,"1,382.52",Revenue,Barchester Wood Grange,Residential Care
Peterborough City Council,People & Communities,Independent Sector Placements,Services,08/11/2019,30250851,"1,382.52",Revenue,Barchester Wood Grange,Residential Care
Peterborough City Council,People & Communities,Independent Sector Placements,Services,08/11/2019,30251014,"3,864.68",Revenue,Consensus Support Services Ltd,Residential Care
Peterborough City Council,People & Communities,Independent Sector Placements,Services,08/11/2019,30250976,"14,588.00",Revenue,Decoy Farm,Residential Care
Peterborough City Council,People & Communities,Independent Sector Placements,Services,08/11/2019,30250950,919.52,Revenue,Park Vista Care Home,Residential Care
Peterborough City Council,People & Communities,Independent Sector Placements,Services,08/11/2019,30251024,"1,376.60",Revenue,Park Vista Care Home,Residential Care
Peterborough City Council,People & Communities,Independent Sector Placements,Services,08/11/2019,30250713,"1,543.64",Revenue,STAR RESIDENTIAL HOME LTD,Residential Care
Peterborough City Council,People & Communities,Independent Sector Placements,Services,08/11/2019,30250692,"1,892.68",Revenue,STAR RESIDENTIAL HOME LTD,Residential Care
Peterborough City Council,People & Communities,Independent Sector Placements,Services,08/11/2019,30250715,"1,930.40",Revenue,STAR RESIDENTIAL HOME LTD,Residential Care
Peterborough City Council,People & Communities,Independent Sector Placements,Services,08/11/2019,30250684,"1,985.56",Revenue,STAR RESIDENTIAL HOME LTD,Residential Care
Peterborough City Council,People & Communities,Independent Sector Placements,Services,08/11/2019,30250694,"2,030.60",Revenue,STAR RESIDENTIAL HOME LTD,Residential Care
Peterborough City Council,People & Communities,Independent Sector Placements,Services,08/11/2019,30250700,"2,030.60",Revenue,STAR RESIDENTIAL HOME LTD,Residential Care
Peterborough City Council,People & Communities,Independent Sector Placements,Services,08/11/2019,30250710,"2,034.40",Revenue,STAR RESIDENTIAL HOME LTD,Residential Care
Peterborough City Council,People & Communities,Independent Sector Placements,Services,08/11/2019,30250711,"2,035.40",Revenue,STAR RESIDENTIAL HOME LTD,Residential Care
Peterborough City Council,People & Communities,Independent Sector Placements,Services,08/11/2019,30250705,"2,186.60",Revenue,STAR RESIDENTIAL HOME LTD,Residential Care
Peterborough City Council,People & Communities,Independent Sector Placements,Services,08/11/2019,30250701,"2,186.96",Revenue,STAR RESIDENTIAL HOME LTD,Residential Care
Peterborough City Council,People & Communities,Independent Sector Placements,Services,08/11/2019,30250682,"2,591.36",Revenue,STAR RESIDENTIAL HOME LTD,Residential Care
Peterborough City Council,People & Communities,Independent Sector Placements,Services,08/11/2019,30250689,"2,600.80",Revenue,STAR RESIDENTIAL HOME LTD,Residential Care
Peterborough City Council,People & Communities,Independent Sector Placements,Services,08/11/2019,30250717,"3,233.44",Revenue,STAR RESIDENTIAL HOME LTD,Residential Care
Peterborough City Council,People & Communities,Independent Sector Placements,Services,08/11/2019,30250944,"1,608.76",Revenue,ABBEYGATE REST HOME,Residential Care
Peterborough City Council,People & Communities,Independent Sector Placements,Services,08/11/2019,30250384,"1,822.32",Revenue,Ashmere,Residential Care
Peterborough City Council,People & Communities,Independent Sector Placements,Services,08/11/2019,30250954,"9,168.60",Revenue,Autism Care (UK) Ltd,Residential Care
Peterborough City Council,People & Communities,Independent Sector Placements,Services,08/11/2019,30250980,"2,437.00",Revenue,Benell Care Services Ltd,Residential Care
Peterborough City Council,People & Communities,Independent Sector Placements,Services,08/11/2019,30250949,"2,420.00",Revenue,Excelcare Aliwal Manor,Residential Care
Peterborough City Council,People & Communities,Independent Sector Placements,Services,08/11/2019,30250981,"2,883.06",Revenue,Fins Care Ltd t/a St Margarets Rest Home,Residential Care
Peterborough City Council,People & Communities,Independent Sector Placements,Services,08/11/2019,30250975,"29,929.80",Revenue,Goldcare Homes t/a The Tudors Care Home,Residential Care
Peterborough City Council,People & Communities,Independent Sector Placements,Services,08/11/2019,30250973,"8,823.64",Revenue,Heathcotes PD Ltd,Residential Care
Peterborough City Council,People & Communities,Independent Sector Placements,Services,08/11/2019,30250941,"1,094.56",Revenue,Kemps Place Ltd,Residential Care
Peterborough City Council,People & Communities,Independent Sector Placements,Services,08/11/2019,30250939,"2,731.84",Revenue,Kemps Place Ltd,Residential Care
Peterborough City Council,People & Communities,Independent Sector Placements,Services,08/11/2019,30250942,"2,735.48",Revenue,Kemps Place Ltd,Residential Care
Peterborough City Council,People & Communities,Independent Sector Placements,Services,08/11/2019,30250946,558.98,Revenue,LAVENDER HOUSE RESIDENTIAL HOME,Residential Care
Peterborough City Council,People & Communities,Independent Sector Placements,Services,08/11/2019,30250947,"1,956.44",Revenue,LAVENDER HOUSE RESIDENTIAL HOME,Residential Care
Peterborough City Council,People & Communities,Independent Sector Placements,Services,08/11/2019,30250967,"2,347.80",Revenue,Linkage Community Trust Limited,Residential Care
Peterborough City Council,People & Communities,Independent Sector Placements,Services,08/11/2019,30251023,"8,255.68",Revenue,NEW BOUNDARIES COMMUNITY SERVICES LTD,Residential Care
Peterborough City Council,People & Communities,Independent Sector Placements,Services,08/11/2019,30250953,"4,391.80",Revenue,OAKFIELD (EASTON MAUDIT) LTD,Residential Care
Peterborough City Council,People & Communities,Independent Sector Placements,Services,08/11/2019,30251016,"-2,017.08",Revenue,Park Vista Care Home,Residential Care
Peterborough City Council,People & Communities,Independent Sector Placements,Services,08/11/2019,30251018,"1,821.88",Revenue,Park Vista Care Home,Residential Care
Peterborough City Council,People & Communities,Independent Sector Placements,Services,08/11/2019,30250740,"1,778.20",Revenue,PHILIA LODGE REST HOME,Residential Care
Peterborough City Council,People & Communities,Independent Sector Placements,Services,08/11/2019,30250800,"2,024.72",Revenue,PHILIA LODGE REST HOME,Residential Care
Peterborough City Council,People & Communities,Independent Sector Placements,Services,08/11/2019,30250736,"2,143.28",Revenue,PHILIA LODGE REST HOME,Residential Care
Peterborough City Council,People & Communities,Independent Sector Placements,Services,08/11/2019,30250737,"2,780.00",Revenue,PHILIA LODGE REST HOME,Residential Care
Peterborough City Council,People & Communities,Independent Sector Placements,Services,08/11/2019,30250794,"2,780.00",Revenue,PHILIA LODGE REST HOME,Residential Care
Peterborough City Council,People & Communities,Independent Sector Placements,Services,08/11/2019,30250801,"2,780.00",Revenue,PHILIA LODGE REST HOME,Residential Care
Peterborough City Council,People & Communities,Independent Sector Placements,Services,08/11/2019,30250806,"2,780.00",Revenue,PHILIA LODGE REST HOME,Residential Care
Peterborough City Council,People & Communities,Independent Sector Placements,Services,08/11/2019,30250809,"2,780.00",Revenue,PHILIA LODGE REST HOME,Residential Care
Peterborough City Council,People & Communities,Independent Sector Placements,Services,08/11/2019,30249897,811,Revenue,Richmond Fellowship (The),Residential Care
Peterborough City Council,People & Communities,Independent Sector Placements,Services,08/11/2019,30249898,823,Revenue,Richmond Fellowship (The),Residential Care
Peterborough City Council,People & Communities,Independent Sector Placements,Services,08/11/2019,30249899,823,Revenue,Richmond Fellowship (The),Residential Care
Peterborough City Council,People & Communities,Independent Sector Placements,Services,08/11/2019,30250971,"3,418.32",Revenue,Sanctuary Home Care Ltd (Southwood House),Residential Care
Peterborough City Council,People & Communities,Independent Sector Placements,Services,08/11/2019,30250679,"1,490.24",Revenue,STAR RESIDENTIAL HOME LTD,Residential Care
Peterborough City Council,People & Communities,Independent Sector Placements,Services,08/11/2019,30250951,"1,852.48",Revenue,The Cedars Bourne Care Home,Residential Care
Peterborough City Council,People & Communities,Independent Sector Placements,Services,08/11/2019,30251022,"1,792.60",Revenue,THE LODGE TRUST,Residential Care
Peterborough City Council,People & Communities,Regulatory Services,Services,08/11/2019,30251187,950,Revenue,Barker associates LLP,Residential Care
Peterborough City Council,People & Communities,Independent Sector Placements,Services,08/11/2019,30251143,"-1,892.12",Revenue,Athena (Ashlynn Grange),Respite Care 
Peterborough City Council,People & Communities,Independent Sector Placements,Services,08/11/2019,30251141,"-1,203.65",Revenue,Athena (Ashlynn Grange),Respite Care 
Peterborough City Council,People & Communities,Independent Sector Placements,Services,08/11/2019,30250381,"2,012.54",Revenue,Athena (Ashlynn Grange),Respite Care 
Peterborough City Council,People & Communities,Independent Sector Placements,Services,08/11/2019,30250382,"2,347.96",Revenue,Athena (Ashlynn Grange),Respite Care 
Peterborough City Council,People & Communities,Independent Sector Placements,Services,08/11/2019,30250706,"1,884.11",Revenue,BROADLEIGH NURSING HOME,Respite Care 
Peterborough City Council,People & Communities,Independent Sector Placements,Services,08/11/2019,30250399,"2,713.13",Revenue,BROADLEIGH NURSING HOME,Respite Care 
Peterborough City Council,People & Communities,Independent Sector Placements,Services,08/11/2019,30251090,"2,850.00",Revenue,Fins Care Ltd t/a St Margarets Rest Home,Respite Care 
Peterborough City Council,People & Communities,Independent Sector Placements,Services,08/11/2019,30251088,"4,954.70",Revenue,Fins Care Ltd t/a St Margarets Rest Home,Respite Care 
Peterborough City Council,People & Communities,Independent Sector Placements,Services,08/11/2019,30250840,"1,260.00",Revenue,Park Vista Care Home,Respite Care 
Peterborough City Council,People & Communities,Independent Sector Placements,Services,08/11/2019,30250841,"1,496.54",Revenue,Park Vista Care Home,Respite Care 
Peterborough City Council,People & Communities,Independent Sector Placements,Services,08/11/2019,30250721,"1,952.01",Revenue,Park Vista Care Home,Respite Care 
Peterborough City Council,People & Communities,Independent Sector Placements,Services,08/11/2019,30251025,564.74,Revenue,Peterborough Cars,Respite Care 
Peterborough City Council,People & Communities,Independent Sector Placements,Services,08/11/2019,30251108,"2,142.75",Revenue,RBL Field House Care LTD,Respite Care 
Peterborough City Council,People & Communities,Independent Sector Placements,Services,08/11/2019,30250681,"1,680.00",Revenue,STAR RESIDENTIAL HOME LTD,Respite Care 
Peterborough City Council,People & Communities,Independent Sector Placements,Services,08/11/2019,30219548,"5,777.14",Revenue,Barchester Healthcare (Werrington Lodge),Respite Care 
Peterborough City Council,People & Communities,Service Director Education,Services,08/11/2019,30249229,"-11,416.00",Revenue,Alkemygold Limited,Subscriptions
Peterborough City Council,People & Communities,Service Director Education,Services,08/11/2019,30249119,"11,416.00",Revenue,Alkemygold Limited,Subscriptions
Peterborough City Council,People & Communities,Service Director Education,Services,08/11/2019,30251009,"11,416.00",Revenue,Alkemygold Limited,Subscriptions
Peterborough City Council,People & Communities,School Standards & Effectiveness,Services,08/11/2019,30251008,810,Revenue,National Governance Association  (NGA),Subscriptions
Peterborough City Council,People & Communities,Housing,Services,08/11/2019,30249694,"8,455.29",Revenue,Eastfield Guesthouse,Temporary Accommodation Costs
Peterborough City Council,People & Communities,Housing,Services,08/11/2019,30249692,"14,281.02",Revenue,Eastfield Guesthouse,Temporary Accommodation Costs
Peterborough City Council,Resources,Commercial Propety,Services,08/11/2019,30250374,"5,000.00",Revenue,Redacted Personal Information,Third Party Payment
Peterborough City Council,Resources,Commercial Propety,Services,08/11/2019,30250371,"17,000.00",Revenue,Redacted Personal Information,Third Party Payment
Peterborough City Council,Resources,Commercial Propety,Services,08/11/2019,30250373,"17,000.00",Revenue,Redacted Personal Information,Third Party Payment
Peterborough City Council,People & Communities,Cultural Services,Customer and client receipts - Fees & Charges,08/11/2019,30251034,"5,319.42",Revenue,Vivacity Culture and Leisure,Third Party Payments
Peterborough City Council,Public Health,PH Commissioning,Other Establishments,08/11/2019,30251228,577.7,Revenue,Ailsworth Medical Centre,Third Party Payments - Contract
Peterborough City Council,People & Communities,Cohesion,Other Establishments,08/11/2019,30250990,"125,000.00",Revenue,Department for Work and Pensions,Third Party Payments - Contract
Peterborough City Council,People & Communities,Finance,Other Establishments,08/11/2019,30251036,"12,791.17",Revenue,Healthwatch Cambridgeshire and Peterborough,Third Party Payments - Contract
Peterborough City Council,People & Communities,Finance,Other Establishments,08/11/2019,30251037,"12,791.17",Revenue,Healthwatch Cambridgeshire and Peterborough,Third Party Payments - Contract
Peterborough City Council,People & Communities,Block Contracts,Other Establishments,08/11/2019,30251006,"6,942.81",Revenue,Home Group Ltd,Third Party Payments - Contract
Peterborough City Council,People & Communities,Block Contracts,Other Establishments,08/11/2019,30250434,"2,056.32",Revenue,Longhurst Group Limited,Third Party Payments - Contract
Peterborough City Council,People & Communities,Block Contracts,Other Establishments,08/11/2019,30250435,"2,056.32",Revenue,Longhurst Group Limited,Third Party Payments - Contract
Peterborough City Council,People & Communities,Block Contracts,Other Establishments,08/11/2019,30250443,"2,056.32",Revenue,Longhurst Group Limited,Third Party Payments - Contract
Peterborough City Council,People & Communities,Block Contracts,Other Establishments,08/11/2019,30250449,"2,056.32",Revenue,Longhurst Group Limited,Third Party Payments - Contract
Peterborough City Council,People & Communities,Block Contracts,Other Establishments,08/11/2019,30250452,"2,056.32",Revenue,Longhurst Group Limited,Third Party Payments - Contract
Peterborough City Council,People & Communities,Block Contracts,Other Establishments,08/11/2019,30250454,"2,056.32",Revenue,Longhurst Group Limited,Third Party Payments - Contract
Peterborough City Council,People & Communities,Block Contracts,Other Establishments,08/11/2019,30250456,"2,056.32",Revenue,Longhurst Group Limited,Third Party Payments - Contract
Peterborough City Council,People & Communities,Block Contracts,Other Establishments,08/11/2019,30250457,"2,056.32",Revenue,Longhurst Group Limited,Third Party Payments - Contract
Peterborough City Council,People & Communities,Block Contracts,Other Establishments,08/11/2019,30250461,"2,056.32",Revenue,Longhurst Group Limited,Third Party Payments - Contract
Peterborough City Council,People & Communities,Block Contracts,Other Establishments,08/11/2019,30250462,"2,056.32",Revenue,Longhurst Group Limited,Third Party Payments - Contract
Peterborough City Council,People & Communities,Block Contracts,Other Establishments,08/11/2019,30250464,"2,056.32",Revenue,Longhurst Group Limited,Third Party Payments - Contract
Peterborough City Council,People & Communities,Block Contracts,Other Establishments,08/11/2019,30250432,"5,826.24",Revenue,Longhurst Group Limited,Third Party Payments - Contract
Peterborough City Council,People & Communities,Block Contracts,Other Establishments,08/11/2019,30250438,"5,826.24",Revenue,Longhurst Group Limited,Third Party Payments - Contract
Peterborough City Council,People & Communities,Block Contracts,Other Establishments,08/11/2019,30250440,"5,826.24",Revenue,Longhurst Group Limited,Third Party Payments - Contract
Peterborough City Council,People & Communities,Block Contracts,Other Establishments,08/11/2019,30250446,"5,826.24",Revenue,Longhurst Group Limited,Third Party Payments - Contract
Peterborough City Council,People & Communities,Block Contracts,Other Establishments,08/11/2019,30250448,"5,826.24",Revenue,Longhurst Group Limited,Third Party Payments - Contract
Peterborough City Council,People & Communities,Block Contracts,Other Establishments,08/11/2019,30250455,"5,826.24",Revenue,Longhurst Group Limited,Third Party Payments - Contract
Peterborough City Council,People & Communities,Block Contracts,Other Establishments,08/11/2019,30250458,"5,826.24",Revenue,Longhurst Group Limited,Third Party Payments - Contract
Peterborough City Council,People & Communities,Block Contracts,Other Establishments,08/11/2019,30250459,"5,826.24",Revenue,Longhurst Group Limited,Third Party Payments - Contract
Peterborough City Council,People & Communities,Block Contracts,Other Establishments,08/11/2019,30250465,"5,826.24",Revenue,Longhurst Group Limited,Third Party Payments - Contract
Peterborough City Council,People & Communities,Block Contracts,Other Establishments,08/11/2019,30250467,"5,826.24",Revenue,Longhurst Group Limited,Third Party Payments - Contract
Peterborough City Council,People & Communities,Block Contracts,Other Establishments,08/11/2019,30250469,"5,826.24",Revenue,Longhurst Group Limited,Third Party Payments - Contract
Peterborough City Council,People & Communities,Block Contracts,Other Establishments,08/11/2019,30250439,"44,166.66",Revenue,Longhurst Group Limited,Third Party Payments - Contract
Peterborough City Council,People & Communities,Block Contracts,Other Establishments,08/11/2019,30250453,"44,166.66",Revenue,Longhurst Group Limited,Third Party Payments - Contract
Peterborough City Council,People & Communities,Block Contracts,Other Establishments,08/11/2019,30250460,"44,166.66",Revenue,Longhurst Group Limited,Third Party Payments - Contract
Peterborough City Council,Public Health,PH Commissioning,Other Establishments,08/11/2019,30251172,"15,122.35",Revenue,NHS Cambs & P?boro CCG (Clinical Commissioning Group),Third Party Payments - Contract
Peterborough City Council,People & Communities,Cohesion,Other Establishments,08/11/2019,30251033,"3,685.00",Revenue,P?Boro Council For Voluntary Srvs (PCVS),Third Party Payments - Contract
Peterborough City Council,People & Communities,Other Services,Other Establishments,08/11/2019,30251035,"10,416.00",Revenue,P?Boro Council For Voluntary Srvs (PCVS),Third Party Payments - Contract
Peterborough City Council,Place & Economy,Waste & Operational Svs Mgmt,Other Establishments,08/11/2019,30250193,"535,766.44",Revenue,Peterborough Limited,Third Party Payments - Contract
Peterborough City Council,People & Communities,Cohesion,Other Establishments,08/11/2019,30250631,"5,385.70",Revenue,Redacted Personal Information,Third Party Payments - Contract
Peterborough City Council,Public Health,PH Commissioning,Other Establishments,08/11/2019,30250608,508.5,Revenue,Thorpe Road Surgery,Third Party Payments - Contract
Peterborough City Council,People & Communities,Strategic Commissioning - Management,Other Establishments,08/11/2019,30250660,"63,886.00",Revenue,VoiceAbility,Third Party Payments - Contract
Peterborough City Council,Chief Executives,HR WFD & Training,Interview & Training Expenses,08/11/2019,30251054,800,Revenue,In-Trac Training & Consultancy Services,Training
Peterborough City Council,Chief Executives,HR WFD & Training,Interview & Training Expenses,08/11/2019,30251001,"1,600.00",Revenue,In-Trac Training & Consultancy Services,Training
Peterborough City Council,Chief Executives,HR WFD & Training,Interview & Training Expenses,08/11/2019,30251107,600,Revenue,Northamptonshire  County Council,Training
Peterborough City Council,Chief Executives,HR WFD & Training,Interview & Training Expenses,08/11/2019,30250974,"1,650.00",Revenue,Pat Curtis Independent Social Worker/Practice Educator,Training
Peterborough City Council,Chief Executives,HR WFD & Training,Interview & Training Expenses,08/11/2019,30250999,"1,795.50",Revenue,University of East Anglia,Training
Peterborough City Council,Resources,Commercial Propety,Services,08/11/2019,30251273,"9,400.00",Revenue,Wilks Head & Eve,Valuations
Peterborough City Council,People & Communities,PFI,Water Services,08/11/2019,30250428,"15,859.42",Revenue,Anglian Water Business National,Water
Peterborough City Council,People & Communities,Commercial Propety,Services,08/11/2019,,"149,000.00",Capital,Sharman Quinney Homes,Projects
Peterborough City Council,People & Communities,Access to Resources & Specialist Commissioning,Schools,11/11/2019,30248882,"3,113.33",Revenue,Foster Care Associates Ltd FCA,Boarding Out Fees
Peterborough City Council,People & Communities,Access to Resources & Specialist Commissioning,Schools,11/11/2019,30248849,"3,202.30",Revenue,Foster Care Associates Ltd FCA,Boarding Out Fees
Peterborough City Council,People & Communities,Access to Resources & Specialist Commissioning,Schools,11/11/2019,30248861,"3,555.70",Revenue,Foster Care Associates Ltd FCA,Boarding Out Fees
Peterborough City Council,People & Communities,Access to Resources & Specialist Commissioning,Schools,11/11/2019,30248859,"3,556.01",Revenue,Foster Care Associates Ltd FCA,Boarding Out Fees
Peterborough City Council,People & Communities,Access to Resources & Specialist Commissioning,Schools,11/11/2019,30248883,"3,556.01",Revenue,Foster Care Associates Ltd FCA,Boarding Out Fees
Peterborough City Council,People & Communities,Access to Resources & Specialist Commissioning,Schools,11/11/2019,30248872,"3,626.69",Revenue,Foster Care Associates Ltd FCA,Boarding Out Fees
Peterborough City Council,People & Communities,Access to Resources & Specialist Commissioning,Schools,11/11/2019,30248840,"4,248.89",Revenue,Foster Care Associates Ltd FCA,Boarding Out Fees
Peterborough City Council,People & Communities,Access to Resources & Specialist Commissioning,Schools,11/11/2019,30248890,"4,292.69",Revenue,Foster Care Associates Ltd FCA,Boarding Out Fees
Peterborough City Council,People & Communities,Access to Resources & Specialist Commissioning,Schools,11/11/2019,30248891,"4,380.30",Revenue,Foster Care Associates Ltd FCA,Boarding Out Fees
Peterborough City Council,People & Communities,Access to Resources & Specialist Commissioning,Schools,11/11/2019,30248892,"3,494.14",Revenue,Fostering Innovations Ltd,Boarding Out Fees
Peterborough City Council,People & Communities,Access to Resources & Specialist Commissioning,Schools,11/11/2019,30248782,"2,860.77",Revenue,Fostering Solutions Limited,Boarding Out Fees
Peterborough City Council,People & Communities,Access to Resources & Specialist Commissioning,Schools,11/11/2019,30248836,"3,498.66",Revenue,Fostering Solutions Limited,Boarding Out Fees
Peterborough City Council,People & Communities,Access to Resources & Specialist Commissioning,Schools,11/11/2019,30248784,"3,541.44",Revenue,Fostering Solutions Limited,Boarding Out Fees
Peterborough City Council,People & Communities,Access to Resources & Specialist Commissioning,Schools,11/11/2019,30248821,"3,541.44",Revenue,Fostering Solutions Limited,Boarding Out Fees
Peterborough City Council,People & Communities,Access to Resources & Specialist Commissioning,Schools,11/11/2019,30248822,"3,541.44",Revenue,Fostering Solutions Limited,Boarding Out Fees
Peterborough City Council,People & Communities,Access to Resources & Specialist Commissioning,Schools,11/11/2019,30248837,"3,541.44",Revenue,Fostering Solutions Limited,Boarding Out Fees
Peterborough City Council,People & Communities,Access to Resources & Specialist Commissioning,Schools,11/11/2019,30248825,"3,548.26",Revenue,Fostering Solutions Limited,Boarding Out Fees
Peterborough City Council,People & Communities,Access to Resources & Specialist Commissioning,Schools,11/11/2019,30248829,"3,609.33",Revenue,Fostering Solutions Limited,Boarding Out Fees
Peterborough City Council,People & Communities,Access to Resources & Specialist Commissioning,Schools,11/11/2019,30248826,"4,011.97",Revenue,Fostering Solutions Limited,Boarding Out Fees
Peterborough City Council,People & Communities,Access to Resources & Specialist Commissioning,Schools,11/11/2019,30248838,"4,011.97",Revenue,Fostering Solutions Limited,Boarding Out Fees
Peterborough City Council,People & Communities,Access to Resources & Specialist Commissioning,Schools,11/11/2019,30248835,"6,009.66",Revenue,Fostering Solutions Limited,Boarding Out Fees
Peterborough City Council,Corporate,Corporate,Non Revenue,11/11/2019,30251437,"14,509.41",Capital,Elliott Group Limited,Building And Site Works
Peterborough City Council,Corporate,Corporate,Non Revenue,11/11/2019,30251439,"4,808.46",Capital,Rawheat Heating & Plumbing Eng.,Building And Site Works
Peterborough City Council,Corporate,Corporate,Non Revenue,11/11/2019,30250065,"2,850.00",Capital,Rider Levett Bucknall UK Ltd,Building And Site Works
Peterborough City Council,Place & Economy,"Markets, Tourism & Events",Services,11/11/2019,30251443,"18,400.00",Revenue,Field and Lawn Ltd,Conferences
Peterborough City Council,People & Communities,Independent Sector Placements,Services,11/11/2019,30251302,504,Revenue,THE HELPING HANDS GROUP,Daycare
Peterborough City Council,People & Communities,Independent Sector Placements,Services,11/11/2019,30251316,504,Revenue,THE HELPING HANDS GROUP,Daycare
Peterborough City Council,People & Communities,Independent Sector Placements,Services,11/11/2019,30251318,756,Revenue,THE HELPING HANDS GROUP,Daycare
Peterborough City Council,People & Communities,Independent Sector Placements,Services,11/11/2019,30251304,976,Revenue,THE HELPING HANDS GROUP,Daycare
Peterborough City Council,People & Communities,Independent Sector Placements,Services,11/11/2019,30251317,999.75,Revenue,THE HELPING HANDS GROUP,Daycare
Peterborough City Council,People & Communities,Independent Sector Placements,Services,11/11/2019,30251368,"1,008.00",Revenue,THE HELPING HANDS GROUP,Daycare
Peterborough City Council,People & Communities,Independent Sector Placements,Services,11/11/2019,30251303,"1,062.00",Revenue,THE HELPING HANDS GROUP,Daycare
Peterborough City Council,People & Communities,Independent Sector Placements,Services,11/11/2019,30251300,"1,260.00",Revenue,THE HELPING HANDS GROUP,Daycare
Peterborough City Council,People & Communities,Independent Sector Placements,Services,11/11/2019,30251369,"1,260.00",Revenue,THE HELPING HANDS GROUP,Daycare
Peterborough City Council,People & Communities,Independent Sector Placements,Services,11/11/2019,30251366,"1,389.00",Revenue,THE HELPING HANDS GROUP,Daycare
Peterborough City Council,People & Communities,Independent Sector Placements,Services,11/11/2019,30251301,"1,464.00",Revenue,THE HELPING HANDS GROUP,Daycare
Peterborough City Council,People & Communities,Independent Sector Placements,Services,11/11/2019,30251293,"1,593.00",Revenue,THE HELPING HANDS GROUP,Daycare
Peterborough City Council,People & Communities,Independent Sector Placements,Services,11/11/2019,30251297,"1,593.00",Revenue,THE HELPING HANDS GROUP,Daycare
Peterborough City Council,People & Communities,Independent Sector Placements,Services,11/11/2019,30251367,"2,124.00",Revenue,THE HELPING HANDS GROUP,Daycare
Peterborough City Council,People & Communities,Independent Sector Placements,Services,11/11/2019,30251296,"2,440.00",Revenue,THE HELPING HANDS GROUP,Daycare
Peterborough City Council,People & Communities,Independent Sector Placements,Services,11/11/2019,30251360,"2,440.00",Revenue,THE HELPING HANDS GROUP,Daycare
Peterborough City Council,People & Communities,Independent Sector Placements,Services,11/11/2019,30251364,"2,440.00",Revenue,THE HELPING HANDS GROUP,Daycare
Peterborough City Council,People & Communities,Independent Sector Placements,Services,11/11/2019,30251299,"2,655.00",Revenue,THE HELPING HANDS GROUP,Daycare
Peterborough City Council,People & Communities,Independent Sector Placements,Services,11/11/2019,30251294,"3,837.50",Revenue,THE HELPING HANDS GROUP,Daycare
Peterborough City Council,People & Communities,Special Educational Needs / Inclusion,Services,11/11/2019,30251332,612.5,Revenue,Priory Hospital School Priory,Education Expenses
Peterborough City Council,People & Communities,Special Educational Needs / Inclusion,Services,11/11/2019,30251330,"1,662.50",Revenue,Priory Hospital School Priory,Education Expenses
Peterborough City Council,People & Communities,Special Educational Needs / Inclusion,Services,11/11/2019,30251327,"2,800.00",Revenue,Priory Hospital School Priory,Education Expenses
Peterborough City Council,People & Communities,Special Educational Needs / Inclusion,Services,11/11/2019,30250672,760,Revenue,Top Class Tutors,Education Expenses
Peterborough City Council,People & Communities,Cultural Services,Energy Costs,11/11/2019,30251440,940.67,Revenue,EDF Energy Networks Ltd,Electricity
Peterborough City Council,People & Communities,Children?s Social Care,Agency Staff,11/11/2019,30250663,"5,611.27",Revenue,HCL Social Care Ltd,External Temporary Staff
Peterborough City Council,People & Communities,Strategic Commissioning - Management,Agency Staff,11/11/2019,30251486,669.2,Revenue,Reed Specialist Recruitment Limited,External Temporary Staff
Peterborough City Council,Place & Economy,Highway & Drainage Control,Agency Staff,11/11/2019,30251463,"1,235.80",Revenue,Reed Specialist Recruitment Limited,External Temporary Staff
Peterborough City Council,Place & Economy,Highway & Drainage Control,Agency Staff,11/11/2019,30251474,"1,302.60",Revenue,Reed Specialist Recruitment Limited,External Temporary Staff
Peterborough City Council,Place & Economy,Highway & Drainage Control,Agency Staff,11/11/2019,30251489,"1,352.71",Revenue,Reed Specialist Recruitment Limited,External Temporary Staff
Peterborough City Council,Governance,Legal Services,Agency Staff,11/11/2019,30251488,"1,383.20",Revenue,Reed Specialist Recruitment Limited,External Temporary Staff
Peterborough City Council,Governance,Legal Services,Agency Staff,11/11/2019,30251468,"1,772.75",Revenue,Reed Specialist Recruitment Limited,External Temporary Staff
Peterborough City Council,Governance,Legal Services,Agency Staff,11/11/2019,30251482,"1,801.65",Revenue,Reed Specialist Recruitment Limited,External Temporary Staff
Peterborough City Council,Governance,Legal Services,Agency Staff,11/11/2019,30251470,"2,025.38",Revenue,Reed Specialist Recruitment Limited,External Temporary Staff
Peterborough City Council,People & Communities,Commissioning Team,Agency Staff,11/11/2019,30251493,"2,243.60",Revenue,Reed Specialist Recruitment Limited,External Temporary Staff
Peterborough City Council,Customer & Digital Services,ICT,Agency Staff,11/11/2019,30251495,"4,768.72",Revenue,Reed Specialist Recruitment Limited,External Temporary Staff
Peterborough City Council,People & Communities,Therapy/Reablement/Community Equipment,Agency Staff,11/11/2019,30246958,"1,070.40",Revenue,Sanctuary Personnel Ltd,External Temporary Staff
Peterborough City Council,People & Communities,Housing,Services,11/11/2019,30250789,"1,130.00",Revenue,Cookes Property Management,Financial Assistance
Peterborough City Council,People & Communities,Housing,Services,11/11/2019,30250385,650,Revenue,Cozy Lettings Ltd,Financial Assistance
Peterborough City Council,People & Communities,Housing,Services,11/11/2019,30250386,700,Revenue,Cozy Lettings Ltd,Financial Assistance
Peterborough City Council,People & Communities,Housing,Services,11/11/2019,30251346,"1,082.00",Revenue,Cozy Lettings Ltd,Financial Assistance
Peterborough City Council,People & Communities,Housing,Services,11/11/2019,30250036,750,Revenue,Cross Keys Homes,Financial Assistance
Peterborough City Council,People & Communities,Housing,Services,11/11/2019,30250037,750,Revenue,Cross Keys Homes,Financial Assistance
Peterborough City Council,People & Communities,Housing,Services,11/11/2019,30250598,"2,956.55",Revenue,Cross Keys Homes,Financial Assistance
Peterborough City Council,People & Communities,Housing,Services,11/11/2019,30250074,"1,190.00",Revenue,LG James Property Solutions,Financial Assistance
Peterborough City Council,People & Communities,Housing,Services,11/11/2019,30250600,600,Revenue,Majestic Lettings,Financial Assistance
Peterborough City Council,People & Communities,Housing,Services,11/11/2019,30250027,"1,350.00",Revenue,Redacted Personal Information,Financial Assistance
Peterborough City Council,People & Communities,Housing,Services,11/11/2019,30251352,"1,400.00",Revenue,Sequence UK,Financial Assistance
Peterborough City Council,Place & Economy,Waste Management,Energy Costs,11/11/2019,30251295,"3,243.74",Revenue,Npower Ltd,Gas
Peterborough City Council,People & Communities,Early Years & Quality Improvement,Services,11/11/2019,30251350,910,Revenue,Brookside Playgroup,Grant Payment
Peterborough City Council,People & Communities,School Standards & Effectiveness,Services,11/11/2019,30251454,580,Revenue,Corby Business Academy,Grant Payment
Peterborough City Council,People & Communities,School Standards & Effectiveness,Services,11/11/2019,30251456,530,Revenue,Foxton Primary School,Grant Payment
Peterborough City Council,People & Communities,School Standards & Effectiveness,Services,11/11/2019,30251459,627.17,Revenue,Marshland High School,Grant Payment
Peterborough City Council,People & Communities,Early Years & Quality Improvement,Services,11/11/2019,30251357,546,Revenue,Orton Longueville Playgroup,Grant Payment
Peterborough City Council,People & Communities,School Standards & Effectiveness,Services,11/11/2019,30251457,639.68,Revenue,Sawtry Village Academy,Grant Payment
Peterborough City Council,People & Communities,Early Years & Quality Improvement,Services,11/11/2019,30251358,"1,150.50",Revenue,Spring Wittering,Grant Payment
Peterborough City Council,People & Communities,Early Years & Quality Improvement,Services,11/11/2019,30251356,"1,170.00",Revenue,St Thomas More Catholic Nursery,Grant Payment
Peterborough City Council,People & Communities,Early Years & Quality Improvement,Services,11/11/2019,30251365,"4,850.08",Revenue,The Teddy Bears inn Day Nursery Ltd,Grant Payment
Peterborough City Council,People & Communities,Early Years & Quality Improvement,Services,11/11/2019,30251359,"1,586.00",Revenue,Whiz Kids Day Nursery,Grant Payment
Peterborough City Council,People & Communities,Independent Sector Placements,Services,11/11/2019,30251543,"-1,092.18",Revenue,Bee?s Care Ltd,Homecare
Peterborough City Council,People & Communities,Independent Sector Placements,Services,11/11/2019,30251544,-953.38,Revenue,Bee?s Care Ltd,Homecare
